TRANS No,Service Area Categorisation,Service Division Categorisation,Responsible Unit,Unit Code,Expenses Type,Expenses Sub Type,Expense Code,Narrative,Amount,Invoice Date,Cap/Rev,Supplier Name
1,Central Services,Corporate Mangmt not separated,Chief Exec's Office,A01001,Supplies & Services           ,Grants and Subscriptions      ,DJ04,Subscriptions                           ,"15,000.00",12/01/2015,REV,LONDON BOROUGH OF CROYDON     
2,Central Services,SupS Chief Execs,Local Involvement Network,A01039,Third Party Payments          ,Private Contractors           ,EH10,Contract Payments                       ,804,31/01/2015,REV,VOICEABILITY                  
3,Central Services,SupS Chief Execs,Local Involvement Network,A01039,Third Party Payments          ,Private Contractors           ,EH10,Contract Payments                       ,"10,423.75",02/02/2015,REV,MERTON VOLUNTARY SERV COUNCIL 
4,Cultural Env Reg&Plan Services,Comm Safety (Crime Reduction),Prolific & Priority Offenders,A01105,Third Party Payments          ,Private Contractors           ,EH02,Miscellaneous Hired Services            ,"3,847.78",09/02/2015,REV,GLOBAL MSC SECURITY LTD       
5,Cultural Env Reg&Plan Services,Comm Safety (Crime Reduction),Prolific & Priority Offenders,A01105,Third Party Payments          ,Private Contractors           ,EH02,Miscellaneous Hired Services            ,"2,500.00",30/01/2015,REV,GLOBAL MSC SECURITY LTD       
6,Cultural Env Reg&Plan Services,Comm Safety (Crime Reduction),Prolific & Priority Offenders,A01105,Third Party Payments          ,Private Contractors           ,EH02,Miscellaneous Hired Services            ,"8,352.08",12/01/2015,REV,GLOBAL MSC SECURITY LTD       
7,Cultural Env Reg&Plan Services,Comm Safety (Crime Reduction),Prolific & Priority Offenders,A01105,Third Party Payments          ,Private Contractors           ,EH02,Miscellaneous Hired Services            ,"2,500.00",10/02/2015,REV,GLOBAL MSC SECURITY LTD       
8,Cultural Env Reg&Plan Services,Comm Safety (Crime Reduction),CCTV,A01200,Supplies & Services           ,Equip Furniture/Materials     ,DA01,Equipment - R & M                       ,798,27/01/2015,REV,EUROVIA INFRASTRUCTURE LTD    
9,Cultural Env Reg&Plan Services,Comm Safety (Crime Reduction),CCTV,A01200,Supplies & Services           ,Equip Furniture/Materials     ,DA01,Equipment - R & M                       ,952.59,27/01/2015,REV,EUROVIA INFRASTRUCTURE LTD    
10,Cultural Env Reg&Plan Services,Comm Safety (Crime Reduction),CCTV,A01200,Supplies & Services           ,Equip Furniture/Materials     ,DA01,Equipment - R & M                       ,"2,223.40",27/01/2015,REV,EUROVIA INFRASTRUCTURE LTD    
11,Cultural Env Reg&Plan Services,Comm Safety (Crime Reduction),CCTV,A01200,Supplies & Services           ,Equip Furniture/Materials     ,DA01,Equipment - R & M                       ,"3,448.84",28/01/2015,REV,EUROVIA INFRASTRUCTURE LTD    
12,Cultural Env Reg&Plan Services,Comm Safety (Crime Reduction),CCTV,A01200,Supplies & Services           ,Equip Furniture/Materials     ,DA01,Equipment - R & M                       ,509.72,12/01/2015,REV,EUROVIA INFRASTRUCTURE LTD    
13,Cultural Env Reg&Plan Services,Comm Safety (Crime Reduction),CCTV,A01200,Supplies & Services           ,Comms and Computing           ,DG15,Network Maintenance                     ,"11,381.78",03/02/2015,REV,BT REDCARE                    
14,Central Services,SupS Chief Execs,NON-STATUTORY MARKETING & COMM,A02019,Supplies & Services           ,Services                      ,DF02,Misc Advertising/Publicity              ,662.5,18/02/2015,REV,LONDON LETTERBOX MARKETING    
15,Central Services,SupS Chief Execs,Press and Public Relations.,A02026,Supplies & Services           ,Prntng Stnry Gen Off Exp      ,DE20,Council Magazine                        ,700,29/01/2015,REV,REDACTED
16,Central Services,SupS Chief Execs,Press and Public Relations.,A02026,Supplies & Services           ,Grants and Subscriptions      ,DJ04,Subscriptions                           ,"1,330.00",11/11/2014,REV,SOCITM LTD                    
17,CS -Oth Operating Inc & Expend,T/A Corporate Services,Prtng Jobs - Ext Agncy,A03041,Supplies & Services           ,Prntng Stnry Gen Off Exp      ,DE01,External Printing                       ,828,06/02/2015,REV,SOCIAL ENTERPRISE PRESS LTD   
18,CS -Oth Operating Inc & Expend,T/A Corporate Services,Prtng Jobs - Ext Agncy,A03041,Supplies & Services           ,Prntng Stnry Gen Off Exp      ,DE01,External Printing                       ,"1,749.80",23/01/2015,REV,FINANCIAL DATA MANAGEMENT PLC 
19,CS -Oth Operating Inc & Expend,T/A Corporate Services,Prtng Jobs - Ext Agncy,A03041,Supplies & Services           ,Prntng Stnry Gen Off Exp      ,DE01,External Printing                       ,713.7,20/02/2015,REV,FINANCIAL DATA MANAGEMENT PLC 
20,CS -Oth Operating Inc & Expend,T/A Corporate Services,Prtng Jobs - Ext Agncy,A03041,Supplies & Services           ,Prntng Stnry Gen Off Exp      ,DE01,External Printing                       ,543,22/01/2015,REV,ULTIMATE INVOICE FINANCE LTD  
21,CS -Oth Operating Inc & Expend,T/A Corporate Services,Prtng Jobs - Ext Agncy,A03041,Supplies & Services           ,Prntng Stnry Gen Off Exp      ,DE01,External Printing                       ,813,16/01/2015,REV,FINANCIAL DATA MANAGEMENT PLC 
22,CS -Oth Operating Inc & Expend,T/A Corporate Services,Prtng Jobs - Ext Agncy,A03041,Supplies & Services           ,Prntng Stnry Gen Off Exp      ,DE01,External Printing                       ,757,31/01/2015,REV,IMPRESS PRINT SERVICES LTD    
23,CS -Oth Operating Inc & Expend,T/A Corporate Services,Translation Services,A04060,Supplies & Services           ,Services                      ,DF45,Payment of Sessional Workers            ,558,26/01/2015,REV,REDACTED
24,CS -Oth Operating Inc & Expend,T/A Corporate Services,Translation Services,A04060,Supplies & Services           ,Services                      ,DF46,Payment for Signers                     ,"1,625.00",31/01/2015,REV,COSMIC EUROPE LIMTED          
25,Central Services,SupS Comm and Member Services,COMMERICIAL SERVICES,A04085,Employees                     ,Direct Employee Expenses      ,AA17,Agency Staff & Casual Paymts            ,"3,390.00",04/02/2015,REV,HAYS RECRUITING EXPERTS       
26,Central Services,SupS Comm and Member Services,COMMERICIAL SERVICES,A04085,Employees                     ,Direct Employee Expenses      ,AA17,Agency Staff & Casual Paymts            ,"2,712.00",11/02/2015,REV,HAYS RECRUITING EXPERTS       
27,Central Services,SupS Comm and Member Services,COMMERICIAL SERVICES,A04085,Employees                     ,Direct Employee Expenses      ,AA17,Agency Staff & Casual Paymts            ,"3,390.00",18/02/2015,REV,HAYS RECRUITING EXPERTS       
28,Central Services,SupS Comm and Member Services,COMMERICIAL SERVICES,A04085,Employees                     ,Direct Employee Expenses      ,AA17,Agency Staff & Casual Paymts            ,"8,284.00",16/01/2015,REV,REDACTED
29,Highways & Transport Services,On-street parking,Blue Badge Service,A04088,Supplies & Services           ,Services                      ,DF14,Doctors and Other Fees                  ,600,15/08/2014,REV,LLOYDS TSB COMMERCIAL FINANCE 
30,Highways & Transport Services,On-street parking,Blue Badge Service,A04088,Supplies & Services           ,Services                      ,DF14,Doctors and Other Fees                  ,900,26/01/2015,REV,LLOYDS TSB COMMERCIAL FINANCE 
31,Highways & Transport Services,On-street parking,Blue Badge Service,A04088,Supplies & Services           ,Services                      ,DF14,Doctors and Other Fees                  ,600,17/11/2014,REV,LLOYDS TSB COMMERCIAL FINANCE 
32,Highways & Transport Services,On-street parking,Blue Badge Service,A04088,Supplies & Services           ,Comms and Computing           ,DG15,Network Maintenance                     ,508.58,02/02/2015,REV,NORTHGATE  INFORMATION SOLUT. 
33,Central Services,SupS Health & Safety,Learning and Development,B06146,Employees                     ,Indirect Employee Expenses    ,AB56,Internal Training Costs                 ,849,16/01/2015,REV,CITY LIT                      
34,Central Services,SupS Health & Safety,Learning and Development,B06146,Employees                     ,Indirect Employee Expenses    ,AB57,EXTERNAL TRAINING COSTS                 ,"1,000.00",19/02/2015,REV,AXIELL                        
35,Central Services,SupS Health & Safety,Learning and Development,B06146,Employees                     ,Indirect Employee Expenses    ,AB57,EXTERNAL TRAINING COSTS                 ,975,27/01/2015,REV,LONDON SCHOOL OF FIRST AID    
36,Central Services,SupS Health & Safety,Learning and Development,B06146,Employees                     ,Indirect Employee Expenses    ,AB57,EXTERNAL TRAINING COSTS                 ,"1,060.00",26/01/2015,REV,DOT SIGN LANGUAGE             
37,Central Services,SupS Health & Safety,Learning and Development,B06146,Employees                     ,Indirect Employee Expenses    ,AB57,EXTERNAL TRAINING COSTS                 ,"1,626.02",09/12/2014,REV,AEA (BOOKINGS)                
38,Central Services,SupS Health & Safety,Learning and Development,B06146,Employees                     ,Indirect Employee Expenses    ,AB57,EXTERNAL TRAINING COSTS                 ,"1,850.00",16/02/2015,REV,DOTTED EYES LTD               
39,Central Services,SupS Health & Safety,Learning and Development,B06146,Employees                     ,Indirect Employee Expenses    ,AB57,EXTERNAL TRAINING COSTS                 ,"3,425.00",28/11/2014,REV,FGI LIMITED                   
40,Central Services,SupS Health & Safety,Learning and Development,B06146,Employees                     ,Indirect Employee Expenses    ,AB57,EXTERNAL TRAINING COSTS                 ,"1,097.87",27/01/2015,REV,RETIREMENT EDUCATION SERVICES 
41,Central Services,SupS Health & Safety,Learning and Development,B06146,Employees                     ,Indirect Employee Expenses    ,AB57,EXTERNAL TRAINING COSTS                 ,550,11/02/2015,REV,MSH TRAINING & CONSULTANCY LTD
42,Central Services,SupS Health & Safety,Learning and Development,B06146,Employees                     ,Indirect Employee Expenses    ,AB57,EXTERNAL TRAINING COSTS                 ,750,28/11/2014,REV,REDACTED
43,Central Services,SupS Health & Safety,Learning and Development,B06146,Employees                     ,Indirect Employee Expenses    ,AB57,EXTERNAL TRAINING COSTS                 ,"1,290.00",12/09/2014,REV,NESCOT                        
44,Central Services,SupS Health & Safety,Learning and Development,B06146,Employees                     ,Indirect Employee Expenses    ,AB57,EXTERNAL TRAINING COSTS                 ,"3,425.00",28/11/2014,REV,FGI LIMITED                   
45,Central Services,SupS Health & Safety,Learning and Development,B06146,Employees                     ,Indirect Employee Expenses    ,AB57,EXTERNAL TRAINING COSTS                 ,550,20/02/2015,REV,MSH TRAINING & CONSULTANCY LTD
46,Central Services,SupS Health & Safety,Learning and Development,B06146,Employees                     ,Indirect Employee Expenses    ,AB57,EXTERNAL TRAINING COSTS                 ,550,11/02/2015,REV,MSH TRAINING & CONSULTANCY LTD
47,Central Services,SupS Health & Safety,Learning and Development,B06146,Employees                     ,Indirect Employee Expenses    ,AB57,EXTERNAL TRAINING COSTS                 ,"1,200.00",12/02/2015,REV,THE PRESCRIPTION TRAINING COMP
48,Central Services,SupS Health & Safety,Learning and Development,B06146,Employees                     ,Indirect Employee Expenses    ,AB57,EXTERNAL TRAINING COSTS                 ,"1,450.00",09/03/2015,REV,THE KNOWLEDGE ACADEMY         
49,Central Services,SupS Health & Safety,Learning and Development,B06146,Employees                     ,Indirect Employee Expenses    ,AB57,EXTERNAL TRAINING COSTS                 ,"1,103.00",04/02/2015,REV,DOT SIGN LANGUAGE             
50,Central Services,SupS Health & Safety,Learning and Development,B06146,Employees                     ,Indirect Employee Expenses    ,AB57,EXTERNAL TRAINING COSTS                 ,625,04/12/2014,REV,LONDON SCHOOL OF FIRST AID    
51,Central Services,SupS Health & Safety,Learning and Development,B06146,Employees                     ,Indirect Employee Expenses    ,AB57,EXTERNAL TRAINING COSTS                 ,950,18/02/2015,REV,ASH INFORMATION SYSTEMS LTD   
52,Central Services,SupS Health & Safety,Learning and Development,B06146,Supplies & Services           ,Catering                      ,DB50,Refreshment at Meetings                 ,"1,080.00",14/11/2014,REV,VILLANI GROUP                 
107,,,JMC Extension                           ,CC018MD,New Construction Conversion and Renovation,,B4,Contractor - Site works                 ,844,03/02/2015,CAP,SALTASH ENTERPRISES LTD       
108,,,Disabled Facilities Grant               ,CC022RA,Other Capital Expenditure,,E1,Grants                                  ,"1,847.52",12/02/2015,CAP,STAYING FIRST                 
109,,,Disabled Facilities Grant               ,CC022RA,Other Capital Expenditure,,E1,Grants                                  ,"10,270.00",12/02/2015,CAP,GARVEY BROS BUILDERS          
110,,,Disabled Facilities Grant               ,CC022RA,Other Capital Expenditure,,E1,Grants                                  ,"1,818.80",21/02/2015,CAP,HARDING DESIGN LIMITED        
111,,,Disabled Facilities Grant               ,CC022RA,Other Capital Expenditure,,E1,Grants                                  ,"15,030.00",12/02/2015,CAP,VERSATILE BUILDERS LTD        
112,,,Disabled Facilities Grant               ,CC022RA,Other Capital Expenditure,,E1,Grants                                  ,"3,855.00",18/02/2015,CAP,THE LIFECARE CENTRE           
113,,,Disabled Facilities Grant               ,CC022RA,Other Capital Expenditure,,E1,Grants                                  ,"1,082.75",21/02/2015,CAP,HARDING DESIGN LIMITED        
114,,,Disabled Facilities Grant               ,CC022RA,Other Capital Expenditure,,E1,Grants                                  ,"24,487.00",27/02/2015,CAP,T BROWN LTD                   
115,,,Disabled Facilities Grant               ,CC022RA,Other Capital Expenditure,,E1,Grants                                  ,"11,360.80",12/02/2015,CAP,BELL DECORATING & BUILDING LTD
116,,,Disabled Facilities Grant               ,CC022RA,Other Capital Expenditure,,E1,Grants                                  ,661.4,12/02/2015,CAP,BAILEY CONSULTING             
117,,,Disabled Facilities Grant               ,CC022RA,Other Capital Expenditure,,E1,Grants                                  ,"11,592.80",21/02/2015,CAP,BELL DECORATING & BUILDING LTD
118,,,Disabled Facilities Grant               ,CC022RA,Other Capital Expenditure,,E1,Grants                                  ,"6,914.00",12/02/2015,CAP,T BROWN LTD                   
119,,,Disabled Facilities Grant               ,CC022RA,Other Capital Expenditure,,E1,Grants                                  ,"1,168.30",12/02/2015,CAP,TBS ADAPTATIONS LTD           
120,,,Disabled Facilities Grant               ,CC022RA,Other Capital Expenditure,,E1,Grants                                  ,"1,945.00",12/02/2015,CAP,ASCENDIT LIFTS LTD            
121,,,Disabled Facilities Grant               ,CC022RA,Other Capital Expenditure,,E1,Grants                                  ,"7,552.00",12/02/2015,CAP,SD FAMILY BUILDERS            
122,,,Disabled Facilities Grant               ,CC022RA,Other Capital Expenditure,,E1,Grants                                  ,664.44,12/02/2015,CAP,STAYING FIRST                 
123,,,Colliers Wd- Regeneration Fund          ,CE006FB,Other Capital Expenditure,,E4,TFL Other                               ,"1,000.00",23/09/2014,CAP,GORT SCOTT LTD                
124,,,Mitcham - Outer London Fund             ,CE006FC,New Construction Conversion and Renovation,,B4,Contractor - Site works                 ,562.5,27/01/2015,CAP,EUROVIA INFRASTRUCTURE LTD    
125,,,B647 John Innes Park Improvmnt          ,CE019CA,New Construction Conversion and Renovation,,B4,Contractor - Site works                 ,780,05/02/2015,CAP,TAYLOR BUILDING COMPANY LTD   
126,,,Highways bridges & structures           ,CE025FA,New Construction Conversion and Renovation,,B1,Consultants Fees D&S Structure          ,"5,950.00",19/02/2015,CAP,HYDER CONSULTING (UK) LTD     
127,,,Borough Roads Maintenance               ,CE026FA,New Construction Conversion and Renovation,,B1,Consultants Fees D&S Structure          ,"17,010.00",28/01/2015,CAP,JACOBS UK LIMITED             
128,,,Borough Roads Maintenance               ,CE026FA,New Construction Conversion and Renovation,,B4,Contractor - Site works                 ,"4,725.35",11/02/2015,CAP,FM CONWAY LTD                 
129,,,Borough Roads Maintenance               ,CE026FA,New Construction Conversion and Renovation,,B4,Contractor - Site works                 ,"2,380.92",11/02/2015,CAP,FM CONWAY LTD                 
130,,,Borough Roads Maintenance               ,CE026FA,New Construction Conversion and Renovation,,B4,Contractor - Site works                 ,559.82,11/02/2015,CAP,FM CONWAY LTD                 
131,,,Borough Roads Maintenance               ,CE026FA,New Construction Conversion and Renovation,,B4,Contractor - Site works                 ,"27,757.92",10/02/2015,CAP,FM CONWAY LTD                 
132,,,Maintain AntiSkid and Coloured          ,CE027FA,New Construction Conversion and Renovation,,B4,Contractor - Site works                 ,631.77,11/02/2015,CAP,FM CONWAY LTD                 
133,,,Repairs to Footways                     ,CE029FA,New Construction Conversion and Renovation,,B4,Contractor - Site works                 ,"2,468.28",11/02/2015,CAP,FM CONWAY LTD                 
134,,,Repairs to Footways                     ,CE029FA,New Construction Conversion and Renovation,,B4,Contractor - Site works                 ,"1,000.00",05/02/2015,CAP,FM CONWAY LTD                 
135,,,Repairs to Footways                     ,CE029FA,New Construction Conversion and Renovation,,B4,Contractor - Site works                 ,529.74,11/02/2015,CAP,FM CONWAY LTD                 
136,,,Repairs to Footways                     ,CE029FA,New Construction Conversion and Renovation,,B4,Contractor - Site works                 ,"4,000.00",05/02/2015,CAP,FM CONWAY LTD                 
137,,,Repairs to Footways                     ,CE029FA,New Construction Conversion and Renovation,,B4,Contractor - Site works                 ,"10,000.00",05/02/2015,CAP,FM CONWAY LTD                 
138,,,Repairs to Footways                     ,CE029FA,New Construction Conversion and Renovation,,B4,Contractor - Site works                 ,"24,000.00",05/02/2015,CAP,FM CONWAY LTD                 
139,,,Repairs to Footways                     ,CE029FA,New Construction Conversion and Renovation,,B4,Contractor - Site works                 ,"1,561.34",11/02/2015,CAP,FM CONWAY LTD                 
140,,,Repairs to Footways                     ,CE029FA,New Construction Conversion and Renovation,,B4,Contractor - Site works                 ,"2,562.92",05/02/2015,CAP,FM CONWAY LTD                 
141,,,Repairs to Footways                     ,CE029FA,New Construction Conversion and Renovation,,B4,Contractor - Site works                 ,"20,000.00",05/02/2015,CAP,FM CONWAY LTD                 
142,,,Repairs to Footways                     ,CE029FA,New Construction Conversion and Renovation,,B4,Contractor - Site works                 ,"25,000.00",05/02/2015,CAP,FM CONWAY LTD                 
143,,,Repairs to Footways                     ,CE029FA,New Construction Conversion and Renovation,,B4,Contractor - Site works                 ,"10,000.00",05/02/2015,CAP,FM CONWAY LTD                 
144,,,Repairs to Footways                     ,CE029FA,New Construction Conversion and Renovation,,B4,Contractor - Site works                 ,"10,000.00",05/02/2015,CAP,FM CONWAY LTD                 
145,,,Big Lottery Play Areas                  ,CE044MA,New Construction Conversion and Renovation,,B4,Contractor - Site works                 ,"1,200.00",22/01/2015,CAP,KC DRAINS LTD                 
146,,,Big Lottery Play Areas                  ,CE044MA,New Construction Conversion and Renovation,,B4,Contractor - Site works                 ,"1,600.00",22/01/2015,CAP,KC DRAINS LTD                 
147,,,Big Lottery Play Areas                  ,CE044MA,New Construction Conversion and Renovation,,B4,Contractor - Site works                 ,600,22/01/2015,CAP,KC DRAINS LTD                 
148,,,Big Lottery Play Areas                  ,CE044MA,New Construction Conversion and Renovation,,B4,Contractor - Site works                 ,800,22/01/2015,CAP,KC DRAINS LTD                 
149,,,Street Tree Programme                   ,CE067FA,New Construction Conversion and Renovation,,B5,Suppliers - Site works                  ,"3,690.00",16/01/2015,CAP,BARCHAM TREES P.L.C.          
150,,,Street Tree Programme                   ,CE067FA,New Construction Conversion and Renovation,,B5,Suppliers - Site works                  ,575.1,06/02/2015,CAP,BARCHAM TREES P.L.C.          
151,,,Street Tree Programme                   ,CE067FA,New Construction Conversion and Renovation,,B5,Suppliers - Site works                  ,"1,296.00",06/02/2015,CAP,BARCHAM TREES P.L.C.          
152,,,Street Tree Programme                   ,CE067FA,New Construction Conversion and Renovation,,B5,Suppliers - Site works                  ,"1,231.20",06/02/2015,CAP,BARCHAM TREES P.L.C.          
153,,,Street Tree Programme                   ,CE067FA,New Construction Conversion and Renovation,,B5,Suppliers - Site works                  ,"1,496.70",06/02/2015,CAP,BARCHAM TREES P.L.C.          
154,,,Street Lighting Replacement Pr          ,CE068FA,New Construction Conversion and Renovation,,B4,Contractor - Site works                 ,"3,175.98",30/01/2015,CAP,MAY GURNEY LTD T/A CARTLEDGE  
155,,,Street Lighting Replacement Pr          ,CE068FA,New Construction Conversion and Renovation,,B6,Other Costs - Site works                ,"1,274.00",21/01/2015,CAP,UK POWER NETWORKS (OPERATIONS)
156,,,Accesibility Programme                  ,CE104FD,New Construction Conversion and Renovation,,B6,Other Costs - Site works                ,"2,000.00",27/01/2015,CAP,TRANSPORT FOR LONDON          
157,,,Cycle access/parking                    ,CE104FG,New Construction Conversion and Renovation,,B4,Contractor - Site works                 ,"1,220.08",11/02/2015,CAP,FM CONWAY LTD                 
158,,,Cycle access/parking                    ,CE104FG,New Construction Conversion and Renovation,,B4,Contractor - Site works                 ,"10,000.00",10/02/2015,CAP,FM CONWAY LTD                 
159,,,Cycle access/parking                    ,CE104FG,New Construction Conversion and Renovation,,B4,Contractor - Site works                 ,"1,233.93",10/02/2015,CAP,FM CONWAY LTD                 
160,,,Cycle access/parking                    ,CE104FG,Other Capital Expenditure,,E3,Miscellaneous Capital Expendit          ,"10,891.00",20/02/2015,CAP,ROYAL BOR'GH KINGSTON U THAMES
161,,,Cycle access/parking                    ,CE104FG,Other Capital Expenditure,,E4,TFL Other                               ,"2,250.00",23/12/2014,CAP,TRANSPORT INITIATIVES LLP     
162,,,Mitcham Town Centre                     ,CE104FP,New Construction Conversion and Renovation,,B4,Contractor - Site works                 ,"11,671.81",30/01/2015,CAP,SHUTTER MEDIA LIMITED         
163,,,Mitcham Town Centre                     ,CE104FP,New Construction Conversion and Renovation,,B5,Suppliers - Site works                  ,"1,166.00",21/01/2015,CAP,FM CONWAY LTD                 
164,,,A298/A238 Strategic Corridor            ,CE104FQ,New Construction Conversion and Renovation,,B4,Contractor - Site works                 ,"15,000.00",05/02/2015,CAP,FM CONWAY LTD                 
165,,,A298/A238 Strategic Corridor            ,CE104FQ,New Construction Conversion and Renovation,,B6,Other Costs - Site works                ,"1,156.00",09/02/2015,CAP,UK POWER NETWORKS (OPERATIONS)
166,,,A298/A238 Strategic Corridor            ,CE104FQ,Other Capital Expenditure,,E3,Miscellaneous Capital Expendit          ,"1,500.00",02/02/2015,CAP,TROWERS AND HAMLIN            
167,,,The Broadway-Russell to Merton          ,CE105FO,New Construction Conversion and Renovation,,B4,Contractor - Site works                 ,"15,257.37",12/02/2015,CAP,FM CONWAY LTD                 
168,,,The Broadway-Russell to Merton          ,CE105FO,New Construction Conversion and Renovation,,B4,Contractor - Site works                 ,"109,250.00",12/02/2015,CAP,FM CONWAY LTD                 
169,,,Central Road                            ,CE105FS,New Construction Conversion and Renovation,,B4,Contractor - Site works                 ,"2,049.46",11/02/2015,CAP,FM CONWAY LTD                 
170,,,Taylor Road Day Centre                  ,CE138AA,New Construction Conversion and Renovation,,B4,Contractor - Site works                 ,505.25,13/02/2015,CAP,SALTASH ENTERPRISES LTD       
171,,,Taylor Road Day Centre                  ,CE138AA,New Construction Conversion and Renovation,,B4,Contractor - Site works                 ,965,13/02/2015,CAP,SALTASH ENTERPRISES LTD       
172,,,Taylor Road Day Centre                  ,CE138AA,New Construction Conversion and Renovation,,B4,Contractor - Site works                 ,"3,589.00",13/02/2015,CAP,SALTASH ENTERPRISES LTD       
173,,,Tackling Traffic Congestion             ,CE150AA,New Construction Conversion and Renovation,,B4,Contractor - Site works                 ,"1,451.20",20/01/2015,CAP,MAY GURNEY LTD T/A CARTLEDGE  
174,,,Civic Centre refurbishment              ,CF001AB,Vehicles Plant Equipment and Machinery,,D3,Equipment                               ,674.32,27/01/2015,CAP,NEOPOST FINANCE LIMITED       
175,,,Civic Centre Windows                    ,CF001AK,New Construction Conversion and Renovation,,B4,Contractor - Site works                 ,"7,502.67",06/01/2015,CAP,SAFEGUARD PEST CONTROL LTD    
176,,,Civic Centre- Upgrading lifts           ,CF001AL,New Construction Conversion and Renovation,,B4,Contractor - Site works                 ,"1,797.10",19/01/2015,CAP,AXIS ELEVATORS LTD            
177,,,Civic Centre- Upgrading lifts           ,CF001AL,New Construction Conversion and Renovation,,B4,Contractor - Site works                 ,"200,000.00",19/01/2015,CAP,AXIS ELEVATORS LTD            
178,,,Civic Centre- Upgrading lifts           ,CF001AL,Vehicles Plant Equipment and Machinery,,D3,Equipment                               ,"24,703.20",27/01/2015,CAP,SPECIALIST COMPUTER CENT. PLC 
179,,,Repair and Maintenance                  ,CF004SA,New Construction Conversion and Renovation,,B4,Contractor - Site works                 ,"1,896.00",16/02/2015,CAP,MAGUIRE BROTHERS LTD          
180,,,Repair and Maintenance                  ,CF004SA,New Construction Conversion and Renovation,,B4,Contractor - Site works                 ,"10,056.00",16/02/2015,CAP,MAGUIRE BROTHERS LTD          
181,,,Aragon expansion                        ,CS008AA,New Construction Conversion and Renovation,,B4,Contractor - Site works                 ,"20,123.63",03/02/2015,CAP,THOMAS SINDEN CONSTRUCTION LTD
182,,,St Mary's expansion                     ,CS008RA,New Construction Conversion and Renovation,,B1,Consultants Fees D&S Structure          ,"4,933.00",31/01/2015,CAP,NPS PROPERTY CONSULTANTS LTD  
183,,,Joseph Hood Permanent Expansn           ,CS012AA,New Construction Conversion and Renovation,,B1,Consultants Fees D&S Structure          ,"2,646.00",04/02/2015,CAP,HAVERSTOCK ASSOCIATES LLP     
184,,,Joseph Hood Permanent Expansn           ,CS012AA,New Construction Conversion and Renovation,,B4,Contractor - Site works                 ,"2,964.58",29/01/2015,CAP,GEE CONSTRUCTION LTD          
185,,,Hillcross School Expansion              ,CS020AC,New Construction Conversion and Renovation,,B4,Contractor - Site works                 ,"277,928.67",04/02/2015,CAP,MANSELL CONSTRUCTION SERVICES 
186,,,Merton Abbey Temp Accomodation          ,CS022AC,New Construction Conversion and Renovation,,B1,Consultants Fees D&S Structure          ,"4,058.44",30/01/2015,CAP,PELLINGS LLP                  
187,,,Merton Abbey Temp Accomodation          ,CS022AC,New Construction Conversion and Renovation,,B2,Site Surveys D&S Structure              ,717.5,30/01/2015,CAP,KEEGANS LIMITED               
188,,,Merton Abbey Temp Accomodation          ,CS022AC,New Construction Conversion and Renovation,,B4,Contractor - Site works                 ,"310,341.40",26/01/2015,CAP,MANSELL CONSTRUCTION SERVICES 
189,,,Pelham School Expansion                 ,CS023AC,New Construction Conversion and Renovation,,B1,Consultants Fees D&S Structure          ,"7,213.00",30/01/2015,CAP,HAVERSTOCK ASSOCIATES LLP     
190,,,Pelham School Expansion                 ,CS023AC,New Construction Conversion and Renovation,,B4,Contractor - Site works                 ,"94,032.29",04/02/2015,CAP,MANSELL CONSTRUCTION SERVICES 
191,,,Dundonald expansion                     ,CS031AC,New Construction Conversion and Renovation,,B1,Consultants Fees D&S Structure          ,"1,570.00",31/01/2015,CAP,SYNERGY CPC LLP               
192,,,Dundonald expansion                     ,CS031AC,New Construction Conversion and Renovation,,B1,Consultants Fees D&S Structure          ,"2,100.00",27/01/2015,CAP,AREA LANDSCAPE ARCHITECTS     
193,,,Dundonald expansion                     ,CS031AC,New Construction Conversion and Renovation,,B4,Contractor - Site works                 ,"62,000.00",30/01/2015,CAP,FM CONWAY LTD                 
194,,,Poplar Permanent Expansion              ,CS034AB,New Construction Conversion and Renovation,,B1,Consultants Fees D&S Structure          ,500,31/01/2015,CAP,EIGHT ASSOCIATES              
195,,,Poplar Permanent Expansion              ,CS034AB,New Construction Conversion and Renovation,,B1,Consultants Fees D&S Structure          ,"3,312.12",30/01/2015,CAP,PELLINGS LLP                  
196,,,Poplar Permanent Expansion              ,CS034AB,New Construction Conversion and Renovation,,B4,Contractor - Site works                 ,"356,031.98",05/02/2015,CAP,MANSELL CONSTRUCTION SERVICES 
197,,,Lonesome IGC                            ,CS038AA,New Construction Conversion and Renovation,,B2,Site Surveys D&S Structure              ,"1,400.00",02/02/2015,CAP,REDACTED
198,,,Singlegate expansion                    ,CS049AA,New Construction Conversion and Renovation,,B4,Contractor - Site works                 ,"257,853.16",15/01/2015,CAP,MANSELL CONSTRUCTION SERVICES 
199,,,Wimbledon Park expansion                ,CS050AA,New Construction Conversion and Renovation,,B4,Contractor - Site works                 ,"3,405.00",28/01/2015,CAP,R DURTNELL & SONS LTD         
200,,,Schs Cap Maint & Accessibility          ,CS080SD,New Construction Conversion and Renovation,,B4,Contractor - Site works                 ,"1,770.00",22/01/2015,CAP,KC DRAINS LTD                 
201,,,Schs Cap Maint & Accessibility          ,CS080SD,New Construction Conversion and Renovation,,B4,Contractor - Site works                 ,"12,000.00",20/01/2015,CAP,SALTASH ENTERPRISES LTD       
202,,,Schs Cap Maint & Accessibility          ,CS080SD,New Construction Conversion and Renovation,,B4,Contractor - Site works                 ,"10,000.00",20/01/2015,CAP,SALTASH ENTERPRISES LTD       
203,,,Hatfield                                ,CS081SA,New Construction Conversion and Renovation,,B1,Consultants Fees D&S Structure          ,"7,500.00",31/01/2015,CAP,NPS PROPERTY CONSULTANTS LTD  
204,,,IT Equipment                            ,CT006EA,Vehicles Plant Equipment and Machinery,,D3,Equipment                               ,"33,408.00",30/01/2015,CAP,INSIGHT DIRECT (UK) LTD       
205,,,IT Equipment                            ,CT006EA,Vehicles Plant Equipment and Machinery,,D3,Equipment                               ,"1,380.00",30/01/2015,CAP,VIGLEN LIMITED                
206,,,IT Equipment                            ,CT006EA,Vehicles Plant Equipment and Machinery,,D3,Equipment                               ,"15,400.00",09/02/2015,CAP,VIGLEN LIMITED                
207,,,IT Equipment                            ,CT006EA,Vehicles Plant Equipment and Machinery,,D3,Equipment                               ,"4,872.00",02/02/2015,CAP,COOLSPIRIT LIMITED            
208,,,IT Equipment                            ,CT006EA,Vehicles Plant Equipment and Machinery,,D5,Software                                ,"158,052.00",30/01/2015,CAP,INSIGHT DIRECT (UK) LTD       
209,Central Services,Council tax collection,Local Taxation Services,E02100,Supplies & Services           ,Services                      ,DF11,Counsel's Fees                          ,"2,623.84",02/02/2015,REV,WELBECK LAW LLP               
210,Central Services,Council tax collection,Local Taxation Services,E02100,Supplies & Services           ,Services                      ,DF11,Counsel's Fees                          ,970,21/01/2015,REV,WELBECK LAW LLP               
211,Central Services,Council tax collection,Local Taxation Services,E02100,Supplies & Services           ,Comms and Computing           ,DG09,Computer Purchases - Misc               ,"2,151.68",26/01/2015,REV,CIVICA UK LIMITED             
212,Central Services,Council tax collection,Local Taxation Services,E02100,Supplies & Services           ,Comms and Computing           ,DG09,Computer Purchases - Misc               ,"1,025.00",29/01/2015,REV,INFORM CPI LTD                
213,Central Services,Council tax collection,Local Taxation Services,E02100,Supplies & Services           ,Comms and Computing           ,DG09,Computer Purchases - Misc               ,"6,875.00",04/02/2015,REV,CIVICA UK LIMITED             
214,Central Services,Council tax collection,Local Taxation Bailiffs,E02101,Supplies & Services           ,Comms and Computing           ,DG14,Telephones - Mobile                     ,"1,374.00",07/02/2015,REV,EVERYTHING EVERYWHERE         
215,Housing Services,HB Administration,Benefits Administration,E02120,Supplies & Services           ,Comms and Computing           ,DG09,Computer Purchases - Misc               ,"7,161.00",04/02/2015,REV,CIVICA UK LIMITED             
216,Housing Services,HB Administration,Local Welfare Support,E02123,Transfer Payments             ,Housing Benefits              ,FA95,Other Payments                          ,768.77,09/02/2015,REV,THE VINE PROJECT              
217,Housing Services,HB Administration,Local Welfare Support,E02123,Transfer Payments             ,Housing Benefits              ,FA95,Other Payments                          ,604,04/02/2015,REV,THE VINE PROJECT              
218,Housing Services,HB Administration,Local Welfare Support,E02123,Transfer Payments             ,Housing Benefits              ,FA95,Other Payments                          ,699.49,02/02/2015,REV,THE VINE PROJECT              
219,Housing Services,HB Administration,Local Welfare Support,E02123,Transfer Payments             ,Housing Benefits              ,FA95,Other Payments                          ,"20,000.00",26/02/2015,REV,POST OFFICE LTD               
220,Central Services,SupS Payroll,Payroll,E02140,Customer and client receipts  ,Charges                       ,RC02,Miscellaneous Charges S                 ,561.02,11/02/2015,REV,CRANMER PRIMARY SCHOOL        
221,Central Services,SupS Payroll,Trinity Project,E02141,Supplies & Services           ,Services                      ,DF03,Consultants                             ,"2,045.13",26/01/2015,REV,LONDON BOROUGH OF SUTTON      
222,Central Services,SupS Payroll,Trinity Project,E02141,Supplies & Services           ,Services                      ,DF03,Consultants                             ,"1,800.00",29/01/2015,REV,LONDON BOROUGH OF SUTTON      
223,Central Services,SupS Payroll,Trinity Project,E02141,Supplies & Services           ,Services                      ,DF03,Consultants                             ,"3,280.00",29/01/2015,REV,LONDON BOROUGH OF SUTTON      
224,Central Services,SupS Facilities,Post Room,E02220,Supplies & Services           ,Equip Furniture/Materials     ,DA01,Equipment - R & M                       ,-657.59,30/01/2015,REV,NEOPOST FINANCE LIMITED       
225,Central Services,SupS Facilities,Post Room,E02220,Supplies & Services           ,Comms and Computing           ,DG04,Postage - General                       ,848.77,26/01/2015,REV,STREETWISE COURIERS           
226,Central Services,SupS Facilities,Post Room,E02220,Supplies & Services           ,Comms and Computing           ,DG04,Postage - General                       ,583.14,31/01/2015,REV,STREETWISE COURIERS           
227,Central Services,SupS Facilities,Post Room,E02220,Supplies & Services           ,Comms and Computing           ,DG04,Postage - General                       ,940.79,09/02/2015,REV,STREETWISE COURIERS           
228,Central Services,SupS Facilities,Security Services,E02221,Employees                     ,Direct Employee Expenses      ,AA17,Agency Staff & Casual Paymts            ,"1,872.00",01/02/2015,REV,SIGHT & SOUND                 
229,Central Services,SupS Facilities,Security Services,E02221,Employees                     ,Direct Employee Expenses      ,AA17,Agency Staff & Casual Paymts            ,"2,581.92",01/02/2015,REV,SIGHT & SOUND                 
230,Central Services,SupS Facilities,Security Services,E02221,Employees                     ,Direct Employee Expenses      ,AA17,Agency Staff & Casual Paymts            ,"2,158.56",01/02/2015,REV,SIGHT & SOUND                 
231,Central Services,SupS Facilities,Security Services,E02221,Employees                     ,Direct Employee Expenses      ,AA17,Agency Staff & Casual Paymts            ,"1,965.60",01/02/2015,REV,SIGHT & SOUND                 
232,Central Services,SupS Facilities,Security Services,E02221,Employees                     ,Direct Employee Expenses      ,AA17,Agency Staff & Casual Paymts            ,"1,965.60",01/02/2015,REV,SIGHT & SOUND                 
233,Central Services,SupS Facilities,Civic Centre,E02222,Premises Related Expenditure  ,RepairsAlterations&MtceOfBldgs,BA29,BUILD MAINT MGT FEES                    ,"2,086.00",06/02/2015,REV,TOTAL COMPUTER NETWORKS       
234,Central Services,SupS Facilities,Facilities,E02231,Premises Related Expenditure  ,RepairsAlterations&MtceOfBldgs,BA02,ENERGY CONSERVATION                     ,795,05/02/2015,REV,SYSTEMS LINK                  
235,Central Services,SupS Facilities,Facilities,E02231,Premises Related Expenditure  ,RepairsAlterations&MtceOfBldgs,BA02,ENERGY CONSERVATION                     ,"1,552.10",23/01/2015,REV,ENERGY SAVING LIGHTING (UK) LT
236,Central Services,SupS Facilities,Facilities,E02231,Premises Related Expenditure  ,RepairsAlterations&MtceOfBldgs,BA02,ENERGY CONSERVATION                     ,"3,515.00",17/02/2015,REV,ENERGY SAVING LIGHTING (UK) LT
237,Central Services,SupS Facilities,Facilities,E02231,Premises Related Expenditure  ,RepairsAlterations&MtceOfBldgs,BA02,ENERGY CONSERVATION                     ,900,10/02/2015,REV,STARK SOFTWARE INTERNATIONAL  
238,Central Services,SupS Facilities,Facilities,E02231,Premises Related Expenditure  ,RepairsAlterations&MtceOfBldgs,BA02,ENERGY CONSERVATION                     ,"1,917.00",01/02/2015,REV,BERGEN ENERGI                 
239,Central Services,SupS Facilities,Facilities,E02231,Supplies & Services           ,Services                      ,DF09,Miscellaneous Fees                      ,"12,564.20",30/01/2015,REV,MARK GROUP                    
240,Central Services,SupS Facilities,FM External Fees,E02239,Premises Related Expenditure  ,RepairsAlterations&MtceOfBldgs,BA29,Build Maint Mgt Fees                    ,"15,892.05",16/02/2015,REV,COMPLEMENT CONSULTING LIMITED 
241,Central Services,SupS Facilities,Corporate Services Buildings,E02240,Premises Related Expenditure  ,RepairsAlterations&MtceOfBldgs,BA01,DDM - General Building                  ,"5,143.67",29/01/2015,REV,DMA SIGNS LTD                 
242,Central Services,SupS Facilities,Corporate Services Buildings,E02240,Premises Related Expenditure  ,RepairsAlterations&MtceOfBldgs,BA01,DDM - General Building                  ,576,28/01/2015,REV,KH FLOORING LTD               
243,Central Services,SupS Facilities,Corporate Services Buildings,E02240,Premises Related Expenditure  ,RepairsAlterations&MtceOfBldgs,BA05,DDM - Electrical                        ,594.84,20/01/2015,REV,EDMUNDSON ELECTRICAL LTD      
244,Central Services,SupS Facilities,Corporate Services Buildings,E02240,Premises Related Expenditure  ,Energy Costs                  ,BB02,Electricity                             ,"15,869.21",06/02/2015,REV,SCOTTISHPOWER                 
245,Central Services,SupS Facilities,Corporate Services Buildings,E02240,Premises Related Expenditure  ,Energy Costs                  ,BB02,Electricity                             ,548.13,02/02/2015,REV,SCOTTISHPOWER                 
246,Central Services,SupS Facilities,Corporate Services Buildings,E02240,Premises Related Expenditure  ,Energy Costs                  ,BB03,Gas (incl. Butane)                      ,557.29,05/02/2015,REV,GAZPROM MARKETING&TRADING LTD 
247,Central Services,SupS Facilities,Corporate Services Buildings,E02240,Premises Related Expenditure  ,Energy Costs                  ,BB03,Gas (incl. Butane)                      ,587.88,05/02/2015,REV,GAZPROM MARKETING&TRADING LTD 
248,Central Services,SupS Facilities,Corporate Services Buildings,E02240,Premises Related Expenditure  ,Energy Costs                  ,BB03,Gas (incl. Butane)                      ,"7,597.71",05/02/2015,REV,GAZPROM MARKETING&TRADING LTD 
249,Central Services,SupS Facilities,Corporate Services Buildings,E02240,Premises Related Expenditure  ,Water Services                ,BE01,Use of Water (Metered)                  ,"1,009.73",30/01/2015,REV,SUTTON AND EAST SURREY WATER  
250,Childrens & Education Services,Strategic Management,PDC,E02254,Premises Related Expenditure  ,Energy Costs                  ,BB02,Electricity                             ,"1,415.90",02/02/2015,REV,SCOTTISHPOWER                 
251,Childrens & Education Services,Strategic Management,PDC,E02254,Premises Related Expenditure  ,Energy Costs                  ,BB03,Gas (incl. Butane)                      ,"1,222.26",05/02/2015,REV,GAZPROM MARKETING&TRADING LTD 
252,Adult Social Care,OP 65 & Over Day Care,Pollards Hill Day Centre,E02270,Premises Related Expenditure  ,Cleaning and Domestic Supplies,BH03,Cleaning Services                       ,"3,093.61",01/11/2014,REV,BIRKIN CLEANING SERVICES LTD  
253,Cultural Env Reg&Plan Services,Parks & Open Spaces,E & R Buildings,E02344,Premises Related Expenditure  ,RepairsAlterations&MtceOfBldgs,BA05,DDM - Electrical                        ,534.85,29/01/2015,REV,EUROPA NATIONWIDE TECH.SER.LTD
254,Adult Social Care,PS u65 Day Care,C & H Buildings,E02345,Premises Related Expenditure  ,RepairsAlterations&MtceOfBldgs,BA01,DDM - General Building                  ,"1,275.00",13/02/2015,REV,SALTASH ENTERPRISES LTD       
255,Adult Social Care,PS u65 Day Care,C & H Buildings,E02345,Premises Related Expenditure  ,RepairsAlterations&MtceOfBldgs,BA01,DDM - General Building                  ,760,11/02/2015,REV,SUNA SUPPLIES LTD.            
256,Adult Social Care,PS u65 Day Care,C & H Buildings,E02345,Premises Related Expenditure  ,RepairsAlterations&MtceOfBldgs,BA01,DDM - General Building                  ,505.94,20/01/2015,REV,SALTASH ENTERPRISES LTD       
257,Adult Social Care,PS u65 Day Care,C & H Buildings,E02345,Premises Related Expenditure  ,RepairsAlterations&MtceOfBldgs,BA01,DDM - General Building                  ,846.55,12/01/2015,REV,SALTASH ENTERPRISES LTD       
258,Adult Social Care,PS u65 Day Care,C & H Buildings,E02345,Premises Related Expenditure  ,RepairsAlterations&MtceOfBldgs,BA01,DDM - General Building                  ,525,11/02/2015,REV,SUNA SUPPLIES LTD.            
259,Adult Social Care,PS u65 Day Care,C & H Buildings,E02345,Premises Related Expenditure  ,RepairsAlterations&MtceOfBldgs,BA01,DDM - General Building                  ,525.92,21/01/2015,REV,SALTASH ENTERPRISES LTD       
260,Adult Social Care,PS u65 Day Care,C & H Buildings,E02345,Premises Related Expenditure  ,RepairsAlterations&MtceOfBldgs,BA03,DDM - Mechanical                        ,"1,145.88",22/01/2015,REV,EUROPA NATIONWIDE TECH.SER.LTD
261,Adult Social Care,PS u65 Day Care,C & H Buildings,E02345,Premises Related Expenditure  ,RepairsAlterations&MtceOfBldgs,BA03,DDM - Mechanical                        ,546.94,22/01/2015,REV,EUROPA NATIONWIDE TECH.SER.LTD
262,Cultural Env Reg&Plan Services,Parks & Open Spaces,Leisure Buildings,E02350,Premises Related Expenditure  ,RepairsAlterations&MtceOfBldgs,BA05,DDM - Electrical                        ,579.94,29/01/2015,REV,EUROPA NATIONWIDE TECH.SER.LTD
263,Central Services,SupS DOF,AD RESOURCES,E04061,Supplies & Services           ,Services                      ,DF03,CONSULTANTS                             ,"6,900.00",12/02/2015,REV,PUBLIC SECTOR CONSULTANTS     
264,Central Services,SupS DOF,AD RESOURCES,E04061,Supplies & Services           ,Comms and Computing           ,DG50,Other IT Expenditure                    ,"7,350.00",19/12/2014,REV,REAL ASSET MANAGEMENT PLC     
265,Central Services,Officer support time,Corporately Funded Items,E04065,Supplies & Services           ,Services                      ,DF11,Counsel's Fees                          ,"1,400.00",14/01/2015,REV,REDACTED
266,Central Services,SupS Corporate Finance,Corporate Accountancy,E06209,Supplies & Services           ,Services                      ,DF58,Audit Fee                               ,"56,623.00",28/01/2015,REV,ERNST & YOUNG LLP             
267,Central Services,SupS Strategic Finance,Business Planning,E06221,Employees                     ,Direct Employee Expenses      ,AA17,Agency Staff & Casual Paymts            ,"3,600.00",23/01/2015,REV,RANDSTAD FIN & PROF LTD.      
268,Central Services,SupS Strategic Finance,Business Planning,E06221,Employees                     ,Direct Employee Expenses      ,AA17,Agency Staff & Casual Paymts            ,"2,000.00",12/01/2015,REV,RANDSTAD FIN & PROF LTD.      
269,Central Services,SupS Strategic Finance,Business Planning,E06221,Employees                     ,Direct Employee Expenses      ,AA17,Agency Staff & Casual Paymts            ,825,12/01/2015,REV,RANDSTAD FIN & PROF LTD.      
270,Central Services,SupS Strategic Finance,Treasury & Insurance,E06222,Employees                     ,Direct Employee Expenses      ,AA17,Agency Staff & Casual Paymts            ,"7,050.00",17/02/2015,REV,RANDSTAD FIN & PROF LTD.      
271,Central Services,SupS Strategic Finance,Treasury & Insurance,E06222,Employees                     ,Direct Employee Expenses      ,AA17,Agency Staff & Casual Paymts            ,"7,050.00",02/02/2015,REV,RANDSTAD FIN & PROF LTD.      
272,Central Services,SupS Strategic Finance,Treasury & Insurance,E06222,Supplies & Services           ,Comms and Computing           ,DG02,Software Licences                       ,795,07/02/2015,REV,QSL LTD                       
273,Central Services,GENERATED ACCOUNT,Parking Cash Collect'n Contrct,E06225,Third Party Payments          ,Private Contractors           ,EH02,Miscellaneous Hired Services            ,"9,168.74",31/01/2015,REV,BANKING AUTOMATION LTD        
274,Central Services,GENERATED ACCOUNT,Parking Cash Collect'n Contrct,E06225,Third Party Payments          ,Private Contractors           ,EH02,Miscellaneous Hired Services            ,"8,888.34",30/11/2014,REV,BANKING AUTOMATION LTD        
275,Central Services,GENERATED ACCOUNT,Parking Cash Collect'n Contrct,E06225,Third Party Payments          ,Private Contractors           ,EH02,Miscellaneous Hired Services            ,530.1,30/11/2014,REV,BANKING AUTOMATION LTD        
276,Central Services,GENERATED ACCOUNT,Parking Cash Collect'n Contrct,E06225,Third Party Payments          ,Private Contractors           ,EH02,Miscellaneous Hired Services            ,"8,832.46",31/12/2014,REV,BANKING AUTOMATION LTD        
277,Central Services,GENERATED ACCOUNT,Parking Cash Collect'n Contrct,E06225,Third Party Payments          ,Private Contractors           ,EH02,Miscellaneous Hired Services            ,599.85,31/01/2015,REV,BANKING AUTOMATION LTD        
278,Central Services,GENERATED ACCOUNT,Parking Cash Collect'n Contrct,E06225,Third Party Payments          ,Private Contractors           ,EH02,Miscellaneous Hired Services            ,599.85,31/12/2014,REV,BANKING AUTOMATION LTD        
279,Central Services,SupS DOF,Service Accountancy,E06227,Employees                     ,Direct Employee Expenses      ,AA17,Agency Staff & Casual Paymts            ,"6,900.00",02/02/2015,REV,RANDSTAD FIN & PROF LTD.      
280,Central Services,Land Charges,Land Charges,E10283,Supplies & Services           ,Expenses                      ,DH16,Compensation Payments                   ,"2,222.50",05/02/2015,REV,REDACTED
281,Central Services,Registration of electors,Electoral Registration,E10285,Supplies & Services           ,Prntng Stnry Gen Off Exp      ,DE03,Stationery                              ,"1,084.87",01/01/2015,REV,FINANCIAL DATA MANAGEMENT PLC 
282,Central Services,Registration of electors,Electoral Registration,E10285,Supplies & Services           ,Comms and Computing           ,DG04,Postage - General                       ,"2,339.04",30/01/2015,REV,FINANCIAL DATA MANAGEMENT PLC 
283,Central Services,Registration of electors,Electoral Registration,E10285,Supplies & Services           ,Comms and Computing           ,DG04,Postage - General                       ,692.01,09/02/2015,REV,ROYAL MAIL GROUP LTD          
284,Central Services,SupS Legal,Shared Legal Service,E10288,Employees                     ,Indirect Employee Expenses    ,AB02,Recruitment Adverts                     ,"1,003.00",30/01/2015,REV,PENNA COMMUNICATIONS (NO 2 A/C
285,Central Services,SupS Legal,Shared Legal Service,E10288,Employees                     ,Indirect Employee Expenses    ,AB02,Recruitment Adverts                     ,"5,030.00",15/01/2015,REV,PENNA COMMUNICATIONS (NO 2 A/C
286,Central Services,SupS Legal,Shared Legal Service,E10288,Supplies & Services           ,Equip Furniture/Materials     ,DA80,Books                                   ,"13,542.16",06/02/2015,REV,THOMSON REUTERS               
287,Central Services,SupS Legal,Shared Legal Service,E10288,Supplies & Services           ,Services                      ,DF11,Counsel's Fees                          ,"1,690.00",10/02/2015,REV,REDACTED
288,Central Services,SupS Legal,Shared Legal Service,E10288,Supplies & Services           ,Comms and Computing           ,DG02,Software Licences                       ,"1,225.00",05/02/2015,REV,ZYLPHA LIMITED                
289,Central Services,SupS Legal,Shared Legal Service,E10288,Supplies & Services           ,Comms and Computing           ,DG50,Other IT Expenditure                    ,"4,500.00",31/01/2015,REV,ZYLPHA LIMITED                
290,Central Services,SupS Legal,Richmond Legal,E10289,Supplies & Services           ,Services                      ,DF11,Counsel's Fees                          ,"2,650.00",28/01/2015,REV,REDACTED
291,Central Services,SupS Legal,Richmond Legal,E10289,Supplies & Services           ,Services                      ,DF11,Counsel's Fees                          ,"1,000.00",20/02/2015,REV,REDACTED
292,Central Services,SupS Legal,Richmond Legal,E10289,Supplies & Services           ,Services                      ,DF11,Counsel's Fees                          ,"1,800.00",19/02/2015,REV,REDACTED
293,Central Services,SupS Legal,Richmond Legal,E10289,Supplies & Services           ,Services                      ,DF95,Services from Provider                  ,"5,734.00",31/12/2014,REV,SHARPE PRITCHARD SOLICITORS   
294,Central Services,SupS Legal,Richmond Legal,E10289,Supplies & Services           ,Services                      ,DF95,Services from Provider                  ,"3,184.00",31/12/2014,REV,SHARPE PRITCHARD SOLICITORS   
295,Central Services,SupS Legal,K&S Shared Legal                        ,E10291,Supplies & Services           ,Equip Furniture/Materials     ,DA80,Books                                   ,"13,542.16",06/02/2015,REV,THOMSON REUTERS               
296,Central Services,SupS Legal,K&S Shared Legal                        ,E10291,Supplies & Services           ,Comms and Computing           ,DG02,Software Licences                       ,"1,225.00",05/02/2015,REV,ZYLPHA LIMITED                
297,Central Services,SupS Legal,K&S Shared Legal                        ,E10291,Supplies & Services           ,Comms and Computing           ,DG50,Other IT Expenditure                    ,"4,500.00",31/01/2015,REV,ZYLPHA LIMITED                
298,Central Services,SupS Legal,K&S Shared Legal                        ,E10291,Supplies & Services           ,Expenses                      ,DH16,Compensation Payments                   ,"1,050.00",04/02/2015,REV,RB OF KINGSTON UPON THAMES    
299,Central Services,SupS Legal,Kingston Legal                          ,E10292,Supplies & Services           ,Services                      ,DF11,Counsel's Fees                          ,750,30/01/2015,REV,REDACTED
300,Central Services,SupS Legal,Kingston Legal                          ,E10292,Supplies & Services           ,Services                      ,DF95,Services from Provider                  ,750,02/02/2015,REV,GVA GRIMLEY LTD               
301,Central Services,SupS Legal,Kingston Legal                          ,E10292,Supplies & Services           ,Services                      ,DF95,Services from Provider                  ,900,30/01/2015,REV,DLA PIPER UK                  
302,Central Services,SupS Legal,Sutton Legal                            ,E10293,Supplies & Services           ,Services                      ,DF11,Counsel's Fees                          ,"2,000.00",31/10/2014,REV,REDACTED
303,Central Services,SupS Legal,Sutton Legal                            ,E10293,Supplies & Services           ,Services                      ,DF11,Counsel's Fees                          ,510,19/02/2015,REV,REDACTED
304,Central Services,SupS Legal,Sutton Legal                            ,E10293,Supplies & Services           ,Services                      ,DF11,Counsel's Fees                          ,"1,350.00",20/01/2015,REV,REDACTED
305,Central Services,SupS Legal,Sutton Legal                            ,E10293,Supplies & Services           ,Services                      ,DF11,Counsel's Fees                          ,517.5,05/02/2015,REV,REDACTED
306,Central Services,SupS Legal,Sutton Legal                            ,E10293,Supplies & Services           ,Services                      ,DF11,Counsel's Fees                          ,"10,675.00",12/01/2015,REV,REDACTED
307,Central Services,SupS Legal,Sutton Legal                            ,E10293,Supplies & Services           ,Services                      ,DF14,Doctors and Other Fees                  ,"3,542.20",09/02/2015,REV,REDACTED
308,Central Services,SupS Legal,Sutton Legal                            ,E10293,Supplies & Services           ,Services                      ,DF14,Doctors and Other Fees                  ,670,01/09/2014,REV,PHILLIPS & GUPTA LIMITED      
309,Central Services,SupS Legal,Sutton Legal                            ,E10293,Supplies & Services           ,Services                      ,DF14,Doctors and Other Fees                  ,728,25/01/2015,REV,REDACTED
310,Central Services,SupS Legal,Sutton Legal                            ,E10293,Supplies & Services           ,Services                      ,DF95,Services from Provider                  ,-583.75,16/01/2015,REV,SEARCHFLOW LTD                
311,Central Services,SupS Legal,Sutton Legal                            ,E10293,Supplies & Services           ,Services                      ,DF95,Services from Provider                  ,589.56,16/01/2015,REV,SEARCHFLOW LTD                
312,Central Services,SupS Legal,Sutton Legal                            ,E10293,Supplies & Services           ,Services                      ,DF95,Services from Provider                  ,"2,222.50",06/02/2015,REV,REDACTED
313,Central Services,SupS Legal,Sutton Legal                            ,E10293,Supplies & Services           ,Services                      ,DF95,Services from Provider                  ,"1,041.76",15/01/2015,REV,SEARCHFLOW LTD                
314,Central Services,SupS Legal,Achieving for Children (AFC),E10295,Supplies & Services           ,Services                      ,DF11,Counsel's Fees                          ,616.67,17/12/2014,REV,REDACTED
315,Central Services,SupS Legal,Achieving for Children (AFC),E10295,Supplies & Services           ,Services                      ,DF11,Counsel's Fees                          ,"2,015.00",12/01/2015,REV,REDACTED
316,Central Services,SupS Legal,Achieving for Children (AFC),E10295,Supplies & Services           ,Services                      ,DF11,Counsel's Fees                          ,"1,820.00",06/02/2015,REV,REDACTED
317,Central Services,SupS Legal,Achieving for Children (AFC),E10295,Supplies & Services           ,Services                      ,DF11,Counsel's Fees                          ,"1,820.00",17/02/2015,REV,REDACTED
318,Central Services,SupS Legal,Achieving for Children (AFC),E10295,Supplies & Services           ,Services                      ,DF11,Counsel's Fees                          ,700,05/02/2015,REV,REDACTED
319,Central Services,SupS Legal,Achieving for Children (AFC),E10295,Supplies & Services           ,Services                      ,DF11,Counsel's Fees                          ,"6,300.00",27/10/2014,REV,REDACTED
320,Central Services,SupS Legal,Achieving for Children (AFC),E10295,Supplies & Services           ,Services                      ,DF11,Counsel's Fees                          ,"3,350.00",04/02/2015,REV,REDACTED
321,Central Services,SupS Legal,Achieving for Children (AFC),E10295,Supplies & Services           ,Services                      ,DF11,Counsel's Fees                          ,"1,250.00",30/01/2015,REV,REDACTED
322,Central Services,SupS Legal,Achieving for Children (AFC),E10295,Supplies & Services           ,Services                      ,DF11,Counsel's Fees                          ,577.5,30/01/2015,REV,REDACTED
323,Central Services,SupS Legal,Achieving for Children (AFC),E10295,Supplies & Services           ,Services                      ,DF11,Counsel's Fees                          ,800,06/02/2015,REV,REDACTED
324,Central Services,SupS Legal,Achieving for Children (AFC),E10295,Supplies & Services           ,Services                      ,DF11,Counsel's Fees                          ,607.5,02/02/2015,REV,REDACTED
325,Central Services,SupS Legal,Achieving for Children (AFC),E10295,Supplies & Services           ,Services                      ,DF11,Counsel's Fees                          ,600,04/12/2014,REV,REDACTED
326,Central Services,SupS Legal,Achieving for Children (AFC),E10295,Supplies & Services           ,Services                      ,DF11,Counsel's Fees                          ,"1,750.00",28/01/2015,REV,REDACTED
327,Central Services,SupS Legal,Achieving for Children (AFC),E10295,Supplies & Services           ,Services                      ,DF11,Counsel's Fees                          ,"2,835.00",03/11/2014,REV,REDACTED
328,Central Services,SupS Legal,Achieving for Children (AFC),E10295,Supplies & Services           ,Services                      ,DF11,Counsel's Fees                          ,500,30/01/2015,REV,REDACTED
329,Central Services,SupS Legal,Achieving for Children (AFC),E10295,Supplies & Services           ,Services                      ,DF11,Counsel's Fees                          ,"1,250.00",16/02/2015,REV,REDACTED
330,Central Services,SupS Legal,Achieving for Children (AFC),E10295,Supplies & Services           ,Services                      ,DF11,Counsel's Fees                          ,"1,120.00",23/12/2014,REV,REDACTED
331,Central Services,SupS Legal,Achieving for Children (AFC),E10295,Supplies & Services           ,Services                      ,DF11,Counsel's Fees                          ,520,12/01/2015,REV,REDACTED
332,Central Services,SupS Legal,Achieving for Children (AFC),E10295,Supplies & Services           ,Services                      ,DF11,Counsel's Fees                          ,"1,425.00",19/01/2015,REV,REDACTED
333,Central Services,SupS Legal,Achieving for Children (AFC),E10295,Supplies & Services           ,Services                      ,DF11,Counsel's Fees                          ,"1,250.00",24/02/2015,REV,REDACTED
334,Central Services,SupS Legal,Achieving for Children (AFC),E10295,Supplies & Services           ,Services                      ,DF11,Counsel's Fees                          ,"1,000.00",09/02/2015,REV,REDACTED
335,Central Services,SupS Legal,Achieving for Children (AFC),E10295,Supplies & Services           ,Services                      ,DF14,Doctors and Other Fees                  ,654.7,09/02/2015,REV,SECECETRA EXPERT SERVICES     
336,Central Services,SupS Legal,Achieving for Children (AFC),E10295,Supplies & Services           ,Services                      ,DF14,Doctors and Other Fees                  ,"1,689.35",31/10/2014,REV,GARY TAYLOR ASSOCIATES LTD    
337,Central Services,SupS Legal,Achieving for Children (AFC),E10295,Supplies & Services           ,Services                      ,DF14,Doctors and Other Fees                  ,"1,860.00",15/12/2014,REV,REDACTED
338,Central Services,SupS Legal,Achieving for Children (AFC),E10295,Supplies & Services           ,Services                      ,DF95,Services from Provider                  ,665.5,12/02/2015,REV,JAMMA UMOJA LTD               
339,Central Services,SupS Legal,Achieving for Children (AFC),E10295,Supplies & Services           ,Services                      ,DF95,Services from Provider                  ,"5,090.00",23/01/2015,REV,CORAL COMMUNITY ASSESSMENTS   
340,Central Services,SupS Legal,Achieving for Children (AFC),E10295,Supplies & Services           ,Services                      ,DF95,Services from Provider                  ,"4,830.35",06/11/2014,REV,WARD HADAWAY                  
341,Central Services,SupS Legal,Achieving for Children (AFC),E10295,Supplies & Services           ,Services                      ,DF95,Services from Provider                  ,665.5,12/02/2015,REV,JAMMA UMOJA LTD               
342,Central Services,SupS Legal,Achieving for Children (AFC),E10295,Supplies & Services           ,Services                      ,DF95,Services from Provider                  ,665.5,12/02/2015,REV,JAMMA UMOJA LTD               
343,Central Services,SupS Legal,Achieving for Children (AFC),E10295,Supplies & Services           ,Services                      ,DF95,Services from Provider                  ,665.5,12/02/2015,REV,JAMMA UMOJA LTD               
344,Central Services,SupS Legal,Achieving for Children (AFC),E10295,Supplies & Services           ,Services                      ,DF95,Services from Provider                  ,665.5,12/02/2015,REV,JAMMA UMOJA LTD               
345,Central Services,SupS Legal,Achieving for Children (AFC),E10295,Supplies & Services           ,Services                      ,DF95,Services from Provider                  ,594,06/11/2014,REV,WARD HADAWAY                  
346,Central Services,SupS Legal,Achieving for Children (AFC),E10295,Supplies & Services           ,Services                      ,DF95,Services from Provider                  ,665.5,12/02/2015,REV,JAMMA UMOJA LTD               
347,Central Services,SupS IT,Social Care Info System (SCI)           ,E14357,Employees                     ,Direct Employee Expenses      ,AA17,Agency Staff & Casual Paymts            ,"3,591.20",02/02/2015,REV,REDACTED
348,Central Services,SupS IT,Social Care Info System (SCI)           ,E14357,Employees                     ,Direct Employee Expenses      ,AA17,Agency Staff & Casual Paymts            ,"6,823.28",02/02/2015,REV,REDACTED
349,Central Services,SupS IT,Social Care Info System (SCI)           ,E14357,Employees                     ,Direct Employee Expenses      ,AA17,Agency Staff & Casual Paymts            ,"1,815.00",04/02/2015,REV,HAYS RECRUITING EXPERTS       
350,Central Services,SupS IT,Social Care Info System (SCI)           ,E14357,Employees                     ,Direct Employee Expenses      ,AA17,Agency Staff & Casual Paymts            ,"3,025.00",14/01/2015,REV,HAYS RECRUITING EXPERTS       
351,Central Services,SupS IT,Social Care Info System (SCI)           ,E14357,Employees                     ,Direct Employee Expenses      ,AA17,Agency Staff & Casual Paymts            ,"2,795.00",22/12/2014,REV,HAYS RECRUITING EXPERTS       
352,Central Services,SupS IT,Social Care Info System (SCI)           ,E14357,Employees                     ,Direct Employee Expenses      ,AA17,Agency Staff & Casual Paymts            ,"3,025.00",21/01/2015,REV,HAYS RECRUITING EXPERTS       
353,Central Services,SupS IT,Social Care Info System (SCI)           ,E14357,Employees                     ,Direct Employee Expenses      ,AA17,Agency Staff & Casual Paymts            ,"2,420.00",28/01/2015,REV,HAYS RECRUITING EXPERTS       
354,Central Services,SupS IT,BI IT Projects,E14360,Employees                     ,Direct Employee Expenses      ,AA17,Agency Staff & Casual Paymts            ,"3,800.00",27/01/2015,REV,REDACTED
355,Central Services,SupS IT,BI IT Projects,E14360,Supplies & Services           ,Expenses                      ,DH02,Conferences                             ,"4,800.00",03/02/2015,REV,DOTTED EYES LTD               
356,CS -Oth Operating Inc & Expend,SupS Codes No Longer Used,No longer used,E14361,Supplies & Services           ,Comms and Computing           ,DG05,Telephones - Gen-Creditors              ,795,31/01/2015,REV,AST CONNECTIONS LTD           
357,CS -Oth Operating Inc & Expend,SupS Codes No Longer Used,No longer used,E14361,Supplies & Services           ,Comms and Computing           ,DG05,Telephones - Gen-Creditors              ,-677.36,06/02/2015,REV,AST CONNECTIONS LTD           
358,Central Services,SupS IT,AD I&T,E14363,Employees                     ,Direct Employee Expenses      ,AA17,Agency Staff & Casual Paymts            ,"9,817.50",28/01/2015,REV,REDACTED
359,Central Services,SupS IT,Systems & Projects,E14366,Employees                     ,Direct Employee Expenses      ,AA17,Agency Staff & Casual Paymts            ,"1,500.10",11/02/2015,REV,NUMBER 10 INTERIM LTD         
360,Central Services,SupS IT,Systems & Projects,E14366,Employees                     ,Direct Employee Expenses      ,AA17,Agency Staff & Casual Paymts            ,"1,500.10",19/02/2015,REV,NUMBER 10 INTERIM LTD         
361,Central Services,SupS IT,Systems & Projects,E14366,Employees                     ,Direct Employee Expenses      ,AA17,Agency Staff & Casual Paymts            ,"1,500.10",04/02/2015,REV,NUMBER 10 INTERIM LTD         
362,Central Services,SupS IT,Systems & Projects,E14366,Employees                     ,Direct Employee Expenses      ,AA17,Agency Staff & Casual Paymts            ,"2,100.14",22/01/2015,REV,NUMBER 10 INTERIM LTD         
363,Central Services,SupS IT,Systems & Projects,E14366,Employees                     ,Direct Employee Expenses      ,AA17,Agency Staff & Casual Paymts            ,"3,000.20",02/02/2015,REV,NUMBER 10 INTERIM LTD         
364,Central Services,SupS IT,Systems & Projects,E14366,Employees                     ,Direct Employee Expenses      ,AA17,Agency Staff & Casual Paymts            ,"2,957.34",04/02/2015,REV,NUMBER 10 INTERIM LTD         
365,Central Services,SupS IT,Systems & Projects,E14366,Employees                     ,Direct Employee Expenses      ,AA17,Agency Staff & Casual Paymts            ,"1,500.10",15/01/2015,REV,NUMBER 10 INTERIM LTD         
366,Central Services,SupS IT,Systems & Projects,E14366,Supplies & Services           ,Comms and Computing           ,DG02,Software Licences                       ,"1,200.00",01/01/2015,REV,GEOPLAN                       
367,Central Services,SupS IT,Systems & Projects,E14366,Supplies & Services           ,Comms and Computing           ,DG02,Software Licences                       ,"2,625.00",03/02/2015,REV,ME LEARNING                   
368,Central Services,SupS IT,Systems & Projects,E14366,Supplies & Services           ,Comms and Computing           ,DG07,Computer Software                       ,860,23/01/2015,REV,DOTTED EYES LTD               
369,Central Services,SupS IT,Systems & Projects,E14366,Supplies & Services           ,Comms and Computing           ,DG50,Other IT Expenditure                    ,"1,557.84",26/01/2015,REV,CIVICA UK LIMITED             
370,Central Services,SupS IT,Operations & Telecomms,E14367,Employees                     ,Direct Employee Expenses      ,AA17,Agency Staff & Casual Paymts            ,"1,400.00",05/01/2015,REV,REDACTED
371,Central Services,SupS IT,Operations & Telecomms,E14367,Employees                     ,Direct Employee Expenses      ,AA17,Agency Staff & Casual Paymts            ,"4,155.00",30/01/2015,REV,REDACTED
372,Central Services,SupS IT,Operations & Telecomms,E14367,Employees                     ,Direct Employee Expenses      ,AA17,Agency Staff & Casual Paymts            ,"3,010.00",05/01/2015,REV,REDACTED
373,Central Services,SupS IT,Operations & Telecomms,E14367,Supplies & Services           ,Comms and Computing           ,DG15,Network Maintenance                     ,"8,225.00",08/01/2015,REV,NITRO                         
374,Central Services,SupS IT,Operations & Telecomms,E14367,Supplies & Services           ,Comms and Computing           ,DG54,Corporate Telephones                    ,"4,619.92",17/12/2014,REV,ORANGE P'MENT PRO'SING AIRTIME
375,Central Services,SupS IT,Operations & Telecomms,E14367,Supplies & Services           ,Comms and Computing           ,DG54,Corporate Telephones                    ,"4,731.30",19/01/2015,REV,VIRGIN MEDIA PAYMENTS LTD     
376,Central Services,SupS IT,Operations & Telecomms,E14367,Supplies & Services           ,Comms and Computing           ,DG54,Corporate Telephones                    ,"2,593.11",02/02/2015,REV,COLT TELECOMMUNICATIONS       
377,Central Services,SupS IT,Operations & Telecomms,E14367,Supplies & Services           ,Comms and Computing           ,DG54,Corporate Telephones                    ,"8,664.17",01/02/2015,REV,VIRGIN MEDIA PAYMENTS LTD     
378,Central Services,SupS IT,Operations & Telecomms,E14367,Supplies & Services           ,Comms and Computing           ,DG54,Corporate Telephones                    ,"4,780.70",04/11/2014,REV,T MOBILE (UK)                 
379,Central Services,SupS IT,Operations & Telecomms,E14367,Supplies & Services           ,Comms and Computing           ,DG54,Corporate Telephones                    ,"4,331.22",04/02/2015,REV,T MOBILE (UK)                 
380,Central Services,SupS IT,Distributed Services,E14368,Supplies & Services           ,Comms and Computing           ,DG63,Software Licences - Data                ,"2,369.00",18/02/2015,REV,NETFORT TECHNOLOGIES LTD      
381,Central Services,SupS IT,Distributed Services,E14368,Supplies & Services           ,Comms and Computing           ,DG63,Software Licences - Data                ,"2,690.15",26/01/2015,REV,HANDD BUSINESS SOLUTIONS LTD  
382,Central Services,SupS IT,Distributed Services,E14368,Supplies & Services           ,Comms and Computing           ,DG63,Software Licences - Data                ,"15,186.00",30/01/2015,REV,FORDWAY LTD                   
383,Central Services,SupS IT,Distributed Services,E14368,Supplies & Services           ,Comms and Computing           ,DG63,Software Licences - Data                ,"5,267.00",18/02/2015,REV,NETFORT TECHNOLOGIES LTD      
384,Central Services,SupS IT,Distributed Services,E14368,Supplies & Services           ,Comms and Computing           ,DG63,Software Licences - Data                ,815.2,26/01/2015,REV,HANDD BUSINESS SOLUTIONS LTD  
385,Central Services,SupS IT,Distributed Services,E14368,Supplies & Services           ,Comms and Computing           ,DG63,Software Licences - Data                ,"142,992.00",30/01/2015,REV,INSIGHT DIRECT (UK) LTD       
386,Central Services,SupS IT,Distributed Services,E14368,Supplies & Services           ,Comms and Computing           ,DG65,Application Licences                    ,"1,500.00",28/01/2015,REV,NETWORK TECHNOLOGY SOLUTIONS  
387,Central Services,SupS IT,Distributed Services,E14368,Supplies & Services           ,Comms and Computing           ,DG65,Application Licences                    ,"2,188.24",28/01/2015,REV,NETWORK TECHNOLOGY SOLUTIONS  
388,Central Services,SupS IT,Distributed Services,E14368,Supplies & Services           ,Comms and Computing           ,DG65,Application Licences                    ,"8,455.88",28/01/2015,REV,NETWORK TECHNOLOGY SOLUTIONS  
389,Central Services,SupS IT,No longer used,E14371,Employees                     ,Direct Employee Expenses      ,AA17,Agency Staff & Casual Paymts            ,"3,390.00",14/01/2015,REV,HAYS RECRUITING EXPERTS       
390,Central Services,SupS IT,No longer used,E14371,Employees                     ,Direct Employee Expenses      ,AA17,Agency Staff & Casual Paymts            ,"1,388.00",21/01/2015,REV,HAYS RECRUITING EXPERTS       
391,Central Services,SupS IT,No longer used,E14371,Employees                     ,Direct Employee Expenses      ,AA17,Agency Staff & Casual Paymts            ,"2,034.00",30/12/2014,REV,HAYS RECRUITING EXPERTS       
392,Central Services,SupS IT,No longer used,E14371,Employees                     ,Direct Employee Expenses      ,AA17,Agency Staff & Casual Paymts            ,"2,060.00",20/01/2015,REV,REDACTED
393,Central Services,SupS IT,No longer used,E14371,Employees                     ,Direct Employee Expenses      ,AA17,Agency Staff & Casual Paymts            ,"3,390.00",30/12/2014,REV,HAYS RECRUITING EXPERTS       
394,Central Services,SupS IT,No longer used,E14371,Employees                     ,Direct Employee Expenses      ,AA17,Agency Staff & Casual Paymts            ,"2,060.00",27/01/2015,REV,REDACTED
395,Central Services,SupS IT,No longer used,E14371,Employees                     ,Direct Employee Expenses      ,AA17,Agency Staff & Casual Paymts            ,"3,390.00",04/02/2015,REV,HAYS RECRUITING EXPERTS       
396,Central Services,SupS IT,No longer used,E14371,Employees                     ,Direct Employee Expenses      ,AA17,Agency Staff & Casual Paymts            ,"2,002.00",21/01/2015,REV,HAYS RECRUITING EXPERTS       
397,Central Services,SupS IT,No longer used,E14371,Employees                     ,Direct Employee Expenses      ,AA17,Agency Staff & Casual Paymts            ,800,16/01/2015,REV,REDACTED
398,Central Services,SupS IT,No longer used,E14371,Employees                     ,Direct Employee Expenses      ,AA17,Agency Staff & Casual Paymts            ,"11,200.00",16/01/2015,REV,MILESTONES COMMUNICATIONS LTD 
399,Highways & Transport Services,Hwys/Rds (struct) not split,C'way & F'way Mtce,G00121,Third Party Payments          ,Private Contractors           ,EH56,CARRIAGEWAY/FWAY MAINT                  ,533.8,11/02/2015,REV,FM CONWAY LTD                 
400,Highways & Transport Services,Hwys/Rds (struct) not split,C'way & F'way Mtce,G00121,Third Party Payments          ,Private Contractors           ,EH56,CARRIAGEWAY/FWAY MAINT                  ,724.57,11/02/2015,REV,FM CONWAY LTD                 
401,Highways & Transport Services,Hwys/Rds (struct) not split,Surf Water Drainage,G00123,Third Party Payments          ,Private Contractors           ,EH56,Carriageway/Fway Maint                  ,650,30/01/2015,REV,STILLWATER ASSOCIATES         
402,Highways & Transport Services,Repair prin/oth rds not split,Walk Sheets,G00127,Third Party Payments          ,Private Contractors           ,EH10,Contract Payments                       ,"2,075.00",03/02/2015,REV,FM CONWAY LTD                 
403,Highways & Transport Services,Repair prin/oth rds not split,Walk Sheets,G00127,Third Party Payments          ,Private Contractors           ,EH56,Carriageway/Fway Maint                  ,806.36,11/02/2015,REV,FM CONWAY LTD                 
404,Highways & Transport Services,Repair prin/oth rds not split,Walk Sheets,G00127,Third Party Payments          ,Private Contractors           ,EH56,Carriageway/Fway Maint                  ,"1,204.69",03/02/2015,REV,FM CONWAY LTD                 
405,Highways & Transport Services,Repair prin/oth rds not split,Walk Sheets,G00127,Third Party Payments          ,Private Contractors           ,EH56,Carriageway/Fway Maint                  ,"8,432.83",03/02/2015,REV,FM CONWAY LTD                 
406,Highways & Transport Services,Repair prin/oth rds not split,Walk Sheets,G00127,Third Party Payments          ,Private Contractors           ,EH56,Carriageway/Fway Maint                  ,"19,991.35",03/02/2015,REV,FM CONWAY LTD                 
407,Highways & Transport Services,Repair prin/oth rds not split,Walk Sheets,G00127,Third Party Payments          ,Private Contractors           ,EH56,Carriageway/Fway Maint                  ,"2,166.05",11/02/2015,REV,FM CONWAY LTD                 
408,Highways & Transport Services,Repair prin/oth rds not split,Walk Sheets,G00127,Third Party Payments          ,Private Contractors           ,EH56,Carriageway/Fway Maint                  ,"8,972.18",10/02/2015,REV,FM CONWAY LTD                 
409,Highways & Transport Services,Repair prin/oth rds not split,Walk Sheets,G00127,Third Party Payments          ,Private Contractors           ,EH56,Carriageway/Fway Maint                  ,"11,175.22",03/02/2015,REV,FM CONWAY LTD                 
410,Highways & Transport Services,Repair prin/oth rds not split,Walk Sheets,G00127,Third Party Payments          ,Private Contractors           ,EH56,Carriageway/Fway Maint                  ,"1,018.92",11/02/2015,REV,FM CONWAY LTD                 
411,Highways & Transport Services,Repair prin/oth rds not split,Walk Sheets,G00127,Third Party Payments          ,Private Contractors           ,EH56,Carriageway/Fway Maint                  ,"2,552.33",11/02/2015,REV,FM CONWAY LTD                 
412,Highways & Transport Services,Transport Plg/Policy/Strategy,CPZ implementation & Consultat,G00211,Supplies & Services           ,Services                      ,DF02,Misc Advertising/Publicity              ,610.74,16/01/2015,REV,NEWSQUEST (LONDON)LTD         
413,Highways & Transport Services,Transport Plg/Policy/Strategy,CPZ implementation & Consultat,G00211,Third Party Payments          ,Private Contractors           ,EH56,Carriageway/Fway Maint                  ,"1,100.72",11/02/2015,REV,FM CONWAY LTD                 
414,Highways & Transport Services,Street Lighting.,Street Lighting .,G00260,Premises Related Expenditure  ,Energy Costs                  ,BB02,Electricity                             ,"50,844.59",04/02/2015,REV,SCOTTISHPOWER                 
415,Highways & Transport Services,Street Lighting.,Street Lighting .,G00260,Third Party Payments          ,Private Contractors           ,EH01,Miscellaneous Agency Services           ,"1,000.00",30/01/2015,REV,MAY GURNEY LTD T/A CARTLEDGE  
416,Highways & Transport Services,Street Lighting.,Street Lighting .,G00260,Third Party Payments          ,Private Contractors           ,EH01,Miscellaneous Agency Services           ,"5,804.18",30/01/2015,REV,MAY GURNEY LTD T/A CARTLEDGE  
417,Highways & Transport Services,Street Lighting.,Street Lighting .,G00260,Third Party Payments          ,Private Contractors           ,EH01,Miscellaneous Agency Services           ,734,05/02/2015,REV,UK POWER NETWORKS (OPERATIONS)
418,Highways & Transport Services,Street Lighting.,Street Lighting .,G00260,Third Party Payments          ,Private Contractors           ,EH01,Miscellaneous Agency Services           ,"13,182.00",30/01/2015,REV,MAY GURNEY LTD T/A CARTLEDGE  
419,Highways & Transport Services,Street Lighting.,Street Lighting .,G00260,Third Party Payments          ,Private Contractors           ,EH01,Miscellaneous Agency Services           ,544.3,30/01/2015,REV,MAY GURNEY LTD T/A CARTLEDGE  
420,Highways & Transport Services,Off-street parking,Car Parks (Unloc),G00291,Premises Related Expenditure  ,RepairsAlterations&MtceOfBldgs,BA06,REPAIRS & MAINTENANCE GENERAL           ,526.61,30/01/2015,REV,MAY GURNEY LTD T/A CARTLEDGE  
421,Highways & Transport Services,Off-street parking,Car Parks (Unloc),G00291,Premises Related Expenditure  ,RepairsAlterations&MtceOfBldgs,BA06,REPAIRS & MAINTENANCE GENERAL           ,759.22,20/01/2015,REV,MAY GURNEY LTD T/A CARTLEDGE  
422,Highways & Transport Services,Off-street parking,Car Parks (Unloc),G00291,Third Party Payments          ,Private Contractors           ,EH02,Miscellaneous Hired Services            ,"3,666.00",31/01/2015,REV,COBALT TELEPHONE TECHNOLOGIES 
423,Highways & Transport Services,Off-street parking,Coombe Lane,G00292,Premises Related Expenditure  ,Rents                         ,BC01,Miscellaneous Rents                     ,"9,562.50",18/02/2015,REV,CAPITA PROP'TY & INFRASTRUCT'R
424,Highways & Transport Services,Off-street parking,St. Georges Car Park WEST M/S,G00302,Premises Related Expenditure  ,Energy Costs                  ,BB02,Electricity                             ,627.12,02/02/2015,REV,SCOTTISHPOWER                 
425,Highways & Transport Services,On-street parking,On Street Parking.,G00311,Premises Related Expenditure  ,RepairsAlterations&MtceOfBldgs,BA06,Repairs & Maintenance General           ,"1,045.48",03/02/2015,REV,FM CONWAY LTD                 
426,Highways & Transport Services,On-street parking,On Street Parking.,G00311,Premises Related Expenditure  ,Rents                         ,BC01,Miscellaneous Rents                     ,"10,994.62",17/10/2014,REV,SACKVILLE SPF IV (GP) NO 1 LTD
427,Highways & Transport Services,Road Safety Education,TFL CAPT SPEND (REV),G00326,Employees                     ,Indirect Employee Expenses    ,AB57,External Training Costs                 ,"3,000.00",19/02/2015,REV,WANDSWORTH BOROUGH COUNCIL    
428,Highways & Transport Services,CYCLIST TRAINER,CYCLIST TRAINER,G00328,Supplies & Services           ,Equip Furniture/Materials     ,DA04,Materials                               ,555,09/02/2015,REV,BLAKES DRIVER TRAINING        
429,Highways & Transport Services,Parking Enforcement not split,Civil Enforcement Officers,G00330,Supplies & Services           ,Equip Furniture/Materials     ,DA09,Equip-Purchases                         ,596,11/02/2015,REV,IMPERIAL CIVIL ENFORC.SOLUT.  
430,Highways & Transport Services,Parking Enforcement not split,Civil Enforcement Officers,G00330,Supplies & Services           ,Equip Furniture/Materials     ,DA09,Equip-Purchases                         ,"3,200.00",11/02/2015,REV,IMPERIAL CIVIL ENFORC.SOLUT.  
431,Highways & Transport Services,Parking Enforcement not split,Civil Enforcement Officers,G00330,Supplies & Services           ,Equip Furniture/Materials     ,DA09,Equip-Purchases                         ,"1,290.00",03/02/2015,REV,TRAFFIC SAFETY SYSTEMS LTD    
432,Highways & Transport Services,Parking Enforcement not split,Civil Enforcement Officers,G00330,Supplies & Services           ,Services                      ,DF57,Consulting Engineers Fees               ,"12,000.00",09/02/2015,REV,GLOBAL MSC SECURITY LTD       
433,Highways & Transport Services,Parking Enforcement not split,Operational Running Costs,G00331,Supplies & Services           ,Equip Furniture/Materials     ,DA09,Equip-Purchases                         ,"3,770.00",12/12/2014,REV,PARKEON LTD                   
434,Highways & Transport Services,Parking Enforcement not split,Operational Running Costs,G00331,Supplies & Services           ,Equip Furniture/Materials     ,DA09,Equip-Purchases                         ,"3,770.00",23/01/2015,REV,PARKEON LTD                   
435,Highways & Transport Services,Parking Enforcement not split,Operational Running Costs,G00331,Supplies & Services           ,Equip Furniture/Materials     ,DA09,Equip-Purchases                         ,"3,770.00",23/02/2015,REV,PARKEON LTD                   
436,Highways & Transport Services,Parking Enforcement not split,Operational Running Costs,G00331,Supplies & Services           ,Prntng Stnry Gen Off Exp      ,DE01,External Printing                       ,"2,620.80",26/01/2015,REV,NAGELS UK LTD                 
437,Highways & Transport Services,Parking Enforcement not split,Operational Running Costs,G00331,Supplies & Services           ,Prntng Stnry Gen Off Exp      ,DE01,External Printing                       ,"1,563.00",06/02/2015,REV,LIBERTY SERVICES              
438,Highways & Transport Services,Parking Enforcement not split,Operational Running Costs,G00331,Supplies & Services           ,Expenses                      ,DH02,Conferences                             ,985,30/01/2015,REV,LANDOR LINKS                  
439,Highways & Transport Services,Parking Enforcement not split,Operational Running Costs,G00331,Supplies & Services           ,Grants and Subscriptions      ,DJ54,Contributions                           ,"1,087.00",06/02/2015,REV,BRITISH PARKING ASSOCIATION   
440,Highways & Transport Services,Repair prin/oth rds not split,Flood Risk Management,G00350,Third Party Payments          ,Private Contractors           ,EH56,Carriageway/Fway Maint                  ,"17,000.00",11/02/2015,REV,FM CONWAY LTD                 
441,Highways & Transport Services,Repair prin/oth rds not split,Flood Risk Management,G00350,Third Party Payments          ,Private Contractors           ,EH56,Carriageway/Fway Maint                  ,"1,255.05",11/02/2015,REV,FM CONWAY LTD                 
442,Highways & Transport Services,Hwys/Rds (struct) not split,Footpath Crossings.,G00390,Third Party Payments          ,Private Contractors           ,EH56,Carriageway/Fway Maint                  ,"1,544.90",11/02/2015,REV,FM CONWAY LTD                 
443,Highways & Transport Services,Hwys/Rds (struct) not split,Footpath Crossings.,G00390,Third Party Payments          ,Private Contractors           ,EH56,Carriageway/Fway Maint                  ,"1,726.72",11/02/2015,REV,FM CONWAY LTD                 
444,Highways & Transport Services,Hwys/Rds (struct) not split,Footpath Crossings.,G00390,Third Party Payments          ,Private Contractors           ,EH56,Carriageway/Fway Maint                  ,"1,831.94",03/02/2015,REV,FM CONWAY LTD                 
445,Cultural Env Reg&Plan Services,Waste Disposal (not separated),Waste Disposal .,G00550,Third Party Payments          ,Private Contractors           ,EH04,C1 Viridor SLWP Landfill Contract       ,"35,942.56",05/02/2015,REV,KINGSTON CORPORATION          
446,Cultural Env Reg&Plan Services,Waste Disposal (not separated),Waste Disposal .,G00550,Third Party Payments          ,Private Contractors           ,EH04,C1 Viridor SLWP Landfill Contract       ,"337,100.88",05/02/2015,REV,KINGSTON CORPORATION          
447,Cultural Env Reg&Plan Services,Waste Disposal (not separated),Waste Disposal .,G00550,Third Party Payments          ,Private Contractors           ,EH66,Clinical Waste Disposal                 ,884.76,31/01/2015,REV,S.GRUNDON (WASTE) LTD.        
448,Cultural Env Reg&Plan Services,Waste Disposal (not separated),Waste Disposal .,G00550,Third Party Payments          ,Private Contractors           ,EH91,Disposal of Asbestos                    ,"3,500.00",28/01/2015,REV,CITY OF LONDON CORPORATION    
449,Cultural Env Reg&Plan Services,Waste Disposal (not separated),Waste Disposal .,G00550,Third Party Payments          ,Private Contractors           ,EH96,GULLY DISPOSAL                          ,567.18,31/01/2015,REV,CORY ENVIRONMENTAL LIMITED    
450,Cultural Env Reg&Plan Services,Public Health,Dog Control.,G00620,Third Party Payments          ,Private Contractors           ,EH02,Miscellaneous Hired Services            ,"2,566.00",01/01/2015,REV,NOAH'S ARK ENVIRONMENTAL SERV.
451,Cultural Env Reg&Plan Services,Recycling (Collection),Recycling Activities,G00640,Supplies & Services           ,Equip Furniture/Materials     ,DA54,Recycling Containers                    ,"10,849.00",19/02/2015,REV,GLASDON UK LTD                
452,Cultural Env Reg&Plan Services,Recycling (Collection),Recycling Activities,G00640,Supplies & Services           ,Equip Furniture/Materials     ,DA54,Recycling Containers                    ,"14,275.00",29/01/2015,REV,GLASDON UK LTD                
453,Cultural Env Reg&Plan Services,Recycling (Collection),Recycling Activities,G00640,Third Party Payments          ,Private Contractors           ,EH03,C3 DRY RECYCLING GATE FEE               ,"-21,290.05",05/02/2015,REV,KINGSTON CORPORATION          
454,Cultural Env Reg&Plan Services,Recycling (Collection),Recycling Activities,G00640,Third Party Payments          ,Private Contractors           ,EH08,SLWP C1 Haulage Dry Recyclable          ,"32,120.02",05/02/2015,REV,KINGSTON CORPORATION          
455,Cultural Env Reg&Plan Services,Recycling (Collection),Recycling Activities,G00640,Third Party Payments          ,Private Contractors           ,EH61,Green Waste Disposal                    ,"6,455.76",05/02/2015,REV,KINGSTON CORPORATION          
456,Cultural Env Reg&Plan Services,Recycling (Collection),Recycling Activities,G00640,Third Party Payments          ,Private Contractors           ,EH94,C1 DRY RECYCLING ACCEPTANCE & BULK      ,"6,986.70",05/02/2015,REV,KINGSTON CORPORATION          
457,Cultural Env Reg&Plan Services,Recycling (Collection),BARROW AND BINS REPLACEMENT,G00641,Supplies & Services           ,Equip Furniture/Materials     ,DA31,RESIDENTIAL RECYCLING SACKS             ,"1,965.60",29/10/2014,REV,IMPERIAL POLYTHENE PRODUCTS LT
458,Cultural Env Reg&Plan Services,Recycling (Collection),BARROW AND BINS REPLACEMENT,G00641,Supplies & Services           ,Equip Furniture/Materials     ,DA53,DOG & LITTER BINS                       ,"2,138.58",23/01/2015,REV,GLASDON UK LTD                
459,Cultural Env Reg&Plan Services,Recycling (Collection),Garden Waste Service,G00647,Supplies & Services           ,Equip Furniture/Materials     ,DA32,Wheeled Bins (GARDEN BINS)              ,824.25,28/01/2015,REV,ESE                           
460,Cultural Env Reg&Plan Services,Recycling (Collection),Garden Waste Service,G00647,Supplies & Services           ,Equip Furniture/Materials     ,DA32,Wheeled Bins (GARDEN BINS)              ,682.25,28/01/2015,REV,ESE                           
461,Cultural Env Reg&Plan Services,Recycling (Collection),Garden Waste Service,G00647,Supplies & Services           ,Equip Furniture/Materials     ,DA32,Wheeled Bins (GARDEN BINS)              ,824.25,28/01/2015,REV,ESE                           
462,Cultural Env Reg&Plan Services,Recycling (Collection),Garden Waste Service,G00647,Third Party Payments          ,Private Contractors           ,EH61,Green Waste Disposal                    ,"5,524.54",05/02/2015,REV,KINGSTON CORPORATION          
463,Cultural Env Reg&Plan Services,Recycling (Collection),Garden Waste Service,G00647,Third Party Payments          ,Private Contractors           ,EH61,Green Waste Disposal                    ,669.48,05/02/2015,REV,KINGSTON CORPORATION          
464,Cultural Env Reg&Plan Services,Recycling (Collection),Food Waste Service,G00648,Supplies & Services           ,Equip Furniture/Materials     ,DA31,Waste Sacks & Bags                      ,"3,500.00",11/11/2014,REV,CROMWELL POLYTHENE            
465,Cultural Env Reg&Plan Services,Recycling (Collection),Food Waste Service,G00648,Supplies & Services           ,Equip Furniture/Materials     ,DA31,Waste Sacks & Bags                      ,"1,692.39",06/01/2015,REV,SPHERE PROFFESSIONAL          
466,Cultural Env Reg&Plan Services,Recycling (Collection),Food Waste Service,G00648,Supplies & Services           ,Equip Furniture/Materials     ,DA32,Wheeled Bins                            ,"2,718.00",30/01/2015,REV,MATTIUSSI UK                  
467,Cultural Env Reg&Plan Services,Recycling (Collection),Food Waste Service,G00648,Supplies & Services           ,Clothing Unfrms Laundry       ,DC02,Clothing & Uniforms                     ,975,10/02/2015,REV,SAFETY MANAGEMENT             
468,Cultural Env Reg&Plan Services,Recycling (Collection),Food Waste Service,G00648,Third Party Payments          ,Private Contractors           ,EH18,SLWP C3 Food Waste Gate Fees            ,"7,691.42",05/02/2015,REV,KINGSTON CORPORATION          
469,Cultural Env Reg&Plan Services,Recycling (Collection),Food Waste Service,G00648,Third Party Payments          ,Private Contractors           ,EH19,SLWP C3 FOOD WASTE HAULAGE              ,"5,453.02",05/02/2015,REV,KINGSTON CORPORATION          
470,Cultural Env Reg&Plan Services,Household Waste Collection,Refuse Collection (Operations),G00661,Transport Related Expenditure ,Direct Transport Costs        ,CA52,Reps Vehicles Ins Claims                ,750,05/02/2015,REV,S.E.T.S SERVICES              
471,Cultural Env Reg&Plan Services,Household Waste Collection,Refuse Collection (Operations),G00661,Transport Related Expenditure ,Direct Transport Costs        ,CA52,Reps Vehicles Ins Claims                ,750,07/01/2015,REV,S.E.T.S SERVICES              
472,Cultural Env Reg&Plan Services,Household Waste Collection,Refuse Collection (Operations),G00661,Supplies & Services           ,Equip Furniture/Materials     ,DA01,Equipment - R & M                       ,794.54,28/01/2015,REV,BELL BRUSH                    
473,Cultural Env Reg&Plan Services,Household Waste Collection,Refuse Collection (Operations),G00661,Supplies & Services           ,Equip Furniture/Materials     ,DA03,Hire of Equipment                       ,"1,002.00",15/12/2014,REV,COMMUNICATION SPECIALISTS     
474,Cultural Env Reg&Plan Services,Household Waste Collection,Refuse Collection (Operations),G00661,Supplies & Services           ,Equip Furniture/Materials     ,DA32,Wheeled Bins                            ,"3,659.85",28/01/2015,REV,STRAIGHT PLC                  
475,Cultural Env Reg&Plan Services,Trade Waste Collection,Commercial Waste,G00663,Supplies & Services           ,Equip Furniture/Materials     ,DA31,Waste Sacks & Bags                      ,"2,298.40",20/01/2015,REV,GELPACK EXCELSIOR             
476,Cultural Env Reg&Plan Services,Street Clean - Not highways,Waste Enforcement,G00680,Third Party Payments          ,Private Contractors           ,EH02,Miscellaneous Hired Services            ,"23,662.39",31/01/2015,REV,KINGDOM SECURITY              
477,Cultural Env Reg&Plan Services,Mortuaries,Mortuary,G00700,Third Party Payments          ,Other Local Authorities       ,EB01,Payments to OLAs                        ,"19,009.00",30/01/2015,REV,ST GEORGES HEALTHCARE TRUST   
478,Central Services,Grants - Voluntary Groups,Vestry Hall,G19290,Employees                     ,Direct Employee Expenses      ,AA17,Agency Staff & Casual Paymts            ,697.57,31/01/2015,REV,REDACTED
479,Central Services,Grants - Voluntary Groups,Vestry Hall,G19290,Premises Related Expenditure  ,RepairsAlterations&MtceOfBldgs,BA03,DDM - Mechanical                        ,"1,300.47",22/12/2014,REV,FIRST CHOICE FACILITIES PLC   
480,Central Services,Grants - Voluntary Groups,Vestry Hall,G19290,Premises Related Expenditure  ,Energy Costs                  ,BB02,Electricity                             ,"1,248.25",02/02/2015,REV,SCOTTISHPOWER                 
481,Central Services,Grants - Voluntary Groups,Vestry Hall,G19290,Premises Related Expenditure  ,Energy Costs                  ,BB03,Gas (incl. Butane)                      ,968.99,05/02/2015,REV,GAZPROM MARKETING&TRADING LTD 
482,Central Services,Grants - Voluntary Groups,Vestry Hall,G19290,Premises Related Expenditure  ,Energy Costs                  ,BB03,Gas (incl. Butane)                      ,930.22,06/01/2015,REV,GAZPROM MARKETING&TRADING LTD 
483,CS -Oth Operating Inc & Expend,Extraordinary Items & PY Adj.,326 London Road,G40312,Supplies & Services           ,Services                      ,DF03,Consultants                             ,"5,575.00",13/01/2015,REV,QUINTON SCOTT                 
484,Highways & Transport Services,Transport Plg/Policy/Strategy,Strategic Corridor Mitcham TFL          ,H01077,Employees                     ,Direct Employee Expenses      ,AA17,Agency Staff & Casual Paymts            ,900,03/02/2015,REV,REDACTED
485,Highways & Transport Services,Transport Plg/Policy/Strategy,Strategic Corridor Mitcham TFL          ,H01077,Employees                     ,Direct Employee Expenses      ,AA17,Agency Staff & Casual Paymts            ,"1,250.00",30/01/2015,REV,REDACTED
486,Highways & Transport Services,Transport Plg/Policy/Strategy,Morden Town Centre TFL                  ,H01078,Supplies & Services           ,Services                      ,DF03,Consultants                             ,"11,227.28",05/01/2015,REV,LONDON BOROUGH OF SUTTON      
487,Highways & Transport Services,Transport Plg/Policy/Strategy,Developing the Tram                     ,H01081,Supplies & Services           ,Services                      ,DF03,Consultants                             ,"20,000.00",05/01/2015,REV,LONDON BOROUGH OF SUTTON      
488,Highways & Transport Services,Transport Plg/Policy/Strategy,WILLOW LANE INDUSTRIAL TFL              ,H01082,Supplies & Services           ,Services                      ,DF05,Surveys (General)                       ,"5,375.00",16/01/2015,REV,BASEPOINT DATA LIMITED        
489,Highways & Transport Services,Safe routes inc schl x patrol,School & Road Safety TFL                ,H01083,Supplies & Services           ,Equip Furniture/Materials     ,DA04,Materials                               ,530,16/02/2015,REV,LONDON ROAD SAFETY COUNCIL    
490,Cultural Env Reg&Plan Services,BC Regs & Other not split,Building Control,H01100,Supplies & Services           ,Prntng Stnry Gen Off Exp      ,DE05,Micro-filming                           ,"2,210.10",19/01/2015,REV,DOCUMENT SCANNING SOLUTIONS LT
491,Cultural Env Reg&Plan Services,BC Regs & Other not split,Building Control,H01100,Supplies & Services           ,Services                      ,DF57,Consulting Engineers Fees               ,"7,950.00",24/07/2014,REV,IHS(GLOBAL)LTD                
492,Cultural Env Reg&Plan Services,BC Regs & Other not split,Building Control,H01100,Supplies & Services           ,Services                      ,DF57,Consulting Engineers Fees               ,"1,610.00",24/07/2014,REV,IHS(GLOBAL)LTD                
493,Cultural Env Reg&Plan Services,DC Advice Apps & Reg not split,Development Control,H01130,Supplies & Services           ,Services                      ,DF02,Misc Advertising/Publicity              ,542.88,23/01/2015,REV,NEWSQUEST (LONDON)LTD         
494,Cultural Env Reg&Plan Services,DC Advice Apps & Reg not split,Development Control,H01130,Supplies & Services           ,Services                      ,DF02,Misc Advertising/Publicity              ,610.74,16/01/2015,REV,NEWSQUEST (LONDON)LTD         
495,Cultural Env Reg&Plan Services,DC Advice Apps & Reg not split,Development Control,H01130,Supplies & Services           ,Services                      ,DF03,Consultants                             ,"2,500.00",03/02/2015,REV,VALUATION OFFICE AGENCY       
496,Cultural Env Reg&Plan Services,DC Advice Apps & Reg not split,Development Control,H01130,Supplies & Services           ,Services                      ,DF11,Counsel's fees                          ,500,23/01/2015,REV,DAC BEACHCROFT                
497,Cultural Env Reg&Plan Services,DC Advice Apps & Reg not split,Development Control,H01130,Supplies & Services           ,Services                      ,DF11,Counsel's fees                          ,"1,000.00",03/12/2014,REV,REDACTED
498,Cultural Env Reg&Plan Services,DC Advice Apps & Reg not split,Development Control,H01130,Supplies & Services           ,Grants and Subscriptions      ,DJ04,Subscriptions                           ,"1,500.00",03/02/2015,REV,POS ENTERPRISES LTD           
499,Cultural Env Reg&Plan Services,DC Advice Apps & Reg not split,Development Control,H01130,Oth Grants Reimbmnts/Contribs ,Cost recharges to other bodies,QC10,Recovery of misc expenses (X)           ,"14,728.00",09/02/2015,REV,S E LAW LIMITED               
500,Cultural Env Reg&Plan Services,DC Advice Apps & Reg not split,Development Control,H01130,Oth Grants Reimbmnts/Contribs ,Cost recharges to other bodies,QC10,Recovery of misc expenses (X)           ,"10,453.34",19/02/2015,REV,ROBINSONS ESCOTT PLANNING     
501,Cultural Env Reg&Plan Services,DC Advice Apps & Reg not split,Development Control,H01130,Oth Grants Reimbmnts/Contribs ,Cost recharges to other bodies,QC10,Recovery of misc expenses (X)           ,"-10,453.34",19/02/2015,REV,ROBINSONS ESCOTT PLANNING     
502,Cultural Env Reg&Plan Services,DC Advice Apps & Reg not split,Development Control,H01130,Customer and client receipts  ,Fees                          ,RB03,Miscellaneous Fees S                    ,965,25/02/2015,REV,REDACTED
503,Cultural Env Reg&Plan Services,Planning Policy not split,REGENERATION & INVESTMENT,H01174,Supplies & Services           ,Services                      ,DF03,Consultants                             ,525,31/01/2015,REV,STUDIO WEAVE LTD              
504,Cultural Env Reg&Plan Services,Planning Policy not split,REGENERATION & INVESTMENT,H01174,Third Party Payments          ,Private Contractors           ,EH10,Contract Payments                       ,542.94,23/01/2015,REV,WINE BOX COMPANY              
505,Cultural Env Reg&Plan Services,Planning Policy not split,HPDG - Spatial Policy,H01183,Supplies & Services           ,Services                      ,DF03,Consultants                             ,"2,400.00",05/02/2015,REV,REDACTED
506,Cultural Env Reg&Plan Services,Planning Policy not split,HPDG - Spatial Policy,H01183,Supplies & Services           ,Services                      ,DF03,Consultants                             ,"3,300.00",05/02/2015,REV,REDACTED
507,Cultural Env Reg&Plan Services,Economic Dev (Not separated),LABGI-BUSINESS SUPPORT SERVICE,H01219,Third Party Payments          ,Private Contractors           ,EH10,Contract Payments                       ,"75,000.00",15/01/2015,REV,MERTON CHAMBER OF COMMERCE    
508,Cultural Env Reg&Plan Services,Economic Dev (Not separated),GO GREEN PLUS (S106),H01225,Supplies & Services           ,Grants and Subscriptions      ,DJ54,Contributions                           ,583.33,31/01/2015,REV,MERTON CHAMBER OF COMMERCE    
509,Cultural Env Reg&Plan Services,Economic Dev (Not separated),Capt Ambition-Suburban Opprt Z,H01231,Supplies & Services           ,Grants and Subscriptions      ,DJ01,Grants                                  ,"6,000.00",04/02/2015,REV,REDACTED
510,CS -Oth Operating Inc & Expend,T/A Vehicle Maintenance etc,Transport-Contract Hire,J01374,Employees                     ,Direct Employee Expenses      ,AA17,Agency Staff & Casual Paymts            ,"2,700.00",30/11/2014,REV,REDACTED
511,CS -Oth Operating Inc & Expend,T/A Vehicle Maintenance etc,Transport-Contract Hire,J01374,Employees                     ,Direct Employee Expenses      ,AA17,Agency Staff & Casual Paymts            ,"11,340.00",31/12/2014,REV,PENNA PLC                     
512,CS -Oth Operating Inc & Expend,T/A Vehicle Maintenance etc,Transport-Contract Hire,J01374,Employees                     ,Direct Employee Expenses      ,AA17,Agency Staff & Casual Paymts            ,"10,800.00",31/01/2015,REV,PENNA PLC                     
513,CS -Oth Operating Inc & Expend,T/A Vehicle Maintenance etc,Transport-Contract Hire,J01374,Employees                     ,Indirect Employee Expenses    ,AB57,Misc Training Expenses (AP)             ,538.5,11/02/2015,REV,AJS TRAINING                  
514,CS -Oth Operating Inc & Expend,T/A Vehicle Maintenance etc,Transport-Contract Hire,J01374,Transport Related Expenditure ,Direct Transport Costs        ,CA01,Petrol Derv & Oil                       ,"31,386.54",23/01/2015,REV,HARVEST ENERGY LIMITED        
515,CS -Oth Operating Inc & Expend,T/A Vehicle Maintenance etc,Transport-Contract Hire,J01374,Transport Related Expenditure ,Direct Transport Costs        ,CA01,Petrol Derv & Oil                       ,"32,576.52",07/01/2015,REV,HARVEST ENERGY LIMITED        
516,CS -Oth Operating Inc & Expend,T/A Vehicle Maintenance etc,Transport-Contract Hire,J01374,Transport Related Expenditure ,Contract Hire and Op Leasing  ,CC53,Plant Hire for MRCS                     ,925,17/02/2015,REV,DRM MUNICIPAL SERVICES LIMITED
517,CS -Oth Operating Inc & Expend,T/A Vehicle Maintenance etc,Transport-Contract Hire,J01374,Transport Related Expenditure ,Contract Hire and Op Leasing  ,CC53,Plant Hire for MRCS                     ,610,20/01/2015,REV,PFB HIRE LTD                  
518,CS -Oth Operating Inc & Expend,T/A Vehicle Maintenance etc,Transport-Contract Hire,J01374,Transport Related Expenditure ,Contract Hire and Op Leasing  ,CC53,Plant Hire for MRCS                     ,726,31/01/2015,REV,REDACTED
519,CS -Oth Operating Inc & Expend,T/A Vehicle Maintenance etc,Transport-Contract Hire,J01374,Transport Related Expenditure ,Contract Hire and Op Leasing  ,CC53,Plant Hire for MRCS                     ,610,03/02/2015,REV,PFB HIRE LTD                  
520,CS -Oth Operating Inc & Expend,T/A Vehicle Maintenance etc,Transport-Contract Hire,J01374,Transport Related Expenditure ,Contract Hire and Op Leasing  ,CC53,Plant Hire for MRCS                     ,925,30/01/2015,REV,DRM MUNICIPAL SERVICES LIMITED
521,CS -Oth Operating Inc & Expend,T/A Vehicle Maintenance etc,Transport-Contract Hire,J01374,Transport Related Expenditure ,Contract Hire and Op Leasing  ,CC53,Plant Hire for MRCS                     ,925,23/01/2015,REV,DRM MUNICIPAL SERVICES LIMITED
522,CS -Oth Operating Inc & Expend,T/A Vehicle Maintenance etc,Transport-Contract Hire,J01374,Transport Related Expenditure ,Contract Hire and Op Leasing  ,CC53,Plant Hire for MRCS                     ,550,05/02/2015,REV,PFB HIRE LTD                  
523,CS -Oth Operating Inc & Expend,T/A Vehicle Maintenance etc,Transport-Contract Hire,J01374,Transport Related Expenditure ,Contract Hire and Op Leasing  ,CC53,Plant Hire for MRCS                     ,610,27/01/2015,REV,PFB HIRE LTD                  
524,CS -Oth Operating Inc & Expend,T/A Vehicle Maintenance etc,Transport-Contract Hire,J01374,Transport Related Expenditure ,Contract Hire and Op Leasing  ,CC53,Plant Hire for MRCS                     ,550,22/01/2015,REV,PFB HIRE LTD                  
525,CS -Oth Operating Inc & Expend,T/A Vehicle Maintenance etc,Transport-Contract Hire,J01374,Transport Related Expenditure ,Contract Hire and Op Leasing  ,CC53,Plant Hire for MRCS                     ,550,29/01/2015,REV,PFB HIRE LTD                  
526,CS -Oth Operating Inc & Expend,T/A Vehicle Maintenance etc,Transport-Contract Hire,J01374,Transport Related Expenditure ,Contract Hire and Op Leasing  ,CC53,Plant Hire for MRCS                     ,550,19/02/2015,REV,PFB HIRE LTD                  
527,CS -Oth Operating Inc & Expend,T/A Vehicle Maintenance etc,Transport-Contract Hire,J01374,Transport Related Expenditure ,Contract Hire and Op Leasing  ,CC53,Plant Hire for MRCS                     ,550,12/02/2015,REV,PFB HIRE LTD                  
528,CS -Oth Operating Inc & Expend,T/A Vehicle Maintenance etc,Transport-Contract Hire,J01374,Transport Related Expenditure ,Contract Hire and Op Leasing  ,CC53,Plant Hire for MRCS                     ,925,06/02/2015,REV,DRM MUNICIPAL SERVICES LIMITED
529,CS -Oth Operating Inc & Expend,T/A Vehicle Maintenance etc,Transport-Contract Hire,J01374,Transport Related Expenditure ,Contract Hire and Op Leasing  ,CC53,Plant Hire for MRCS                     ,726,31/01/2015,REV,REDACTED
530,CS -Oth Operating Inc & Expend,T/A Vehicle Maintenance etc,Transport-Contract Hire,J01374,Transport Related Expenditure ,Contract Hire and Op Leasing  ,CC53,Plant Hire for MRCS                     ,610,10/02/2015,REV,PFB HIRE LTD                  
531,CS -Oth Operating Inc & Expend,T/A Vehicle Maintenance etc,Transport-Contract Hire,J01374,Transport Related Expenditure ,Contract Hire and Op Leasing  ,CC53,Plant Hire for MRCS                     ,"1,100.00",31/01/2015,REV,B&T PLANT HIRE LTD            
532,CS -Oth Operating Inc & Expend,T/A Vehicle Maintenance etc,Transport-Contract Hire,J01374,Transport Related Expenditure ,Contract Hire and Op Leasing  ,CC56,Plant Hire for Leisure                  ,"1,755.00",31/01/2015,REV,REDACTED
533,CS -Oth Operating Inc & Expend,T/A Vehicle Maintenance etc,Transport-Contract Hire,J01374,Transport Related Expenditure ,Contract Hire and Op Leasing  ,CC57,Pland Hire for Housing                  ,940,31/01/2015,REV,REDACTED
534,CS -Oth Operating Inc & Expend,T/A Vehicle Maintenance etc,Transport-Contract Hire,J01374,Transport Related Expenditure ,Contract Hire and Op Leasing  ,CC59,HIRING TRANSPORT OPERATIONS             ,531,30/01/2015,REV,BURNT TREE VEHICLE RENTAL     
535,CS -Oth Operating Inc & Expend,T/A Vehicle Maintenance etc,Transport-Contract Hire,J01374,Transport Related Expenditure ,Contract Hire and Op Leasing  ,CC59,HIRING TRANSPORT OPERATIONS             ,"1,452.00",30/01/2015,REV,BURNT TREE VEHICLE RENTAL     
536,CS -Oth Operating Inc & Expend,T/A Vehicle Maintenance etc,Transport-Contract Hire,J01374,Transport Related Expenditure ,Contract Hire and Op Leasing  ,CC59,HIRING TRANSPORT OPERATIONS             ,"1,452.00",30/01/2015,REV,BURNT TREE VEHICLE RENTAL     
537,CS -Oth Operating Inc & Expend,T/A Vehicle Maintenance etc,Transport-Contract Hire,J01374,Transport Related Expenditure ,Contract Hire and Op Leasing  ,CC59,HIRING TRANSPORT OPERATIONS             ,"2,238.32",31/01/2015,REV,REDACTED
538,CS -Oth Operating Inc & Expend,T/A Vehicle Maintenance etc,Transport-Contract Hire,J01374,Transport Related Expenditure ,Contract Hire and Op Leasing  ,CC59,HIRING TRANSPORT OPERATIONS             ,"1,452.00",30/01/2015,REV,BURNT TREE VEHICLE RENTAL     
539,CS -Oth Operating Inc & Expend,T/A Vehicle Maintenance etc,Transport-Contract Hire,J01374,Transport Related Expenditure ,Contract Hire and Op Leasing  ,CC64,HIRING TRANSPORT SEN CABS               ,"2,470.00",31/01/2015,REV,CAPITAL CARS                  
540,CS -Oth Operating Inc & Expend,T/A Vehicle Maintenance etc,Transport-Contract Hire,J01374,Transport Related Expenditure ,Contract Hire and Op Leasing  ,CC64,HIRING TRANSPORT SEN CABS               ,"1,920.00",30/01/2015,REV,SILVERBURN FINANCE (UK) LTD   
541,CS -Oth Operating Inc & Expend,T/A Vehicle Maintenance etc,Transport-Contract Hire,J01374,Transport Related Expenditure ,Contract Hire and Op Leasing  ,CC64,HIRING TRANSPORT SEN CABS               ,"1,881.00",31/01/2015,REV,SHERWOOD TRANSPORT GROUP      
542,CS -Oth Operating Inc & Expend,T/A Vehicle Maintenance etc,Transport-Contract Hire,J01374,Transport Related Expenditure ,Contract Hire and Op Leasing  ,CC64,HIRING TRANSPORT SEN CABS               ,"1,502.90",30/01/2015,REV,SILVERBURN FINANCE (UK) LTD   
543,CS -Oth Operating Inc & Expend,T/A Vehicle Maintenance etc,Transport-Contract Hire,J01374,Transport Related Expenditure ,Contract Hire and Op Leasing  ,CC64,HIRING TRANSPORT SEN CABS               ,"2,915.64",31/01/2015,REV,KINGSTON ACCESSIBILITY TRAN LT
544,CS -Oth Operating Inc & Expend,T/A Vehicle Maintenance etc,Transport-Contract Hire,J01374,Transport Related Expenditure ,Contract Hire and Op Leasing  ,CC64,HIRING TRANSPORT SEN CABS               ,"1,786.00",31/01/2015,REV,CAPITAL CARS                  
545,CS -Oth Operating Inc & Expend,T/A Vehicle Maintenance etc,Transport-Contract Hire,J01374,Transport Related Expenditure ,Contract Hire and Op Leasing  ,CC64,HIRING TRANSPORT SEN CABS               ,"1,924.00",31/01/2015,REV,CHEAM STATION CARS            
546,CS -Oth Operating Inc & Expend,T/A Vehicle Maintenance etc,Transport-Contract Hire,J01374,Transport Related Expenditure ,Contract Hire and Op Leasing  ,CC64,HIRING TRANSPORT SEN CABS               ,"1,120.00",31/01/2015,REV,NVCAR HIRE LTD                
547,CS -Oth Operating Inc & Expend,T/A Vehicle Maintenance etc,Transport-Contract Hire,J01374,Transport Related Expenditure ,Contract Hire and Op Leasing  ,CC64,HIRING TRANSPORT SEN CABS               ,"1,560.00",31/01/2015,REV,CAPITAL CARS                  
548,CS -Oth Operating Inc & Expend,T/A Vehicle Maintenance etc,Transport-Contract Hire,J01374,Transport Related Expenditure ,Contract Hire and Op Leasing  ,CC64,HIRING TRANSPORT SEN CABS               ,880,31/01/2015,REV,CAPITAL CARS                  
549,CS -Oth Operating Inc & Expend,T/A Vehicle Maintenance etc,Transport-Contract Hire,J01374,Transport Related Expenditure ,Contract Hire and Op Leasing  ,CC64,HIRING TRANSPORT SEN CABS               ,992,31/01/2015,REV,CHEAM STATION CARS            
550,CS -Oth Operating Inc & Expend,T/A Vehicle Maintenance etc,Transport-Contract Hire,J01374,Transport Related Expenditure ,Contract Hire and Op Leasing  ,CC64,HIRING TRANSPORT SEN CABS               ,828,31/01/2015,REV,NVCAR HIRE LTD                
551,CS -Oth Operating Inc & Expend,T/A Vehicle Maintenance etc,Transport-Contract Hire,J01374,Transport Related Expenditure ,Contract Hire and Op Leasing  ,CC64,HIRING TRANSPORT SEN CABS               ,875,29/01/2015,REV,WALLINGTON CARS & COURIERS LTD
552,CS -Oth Operating Inc & Expend,T/A Vehicle Maintenance etc,Transport-Contract Hire,J01374,Transport Related Expenditure ,Contract Hire and Op Leasing  ,CC64,HIRING TRANSPORT SEN CABS               ,665,31/01/2015,REV,PREMIER CARS                  
553,CS -Oth Operating Inc & Expend,T/A Vehicle Maintenance etc,Transport-Contract Hire,J01374,Transport Related Expenditure ,Contract Hire and Op Leasing  ,CC64,HIRING TRANSPORT SEN CABS               ,"2,390.00",31/01/2015,REV,KINGSTON ACCESSIBILITY TRAN LT
554,CS -Oth Operating Inc & Expend,T/A Vehicle Maintenance etc,Transport-Contract Hire,J01374,Transport Related Expenditure ,Contract Hire and Op Leasing  ,CC64,HIRING TRANSPORT SEN CABS               ,"1,195.00",31/01/2015,REV,PREMIER CARS                  
555,CS -Oth Operating Inc & Expend,T/A Vehicle Maintenance etc,Transport-Contract Hire,J01374,Transport Related Expenditure ,Contract Hire and Op Leasing  ,CC64,HIRING TRANSPORT SEN CABS               ,"1,448.66",30/01/2015,REV,SILVERBURN FINANCE (UK) LTD   
556,CS -Oth Operating Inc & Expend,T/A Vehicle Maintenance etc,Transport-Contract Hire,J01374,Transport Related Expenditure ,Contract Hire and Op Leasing  ,CC64,HIRING TRANSPORT SEN CABS               ,"1,715.00",31/01/2015,REV,NVCAR HIRE LTD                
557,CS -Oth Operating Inc & Expend,T/A Vehicle Maintenance etc,Transport-Contract Hire,J01374,Transport Related Expenditure ,Contract Hire and Op Leasing  ,CC64,HIRING TRANSPORT SEN CABS               ,"2,998.00",31/01/2015,REV,KINGSTON ACCESSIBILITY TRAN LT
558,CS -Oth Operating Inc & Expend,T/A Vehicle Maintenance etc,Transport-Contract Hire,J01374,Transport Related Expenditure ,Contract Hire and Op Leasing  ,CC64,HIRING TRANSPORT SEN CABS               ,"2,565.00",31/01/2015,REV,SHERWOOD TRANSPORT GROUP      
559,CS -Oth Operating Inc & Expend,T/A Vehicle Maintenance etc,Transport-Contract Hire,J01374,Transport Related Expenditure ,Contract Hire and Op Leasing  ,CC64,HIRING TRANSPORT SEN CABS               ,"3,940.00",30/01/2015,REV,BRUNSWICK CARS LTD            
560,CS -Oth Operating Inc & Expend,T/A Vehicle Maintenance etc,Transport-Contract Hire,J01374,Transport Related Expenditure ,Contract Hire and Op Leasing  ,CC64,HIRING TRANSPORT SEN CABS               ,932,31/01/2015,REV,CAPITAL CARS                  
561,CS -Oth Operating Inc & Expend,T/A Vehicle Maintenance etc,Transport-Contract Hire,J01374,Transport Related Expenditure ,Contract Hire and Op Leasing  ,CC64,HIRING TRANSPORT SEN CABS               ,"1,776.00",31/01/2015,REV,CAPITAL CARS                  
562,CS -Oth Operating Inc & Expend,T/A Vehicle Maintenance etc,Transport-Contract Hire,J01374,Transport Related Expenditure ,Contract Hire and Op Leasing  ,CC64,HIRING TRANSPORT SEN CABS               ,"2,600.00",31/01/2015,REV,CAPITAL CARS                  
563,CS -Oth Operating Inc & Expend,T/A Vehicle Maintenance etc,Transport-Contract Hire,J01374,Transport Related Expenditure ,Contract Hire and Op Leasing  ,CC64,HIRING TRANSPORT SEN CABS               ,"2,321.82",31/01/2015,REV,KINGSTON ACCESSIBILITY TRAN LT
564,CS -Oth Operating Inc & Expend,T/A Vehicle Maintenance etc,Transport-Contract Hire,J01374,Transport Related Expenditure ,Contract Hire and Op Leasing  ,CC64,HIRING TRANSPORT SEN CABS               ,"1,017.50",31/01/2015,REV,SHERWOOD TRANSPORT GROUP      
565,CS -Oth Operating Inc & Expend,T/A Vehicle Maintenance etc,Transport-Contract Hire,J01374,Transport Related Expenditure ,Contract Hire and Op Leasing  ,CC64,HIRING TRANSPORT SEN CABS               ,"1,950.40",31/01/2015,REV,KINGSTON ACCESSIBILITY TRAN LT
566,CS -Oth Operating Inc & Expend,T/A Vehicle Maintenance etc,Transport-Contract Hire,J01374,Transport Related Expenditure ,Contract Hire and Op Leasing  ,CC64,HIRING TRANSPORT SEN CABS               ,"2,161.00",31/01/2015,REV,CHEAM STATION CARS            
567,CS -Oth Operating Inc & Expend,T/A Vehicle Maintenance etc,Transport-Contract Hire,J01374,Transport Related Expenditure ,Contract Hire and Op Leasing  ,CC64,HIRING TRANSPORT SEN CABS               ,798,30/01/2015,REV,BARCLAYS ASSET & SALES FINANCE
568,CS -Oth Operating Inc & Expend,T/A Vehicle Maintenance etc,Transport-Contract Hire,J01374,Transport Related Expenditure ,Contract Hire and Op Leasing  ,CC64,HIRING TRANSPORT SEN CABS               ,"1,200.00",31/01/2015,REV,NVCAR HIRE LTD                
569,CS -Oth Operating Inc & Expend,T/A Vehicle Maintenance etc,Transport-Contract Hire,J01374,Transport Related Expenditure ,Contract Hire and Op Leasing  ,CC64,HIRING TRANSPORT SEN CABS               ,"2,660.00",31/01/2015,REV,NVCAR HIRE LTD                
570,CS -Oth Operating Inc & Expend,T/A Vehicle Maintenance etc,Transport-Contract Hire,J01374,Transport Related Expenditure ,Contract Hire and Op Leasing  ,CC64,HIRING TRANSPORT SEN CABS               ,"2,660.00",30/01/2015,REV,BARCLAYS ASSET & SALES FINANCE
571,CS -Oth Operating Inc & Expend,T/A Vehicle Maintenance etc,Transport-Contract Hire,J01374,Transport Related Expenditure ,Contract Hire and Op Leasing  ,CC64,HIRING TRANSPORT SEN CABS               ,"1,650.82",31/01/2015,REV,KINGSTON ACCESSIBILITY TRAN LT
572,CS -Oth Operating Inc & Expend,T/A Vehicle Maintenance etc,Transport-Contract Hire,J01374,Transport Related Expenditure ,Contract Hire and Op Leasing  ,CC64,HIRING TRANSPORT SEN CABS               ,802.4,30/01/2015,REV,BARCLAYS ASSET & SALES FINANCE
573,CS -Oth Operating Inc & Expend,T/A Vehicle Maintenance etc,Transport-Contract Hire,J01374,Transport Related Expenditure ,Contract Hire and Op Leasing  ,CC64,HIRING TRANSPORT SEN CABS               ,"4,750.00",31/01/2015,REV,SHERWOOD TRANSPORT GROUP      
574,CS -Oth Operating Inc & Expend,T/A Vehicle Maintenance etc,Transport-Contract Hire,J01374,Transport Related Expenditure ,Contract Hire and Op Leasing  ,CC64,HIRING TRANSPORT SEN CABS               ,"2,242.00",31/01/2015,REV,KINGSTON ACCESSIBILITY TRAN LT
575,CS -Oth Operating Inc & Expend,T/A Vehicle Maintenance etc,Transport-Contract Hire,J01374,Transport Related Expenditure ,Contract Hire and Op Leasing  ,CC64,HIRING TRANSPORT SEN CABS               ,"2,220.00",31/01/2015,REV,NVCAR HIRE LTD                
576,CS -Oth Operating Inc & Expend,T/A Vehicle Maintenance etc,Transport-Contract Hire,J01374,Transport Related Expenditure ,Contract Hire and Op Leasing  ,CC64,HIRING TRANSPORT SEN CABS               ,555,03/02/2015,REV,KENDALL CARS                  
577,CS -Oth Operating Inc & Expend,T/A Vehicle Maintenance etc,Transport-Contract Hire,J01374,Transport Related Expenditure ,Contract Hire and Op Leasing  ,CC64,HIRING TRANSPORT SEN CABS               ,760,31/01/2015,REV,GALPINS SERVICE               
578,CS -Oth Operating Inc & Expend,T/A Vehicle Maintenance etc,Transport-Contract Hire,J01374,Transport Related Expenditure ,Contract Hire and Op Leasing  ,CC64,HIRING TRANSPORT SEN CABS               ,"1,800.00",31/01/2015,REV,CAPITAL CARS                  
579,CS -Oth Operating Inc & Expend,T/A Vehicle Maintenance etc,Transport-Contract Hire,J01374,Transport Related Expenditure ,Contract Hire and Op Leasing  ,CC64,HIRING TRANSPORT SEN CABS               ,"2,860.00",30/01/2015,REV,BRUNSWICK CARS LTD            
580,CS -Oth Operating Inc & Expend,T/A Vehicle Maintenance etc,Transport-Contract Hire,J01374,Transport Related Expenditure ,Contract Hire and Op Leasing  ,CC64,HIRING TRANSPORT SEN CABS               ,"1,742.40",31/01/2015,REV,SHERWOOD TRANSPORT GROUP      
581,CS -Oth Operating Inc & Expend,T/A Vehicle Maintenance etc,Transport-Contract Hire,J01374,Transport Related Expenditure ,Contract Hire and Op Leasing  ,CC64,HIRING TRANSPORT SEN CABS               ,"2,380.00",30/01/2015,REV,BARCLAYS ASSET & SALES FINANCE
582,CS -Oth Operating Inc & Expend,T/A Vehicle Maintenance etc,Transport-Contract Hire,J01374,Transport Related Expenditure ,Contract Hire and Op Leasing  ,CC64,HIRING TRANSPORT SEN CABS               ,"1,665.00",31/01/2015,REV,NVCAR HIRE LTD                
583,CS -Oth Operating Inc & Expend,T/A Vehicle Maintenance etc,Transport-Contract Hire,J01374,Transport Related Expenditure ,Contract Hire and Op Leasing  ,CC64,HIRING TRANSPORT SEN CABS               ,"3,021.00",31/01/2015,REV,SHERWOOD TRANSPORT GROUP      
584,CS -Oth Operating Inc & Expend,T/A Vehicle Maintenance etc,Transport-Contract Hire,J01374,Transport Related Expenditure ,Contract Hire and Op Leasing  ,CC64,HIRING TRANSPORT SEN CABS               ,"1,377.00",30/01/2015,REV,BRUNSWICK CARS LTD            
585,CS -Oth Operating Inc & Expend,T/A Vehicle Maintenance etc,Transport-Contract Hire,J01374,Transport Related Expenditure ,Contract Hire and Op Leasing  ,CC64,HIRING TRANSPORT SEN CABS               ,"1,976.00",30/01/2015,REV,BARCLAYS ASSET & SALES FINANCE
586,CS -Oth Operating Inc & Expend,T/A Vehicle Maintenance etc,Transport-Contract Hire,J01374,Transport Related Expenditure ,Contract Hire and Op Leasing  ,CC64,HIRING TRANSPORT SEN CABS               ,"2,584.00",31/01/2015,REV,CAPITAL CARS                  
587,CS -Oth Operating Inc & Expend,T/A Vehicle Maintenance etc,Transport-Contract Hire,J01374,Transport Related Expenditure ,Contract Hire and Op Leasing  ,CC64,HIRING TRANSPORT SEN CABS               ,"1,481.62",31/01/2015,REV,KINGSTON ACCESSIBILITY TRAN LT
588,CS -Oth Operating Inc & Expend,T/A Vehicle Maintenance etc,Transport-Contract Hire,J01374,Transport Related Expenditure ,Contract Hire and Op Leasing  ,CC64,HIRING TRANSPORT SEN CABS               ,"1,170.00",31/01/2015,REV,CHEAM STATION CARS            
589,CS -Oth Operating Inc & Expend,T/A Vehicle Maintenance etc,Transport-Contract Hire,J01374,Transport Related Expenditure ,Contract Hire and Op Leasing  ,CC64,HIRING TRANSPORT SEN CABS               ,912,31/01/2015,REV,CAPITAL CARS                  
590,CS -Oth Operating Inc & Expend,T/A Vehicle Maintenance etc,Transport-Contract Hire,J01374,Transport Related Expenditure ,Contract Hire and Op Leasing  ,CC64,HIRING TRANSPORT SEN CABS               ,"1,836.00",31/01/2015,REV,CAPITAL CARS                  
591,CS -Oth Operating Inc & Expend,T/A Vehicle Maintenance etc,Transport-Contract Hire,J01374,Transport Related Expenditure ,Contract Hire and Op Leasing  ,CC64,HIRING TRANSPORT SEN CABS               ,"1,440.00",31/01/2015,REV,NVCAR HIRE LTD                
592,CS -Oth Operating Inc & Expend,T/A Vehicle Maintenance etc,Transport-Contract Hire,J01374,Transport Related Expenditure ,Contract Hire and Op Leasing  ,CC64,HIRING TRANSPORT SEN CABS               ,988,31/01/2015,REV,NVCAR HIRE LTD                
593,CS -Oth Operating Inc & Expend,T/A Vehicle Maintenance etc,Transport-Contract Hire,J01374,Transport Related Expenditure ,Contract Hire and Op Leasing  ,CC64,HIRING TRANSPORT SEN CABS               ,"1,682.55",31/01/2015,REV,KINGSTON ACCESSIBILITY TRAN LT
594,CS -Oth Operating Inc & Expend,T/A Vehicle Maintenance etc,Transport-Contract Hire,J01374,Transport Related Expenditure ,Contract Hire and Op Leasing  ,CC64,HIRING TRANSPORT SEN CABS               ,"2,080.00",06/02/2015,REV,A STAR TRANSPORT LIMITED      
595,CS -Oth Operating Inc & Expend,T/A Vehicle Maintenance etc,Transport-Contract Hire,J01374,Transport Related Expenditure ,Contract Hire and Op Leasing  ,CC64,HIRING TRANSPORT SEN CABS               ,"1,698.00",31/01/2015,REV,A STAR TRANSPORT LIMITED      
596,CS -Oth Operating Inc & Expend,T/A Vehicle Maintenance etc,Transport-Contract Hire,J01374,Transport Related Expenditure ,Contract Hire and Op Leasing  ,CC64,HIRING TRANSPORT SEN CABS               ,"1,512.00",31/01/2015,REV,CHEAM STATION CARS            
597,CS -Oth Operating Inc & Expend,T/A Vehicle Maintenance etc,Transport-Contract Hire,J01374,Transport Related Expenditure ,Contract Hire and Op Leasing  ,CC64,HIRING TRANSPORT SEN CABS               ,"1,618.00",30/01/2015,REV,SILVERBURN FINANCE (UK) LTD   
598,CS -Oth Operating Inc & Expend,T/A Vehicle Maintenance etc,Transport-Contract Hire,J01374,Transport Related Expenditure ,Contract Hire and Op Leasing  ,CC64,HIRING TRANSPORT SEN CABS               ,"1,755.65",31/01/2015,REV,KINGSTON ACCESSIBILITY TRAN LT
599,CS -Oth Operating Inc & Expend,T/A Vehicle Maintenance etc,Transport-Contract Hire,J01374,Transport Related Expenditure ,Contract Hire and Op Leasing  ,CC64,HIRING TRANSPORT SEN CABS               ,"3,360.00",30/01/2015,REV,SILVERBURN FINANCE (UK) LTD   
600,CS -Oth Operating Inc & Expend,T/A Vehicle Maintenance etc,Transport-Contract Hire,J01374,Transport Related Expenditure ,Contract Hire and Op Leasing  ,CC64,HIRING TRANSPORT SEN CABS               ,810,31/01/2015,REV,CHEAM STATION CARS            
601,CS -Oth Operating Inc & Expend,T/A Vehicle Maintenance etc,Transport-Contract Hire,J01374,Transport Related Expenditure ,Contract Hire and Op Leasing  ,CC64,HIRING TRANSPORT SEN CABS               ,"1,925.00",31/01/2015,REV,SHERWOOD TRANSPORT GROUP      
602,CS -Oth Operating Inc & Expend,T/A Vehicle Maintenance etc,Transport-Contract Hire,J01374,Transport Related Expenditure ,Contract Hire and Op Leasing  ,CC64,HIRING TRANSPORT SEN CABS               ,"1,150.00",31/01/2015,REV,CHEAM STATION CARS            
603,CS -Oth Operating Inc & Expend,T/A Vehicle Maintenance etc,Transport-Contract Hire,J01374,Transport Related Expenditure ,Contract Hire and Op Leasing  ,CC64,HIRING TRANSPORT SEN CABS               ,"3,458.00",31/01/2015,REV,NVCAR HIRE LTD                
604,CS -Oth Operating Inc & Expend,T/A Vehicle Maintenance etc,Transport-Contract Hire,J01374,Transport Related Expenditure ,Contract Hire and Op Leasing  ,CC64,HIRING TRANSPORT SEN CABS               ,"1,600.00",31/01/2015,REV,CAPITAL CARS                  
605,CS -Oth Operating Inc & Expend,T/A Vehicle Maintenance etc,Transport-Contract Hire,J01374,Transport Related Expenditure ,Contract Hire and Op Leasing  ,CC64,HIRING TRANSPORT SEN CABS               ,"2,850.00",31/01/2015,REV,NVCAR HIRE LTD                
606,CS -Oth Operating Inc & Expend,T/A Vehicle Maintenance etc,Transport-Contract Hire,J01374,Transport Related Expenditure ,Contract Hire and Op Leasing  ,CC64,HIRING TRANSPORT SEN CABS               ,"1,100.00",31/01/2015,REV,CAPITAL CARS                  
607,CS -Oth Operating Inc & Expend,T/A Vehicle Maintenance etc,Transport-Contract Hire,J01374,Transport Related Expenditure ,Contract Hire and Op Leasing  ,CC64,HIRING TRANSPORT SEN CABS               ,"1,216.00",30/01/2015,REV,SILVERBURN FINANCE (UK) LTD   
608,CS -Oth Operating Inc & Expend,T/A Vehicle Maintenance etc,Transport-Contract Hire,J01374,Transport Related Expenditure ,Contract Hire and Op Leasing  ,CC64,HIRING TRANSPORT SEN CABS               ,700,02/02/2015,REV,AERIAL CAR SERVICES LTD       
609,CS -Oth Operating Inc & Expend,T/A Vehicle Maintenance etc,Transport-Contract Hire,J01374,Transport Related Expenditure ,Contract Hire and Op Leasing  ,CC64,HIRING TRANSPORT SEN CABS               ,"2,950.00",30/01/2015,REV,BARCLAYS ASSET & SALES FINANCE
610,CS -Oth Operating Inc & Expend,T/A Vehicle Maintenance etc,Transport-Contract Hire,J01374,Transport Related Expenditure ,Contract Hire and Op Leasing  ,CC64,HIRING TRANSPORT SEN CABS               ,"1,692.00",31/01/2015,REV,KINGSTON ACCESSIBILITY TRAN LT
611,CS -Oth Operating Inc & Expend,T/A Vehicle Maintenance etc,Transport-Contract Hire,J01374,Transport Related Expenditure ,Contract Hire and Op Leasing  ,CC64,HIRING TRANSPORT SEN CABS               ,"1,793.60",31/01/2015,REV,SHERWOOD TRANSPORT GROUP      
612,CS -Oth Operating Inc & Expend,T/A Vehicle Maintenance etc,Transport-Contract Hire,J01374,Transport Related Expenditure ,Contract Hire and Op Leasing  ,CC64,HIRING TRANSPORT SEN CABS               ,"1,080.00",31/01/2015,REV,NVCAR HIRE LTD                
613,CS -Oth Operating Inc & Expend,T/A Vehicle Maintenance etc,Transport-Contract Hire,J01374,Transport Related Expenditure ,Contract Hire and Op Leasing  ,CC64,HIRING TRANSPORT SEN CABS               ,"1,920.00",31/01/2015,REV,PREMIER CARS                  
614,CS -Oth Operating Inc & Expend,T/A Vehicle Maintenance etc,Transport-Contract Hire,J01374,Transport Related Expenditure ,Contract Hire and Op Leasing  ,CC64,HIRING TRANSPORT SEN CABS               ,"3,594.42",31/01/2015,REV,KINGSTON ACCESSIBILITY TRAN LT
615,CS -Oth Operating Inc & Expend,T/A Vehicle Maintenance etc,Transport-Contract Hire,J01374,Transport Related Expenditure ,Contract Hire and Op Leasing  ,CC64,HIRING TRANSPORT SEN CABS               ,"1,479.14",31/01/2015,REV,KINGSTON ACCESSIBILITY TRAN LT
616,CS -Oth Operating Inc & Expend,T/A Vehicle Maintenance etc,Transport-Contract Hire,J01374,Transport Related Expenditure ,Contract Hire and Op Leasing  ,CC64,HIRING TRANSPORT SEN CABS               ,"1,520.00",31/01/2015,REV,CAPITAL CARS                  
617,CS -Oth Operating Inc & Expend,T/A Vehicle Maintenance etc,Transport-Contract Hire,J01374,Transport Related Expenditure ,Contract Hire and Op Leasing  ,CC64,HIRING TRANSPORT SEN CABS               ,"1,500.00",30/01/2015,REV,SILVERBURN FINANCE (UK) LTD   
618,CS -Oth Operating Inc & Expend,T/A Vehicle Maintenance etc,Transport-Contract Hire,J01374,Transport Related Expenditure ,Contract Hire and Op Leasing  ,CC64,HIRING TRANSPORT SEN CABS               ,"2,853.00",31/01/2015,REV,SHERWOOD TRANSPORT GROUP      
619,CS -Oth Operating Inc & Expend,T/A Vehicle Maintenance etc,Transport-Contract Hire,J01374,Transport Related Expenditure ,Contract Hire and Op Leasing  ,CC64,HIRING TRANSPORT SEN CABS               ,"2,120.00",31/01/2015,REV,CAPITAL CARS                  
620,CS -Oth Operating Inc & Expend,T/A Vehicle Maintenance etc,Transport-Contract Hire,J01374,Transport Related Expenditure ,Contract Hire and Op Leasing  ,CC64,HIRING TRANSPORT SEN CABS               ,"2,470.00",30/01/2015,REV,BARCLAYS ASSET & SALES FINANCE
621,CS -Oth Operating Inc & Expend,T/A Vehicle Maintenance etc,Transport-Contract Hire,J01374,Transport Related Expenditure ,Contract Hire and Op Leasing  ,CC64,HIRING TRANSPORT SEN CABS               ,"2,834.42",31/01/2015,REV,KINGSTON ACCESSIBILITY TRAN LT
622,CS -Oth Operating Inc & Expend,T/A Vehicle Maintenance etc,Transport-Contract Hire,J01374,Transport Related Expenditure ,Contract Hire and Op Leasing  ,CC64,HIRING TRANSPORT SEN CABS               ,"1,626.00",31/01/2015,REV,NVCAR HIRE LTD                
623,CS -Oth Operating Inc & Expend,T/A Vehicle Maintenance etc,Transport-Contract Hire,J01374,Transport Related Expenditure ,Contract Hire and Op Leasing  ,CC64,HIRING TRANSPORT SEN CABS               ,"1,900.00",31/01/2015,REV,SHERWOOD TRANSPORT GROUP      
624,CS -Oth Operating Inc & Expend,T/A Vehicle Maintenance etc,Transport-Contract Hire,J01374,Transport Related Expenditure ,Contract Hire and Op Leasing  ,CC64,HIRING TRANSPORT SEN CABS               ,"1,344.00",30/01/2015,REV,BARCLAYS ASSET & SALES FINANCE
625,CS -Oth Operating Inc & Expend,T/A Vehicle Maintenance etc,Transport-Contract Hire,J01374,Transport Related Expenditure ,Contract Hire and Op Leasing  ,CC64,HIRING TRANSPORT SEN CABS               ,"1,400.00",31/01/2015,REV,SHERWOOD TRANSPORT GROUP      
626,CS -Oth Operating Inc & Expend,T/A Vehicle Maintenance etc,Transport-Contract Hire,J01374,Transport Related Expenditure ,Contract Hire and Op Leasing  ,CC64,HIRING TRANSPORT SEN CABS               ,"1,075.00",31/01/2015,REV,NVCAR HIRE LTD                
627,CS -Oth Operating Inc & Expend,T/A Vehicle Maintenance etc,Transport-Contract Hire,J01374,Transport Related Expenditure ,Contract Hire and Op Leasing  ,CC64,HIRING TRANSPORT SEN CABS               ,936,31/01/2015,REV,NVCAR HIRE LTD                
628,CS -Oth Operating Inc & Expend,T/A Vehicle Maintenance etc,Transport-Contract Hire,J01374,Transport Related Expenditure ,Contract Hire and Op Leasing  ,CC64,HIRING TRANSPORT SEN CABS               ,800,31/01/2015,REV,GALPINS SERVICE               
629,CS -Oth Operating Inc & Expend,T/A Vehicle Maintenance etc,Transport-Contract Hire,J01374,Transport Related Expenditure ,Contract Hire and Op Leasing  ,CC64,HIRING TRANSPORT SEN CABS               ,"2,660.00",30/01/2015,REV,BARCLAYS ASSET & SALES FINANCE
630,CS -Oth Operating Inc & Expend,T/A Vehicle Maintenance etc,Transport-Contract Hire,J01374,Transport Related Expenditure ,Contract Hire and Op Leasing  ,CC64,HIRING TRANSPORT SEN CABS               ,"1,231.20",31/01/2015,REV,KINGSTON ACCESSIBILITY TRAN LT
631,CS -Oth Operating Inc & Expend,T/A Vehicle Maintenance etc,Transport-Contract Hire,J01374,Transport Related Expenditure ,Contract Hire and Op Leasing  ,CC64,HIRING TRANSPORT SEN CABS               ,836,31/01/2015,REV,NVCAR HIRE LTD                
632,CS -Oth Operating Inc & Expend,T/A Vehicle Maintenance etc,Transport-Contract Hire,J01374,Transport Related Expenditure ,Contract Hire and Op Leasing  ,CC64,HIRING TRANSPORT SEN CABS               ,"1,501.00",31/01/2015,REV,SHERWOOD TRANSPORT GROUP      
633,CS -Oth Operating Inc & Expend,T/A Vehicle Maintenance etc,Transport-Contract Hire,J01374,Transport Related Expenditure ,Contract Hire and Op Leasing  ,CC64,HIRING TRANSPORT SEN CABS               ,"1,881.00",31/01/2015,REV,SHERWOOD TRANSPORT GROUP      
634,CS -Oth Operating Inc & Expend,T/A Vehicle Maintenance etc,Transport-Contract Hire,J01374,Transport Related Expenditure ,Contract Hire and Op Leasing  ,CC64,HIRING TRANSPORT SEN CABS               ,960,30/01/2015,REV,BARCLAYS ASSET & SALES FINANCE
635,CS -Oth Operating Inc & Expend,T/A Vehicle Maintenance etc,Transport-Contract Hire,J01374,Transport Related Expenditure ,Contract Hire and Op Leasing  ,CC64,HIRING TRANSPORT SEN CABS               ,"2,160.00",31/01/2015,REV,NVCAR HIRE LTD                
636,CS -Oth Operating Inc & Expend,T/A Vehicle Maintenance etc,Transport-Contract Hire,J01374,Transport Related Expenditure ,Contract Hire and Op Leasing  ,CC64,HIRING TRANSPORT SEN CABS               ,"1,292.00",31/01/2015,REV,GALPINS SERVICE               
637,CS -Oth Operating Inc & Expend,T/A Vehicle Maintenance etc,Transport-Contract Hire,J01374,Transport Related Expenditure ,Contract Hire and Op Leasing  ,CC64,HIRING TRANSPORT SEN CABS               ,"1,776.00",30/01/2015,REV,BARCLAYS ASSET & SALES FINANCE
638,CS -Oth Operating Inc & Expend,T/A Vehicle Maintenance etc,Transport-Contract Hire,J01374,Transport Related Expenditure ,Contract Hire and Op Leasing  ,CC64,HIRING TRANSPORT SEN CABS               ,"2,484.00",29/01/2015,REV,WALLINGTON CARS & COURIERS LTD
639,CS -Oth Operating Inc & Expend,T/A Vehicle Maintenance etc,Transport-Contract Hire,J01374,Transport Related Expenditure ,Contract Hire and Op Leasing  ,CC64,HIRING TRANSPORT SEN CABS               ,"2,166.00",31/01/2015,REV,CAPITAL CARS                  
640,CS -Oth Operating Inc & Expend,T/A Vehicle Maintenance etc,Transport-Contract Hire,J01374,Transport Related Expenditure ,Contract Hire and Op Leasing  ,CC64,HIRING TRANSPORT SEN CABS               ,975,30/01/2015,REV,SILVERBURN FINANCE (UK) LTD   
641,CS -Oth Operating Inc & Expend,T/A Vehicle Maintenance etc,Transport-Contract Hire,J01374,Transport Related Expenditure ,Contract Hire and Op Leasing  ,CC64,HIRING TRANSPORT SEN CABS               ,"2,880.00",31/01/2015,REV,CAPITAL CARS                  
642,CS -Oth Operating Inc & Expend,T/A Vehicle Maintenance etc,Transport-Contract Hire,J01374,Transport Related Expenditure ,Contract Hire and Op Leasing  ,CC64,HIRING TRANSPORT SEN CABS               ,"2,850.00",29/01/2015,REV,WALLINGTON CARS & COURIERS LTD
643,CS -Oth Operating Inc & Expend,T/A Vehicle Maintenance etc,Transport-Contract Hire,J01374,Transport Related Expenditure ,Contract Hire and Op Leasing  ,CC64,HIRING TRANSPORT SEN CABS               ,588,31/01/2015,REV,NVCAR HIRE LTD                
644,CS -Oth Operating Inc & Expend,T/A Vehicle Maintenance etc,Transport-Contract Hire,J01374,Transport Related Expenditure ,Contract Hire and Op Leasing  ,CC64,HIRING TRANSPORT SEN CABS               ,"3,583.60",31/01/2015,REV,KINGSTON ACCESSIBILITY TRAN LT
645,CS -Oth Operating Inc & Expend,T/A Vehicle Maintenance etc,Transport-Contract Hire,J01374,Transport Related Expenditure ,Contract Hire and Op Leasing  ,CC64,HIRING TRANSPORT SEN CABS               ,735,31/01/2015,REV,CAPITAL CARS                  
646,CS -Oth Operating Inc & Expend,T/A Vehicle Maintenance etc,Transport-Contract Hire,J01374,Transport Related Expenditure ,Contract Hire and Op Leasing  ,CC64,HIRING TRANSPORT SEN CABS               ,"1,800.00",31/01/2015,REV,SHERWOOD TRANSPORT GROUP      
647,CS -Oth Operating Inc & Expend,T/A Vehicle Maintenance etc,Transport-Contract Hire,J01374,Transport Related Expenditure ,Contract Hire and Op Leasing  ,CC64,HIRING TRANSPORT SEN CABS               ,"2,000.00",31/01/2015,REV,NVCAR HIRE LTD                
648,CS -Oth Operating Inc & Expend,T/A Vehicle Maintenance etc,Transport-Contract Hire,J01374,Transport Related Expenditure ,Contract Hire and Op Leasing  ,CC64,HIRING TRANSPORT SEN CABS               ,"1,920.00",31/01/2015,REV,CAPITAL CARS                  
649,CS -Oth Operating Inc & Expend,T/A Vehicle Maintenance etc,Transport-Contract Hire,J01374,Transport Related Expenditure ,Contract Hire and Op Leasing  ,CC64,HIRING TRANSPORT SEN CABS               ,"1,987.02",31/01/2015,REV,KINGSTON ACCESSIBILITY TRAN LT
650,CS -Oth Operating Inc & Expend,T/A Vehicle Maintenance etc,Transport-Contract Hire,J01374,Transport Related Expenditure ,Contract Hire and Op Leasing  ,CC64,HIRING TRANSPORT SEN CABS               ,"1,899.62",31/01/2015,REV,KINGSTON ACCESSIBILITY TRAN LT
651,CS -Oth Operating Inc & Expend,T/A Vehicle Maintenance etc,Transport-Contract Hire,J01374,Transport Related Expenditure ,Contract Hire and Op Leasing  ,CC64,HIRING TRANSPORT SEN CABS               ,600,31/01/2015,REV,NVCAR HIRE LTD                
652,CS -Oth Operating Inc & Expend,T/A Vehicle Maintenance etc,Transport-Contract Hire,J01374,Transport Related Expenditure ,Contract Hire and Op Leasing  ,CC64,HIRING TRANSPORT SEN CABS               ,"2,261.00",30/01/2015,REV,BRUNSWICK CARS LTD            
653,CS -Oth Operating Inc & Expend,T/A Vehicle Maintenance etc,Transport-Contract Hire,J01374,Transport Related Expenditure ,Contract Hire and Op Leasing  ,CC64,HIRING TRANSPORT SEN CABS               ,"2,786.00",30/01/2015,REV,BARCLAYS ASSET & SALES FINANCE
654,CS -Oth Operating Inc & Expend,T/A Vehicle Maintenance etc,Transport-Contract Hire,J01374,Transport Related Expenditure ,Contract Hire and Op Leasing  ,CC64,HIRING TRANSPORT SEN CABS               ,"1,365.00",30/01/2015,REV,SILVERBURN FINANCE (UK) LTD   
655,CS -Oth Operating Inc & Expend,T/A Vehicle Maintenance etc,Transport-Contract Hire,J01374,Transport Related Expenditure ,Contract Hire and Op Leasing  ,CC64,HIRING TRANSPORT SEN CABS               ,947.67,31/01/2015,REV,GALPINS SERVICE               
656,CS -Oth Operating Inc & Expend,T/A Vehicle Maintenance etc,Transport-Contract Hire,J01374,Transport Related Expenditure ,Contract Hire and Op Leasing  ,CC64,HIRING TRANSPORT SEN CABS               ,"2,470.00",31/01/2015,REV,CAPITAL CARS                  
657,CS -Oth Operating Inc & Expend,T/A Vehicle Maintenance etc,Transport-Contract Hire,J01374,Transport Related Expenditure ,Contract Hire and Op Leasing  ,CC64,HIRING TRANSPORT SEN CABS               ,"1,692.00",31/01/2015,REV,CAPITAL CARS                  
658,CS -Oth Operating Inc & Expend,T/A Vehicle Maintenance etc,Transport-Contract Hire,J01374,Transport Related Expenditure ,Contract Hire and Op Leasing  ,CC64,HIRING TRANSPORT SEN CABS               ,"1,672.00",30/01/2015,REV,SILVERBURN FINANCE (UK) LTD   
659,CS -Oth Operating Inc & Expend,T/A Vehicle Maintenance etc,Transport-Contract Hire,J01374,Transport Related Expenditure ,Contract Hire and Op Leasing  ,CC64,HIRING TRANSPORT SEN CABS               ,"2,682.42",31/01/2015,REV,KINGSTON ACCESSIBILITY TRAN LT
660,CS -Oth Operating Inc & Expend,T/A Vehicle Maintenance etc,Transport-Contract Hire,J01374,Transport Related Expenditure ,Contract Hire and Op Leasing  ,CC64,HIRING TRANSPORT SEN CABS               ,760,31/01/2015,REV,SHERWOOD TRANSPORT GROUP      
661,CS -Oth Operating Inc & Expend,T/A Vehicle Maintenance etc,Transport-Contract Hire,J01374,Transport Related Expenditure ,Contract Hire and Op Leasing  ,CC64,HIRING TRANSPORT SEN CABS               ,"1,680.00",31/01/2015,REV,CAPITAL CARS                  
662,CS -Oth Operating Inc & Expend,T/A Vehicle Maintenance etc,Transport-Contract Hire,J01374,Transport Related Expenditure ,Contract Hire and Op Leasing  ,CC64,HIRING TRANSPORT SEN CABS               ,"3,200.00",29/01/2015,REV,WALLINGTON CARS & COURIERS LTD
663,CS -Oth Operating Inc & Expend,T/A Vehicle Maintenance etc,Transport-Contract Hire,J01374,Transport Related Expenditure ,Contract Hire and Op Leasing  ,CC64,HIRING TRANSPORT SEN CABS               ,"1,800.00",31/01/2015,REV,NVCAR HIRE LTD                
664,CS -Oth Operating Inc & Expend,T/A Vehicle Maintenance etc,Transport-Contract Hire,J01374,Transport Related Expenditure ,Contract Hire and Op Leasing  ,CC64,HIRING TRANSPORT SEN CABS               ,"1,160.00",30/01/2015,REV,SILVERBURN FINANCE (UK) LTD   
665,CS -Oth Operating Inc & Expend,T/A Vehicle Maintenance etc,Transport-Contract Hire,J01374,Transport Related Expenditure ,Contract Hire and Op Leasing  ,CC64,HIRING TRANSPORT SEN CABS               ,"1,000.00",31/01/2015,REV,NVCAR HIRE LTD                
666,CS -Oth Operating Inc & Expend,T/A Vehicle Maintenance etc,Transport-Contract Hire,J01374,Transport Related Expenditure ,Contract Hire and Op Leasing  ,CC64,HIRING TRANSPORT SEN CABS               ,"2,560.00",31/01/2015,REV,A STAR TRANSPORT LIMITED      
667,CS -Oth Operating Inc & Expend,T/A Vehicle Maintenance etc,Transport-Contract Hire,J01374,Transport Related Expenditure ,Contract Hire and Op Leasing  ,CC64,HIRING TRANSPORT SEN CABS               ,"1,220.00",31/01/2015,REV,NVCAR HIRE LTD                
668,CS -Oth Operating Inc & Expend,T/A Vehicle Maintenance etc,Transport-Contract Hire,J01374,Transport Related Expenditure ,Contract Hire and Op Leasing  ,CC64,HIRING TRANSPORT SEN CABS               ,"1,170.00",31/01/2015,REV,A STAR TRANSPORT LIMITED      
669,CS -Oth Operating Inc & Expend,T/A Vehicle Maintenance etc,Transport-Contract Hire,J01374,Transport Related Expenditure ,Contract Hire and Op Leasing  ,CC64,HIRING TRANSPORT SEN CABS               ,"1,224.50",31/01/2015,REV,SHERWOOD TRANSPORT GROUP      
670,CS -Oth Operating Inc & Expend,T/A Vehicle Maintenance etc,Transport-Contract Hire,J01374,Transport Related Expenditure ,Contract Hire and Op Leasing  ,CC66,HIRING TRANSPORT H&SS CAB CHILDREN      ,"1,040.49",31/01/2015,REV,KINGSTON ACCESSIBILITY TRAN LT
671,CS -Oth Operating Inc & Expend,T/A Vehicle Maintenance etc,Transport-Contract Hire,J01374,Transport Related Expenditure ,Contract Hire and Op Leasing  ,CC67,HIRING TRANSPORT H&SS CAB ADULTS        ,"1,264.00",31/01/2015,REV,NVCAR HIRE LTD                
672,CS -Oth Operating Inc & Expend,T/A Vehicle Maintenance etc,Transport-Contract Hire,J01374,Transport Related Expenditure ,Contract Hire and Op Leasing  ,CC67,HIRING TRANSPORT H&SS CAB ADULTS        ,"1,677.00",30/01/2015,REV,SILVERBURN FINANCE (UK) LTD   
673,CS -Oth Operating Inc & Expend,T/A Vehicle Maintenance etc,Transport-Contract Hire,J01374,Transport Related Expenditure ,Contract Hire and Op Leasing  ,CC67,HIRING TRANSPORT H&SS CAB ADULTS        ,944,31/01/2015,REV,CAPITAL CARS                  
674,CS -Oth Operating Inc & Expend,T/A Vehicle Maintenance etc,Transport-Contract Hire,J01374,Transport Related Expenditure ,Contract Hire and Op Leasing  ,CC67,HIRING TRANSPORT H&SS CAB ADULTS        ,"1,599.52",31/01/2015,REV,KINGSTON ACCESSIBILITY TRAN LT
675,CS -Oth Operating Inc & Expend,T/A Vehicle Maintenance etc,Transport-Contract Hire,J01374,Transport Related Expenditure ,Contract Hire and Op Leasing  ,CC67,HIRING TRANSPORT H&SS CAB ADULTS        ,840,31/01/2015,REV,KINGSTON ACCESSIBILITY TRAN LT
676,CS -Oth Operating Inc & Expend,T/A Vehicle Maintenance etc,Transport-Contract Hire,J01374,Transport Related Expenditure ,Contract Hire and Op Leasing  ,CC67,HIRING TRANSPORT H&SS CAB ADULTS        ,"1,840.00",31/01/2015,REV,CAPITAL CARS                  
677,CS -Oth Operating Inc & Expend,T/A Vehicle Maintenance etc,Transport-Contract Hire,J01374,Transport Related Expenditure ,Contract Hire and Op Leasing  ,CC67,HIRING TRANSPORT H&SS CAB ADULTS        ,752,31/01/2015,REV,CAPITAL CARS                  
678,CS -Oth Operating Inc & Expend,T/A Vehicle Maintenance etc,Transport-Contract Hire,J01374,Transport Related Expenditure ,Contract Hire and Op Leasing  ,CC67,HIRING TRANSPORT H&SS CAB ADULTS        ,532,31/01/2015,REV,NVCAR HIRE LTD                
679,CS -Oth Operating Inc & Expend,T/A Vehicle Maintenance etc,Transport-Contract Hire,J01374,Transport Related Expenditure ,Contract Hire and Op Leasing  ,CC67,HIRING TRANSPORT H&SS CAB ADULTS        ,"2,116.00",30/01/2015,REV,SILVERBURN FINANCE (UK) LTD   
680,CS -Oth Operating Inc & Expend,T/A Vehicle Maintenance etc,Transport-Contract Hire,J01374,Transport Related Expenditure ,Contract Hire and Op Leasing  ,CC67,HIRING TRANSPORT H&SS CAB ADULTS        ,"1,730.00",31/01/2015,REV,SHERWOOD TRANSPORT GROUP      
681,CS -Oth Operating Inc & Expend,T/A Vehicle Maintenance etc,Transport-Contract Hire,J01374,Transport Related Expenditure ,Contract Hire and Op Leasing  ,CC67,HIRING TRANSPORT H&SS CAB ADULTS        ,792,31/01/2015,REV,A STAR TRANSPORT LIMITED      
682,CS -Oth Operating Inc & Expend,T/A Vehicle Maintenance etc,Transport-Contract Hire,J01374,Transport Related Expenditure ,Contract Hire and Op Leasing  ,CC67,HIRING TRANSPORT H&SS CAB ADULTS        ,798,30/01/2015,REV,BARCLAYS ASSET & SALES FINANCE
683,CS -Oth Operating Inc & Expend,T/A Vehicle Maintenance etc,Transport-Contract Hire,J01374,Transport Related Expenditure ,Contract Hire and Op Leasing  ,CC67,HIRING TRANSPORT H&SS CAB ADULTS        ,565,31/01/2015,REV,NVCAR HIRE LTD                
684,CS -Oth Operating Inc & Expend,T/A Vehicle Maintenance etc,Transport-Contract Hire,J01374,Transport Related Expenditure ,Contract Hire and Op Leasing  ,CC67,HIRING TRANSPORT H&SS CAB ADULTS        ,756,31/05/2014,REV,CAPITAL CARS                  
685,CS -Oth Operating Inc & Expend,T/A Vehicle Maintenance etc,Transport-Contract Hire,J01374,Transport Related Expenditure ,Contract Hire and Op Leasing  ,CC67,HIRING TRANSPORT H&SS CAB ADULTS        ,560,31/01/2015,REV,GALPINS SERVICE               
686,CS -Oth Operating Inc & Expend,T/A Vehicle Maintenance etc,Transport-Contract Hire,J01374,Transport Related Expenditure ,Contract Hire and Op Leasing  ,CC67,HIRING TRANSPORT H&SS CAB ADULTS        ,608,31/01/2015,REV,NVCAR HIRE LTD                
687,CS -Oth Operating Inc & Expend,T/A Vehicle Maintenance etc,Transport-Contract Hire,J01374,Transport Related Expenditure ,Contract Hire and Op Leasing  ,CC67,HIRING TRANSPORT H&SS CAB ADULTS        ,"1,088.00",31/01/2015,REV,A STAR TRANSPORT LIMITED      
688,CS -Oth Operating Inc & Expend,T/A Vehicle Maintenance etc,Transport-Contract Hire,J01374,Transport Related Expenditure ,Contract Hire and Op Leasing  ,CC68,HIRING TRANSPORT SEN COLLEGES CABS      ,"2,631.60",31/01/2015,REV,KINGSTON ACCESSIBILITY TRAN LT
689,CS -Oth Operating Inc & Expend,T/A Vehicle Maintenance etc,Transport-Contract Hire,J01374,Transport Related Expenditure ,Contract Hire and Op Leasing  ,CC68,HIRING TRANSPORT SEN COLLEGES CABS      ,"1,384.00",30/01/2015,REV,SILVERBURN FINANCE (UK) LTD   
690,CS -Oth Operating Inc & Expend,T/A Vehicle Maintenance etc,Transport-Contract Hire,J01374,Transport Related Expenditure ,Contract Hire and Op Leasing  ,CC68,HIRING TRANSPORT SEN COLLEGES CABS      ,"3,000.00",30/01/2015,REV,BARCLAYS ASSET & SALES FINANCE
691,CS -Oth Operating Inc & Expend,T/A Vehicle Maintenance etc,Transport-Contract Hire,J01374,Transport Related Expenditure ,Contract Hire and Op Leasing  ,CC68,HIRING TRANSPORT SEN COLLEGES CABS      ,864,30/01/2015,REV,SILVERBURN FINANCE (UK) LTD   
692,CS -Oth Operating Inc & Expend,T/A Vehicle Maintenance etc,Transport-Contract Hire,J01374,Transport Related Expenditure ,Contract Hire and Op Leasing  ,CC68,HIRING TRANSPORT SEN COLLEGES CABS      ,"1,056.00",30/01/2015,REV,SILVERBURN FINANCE (UK) LTD   
693,CS -Oth Operating Inc & Expend,T/A Vehicle Maintenance etc,Transport-Contract Hire,J01374,Transport Related Expenditure ,Contract Hire and Op Leasing  ,CC68,HIRING TRANSPORT SEN COLLEGES CABS      ,620,31/01/2015,REV,NVCAR HIRE LTD                
694,CS -Oth Operating Inc & Expend,T/A Vehicle Maintenance etc,Transport-Contract Hire,J01374,Transport Related Expenditure ,Contract Hire and Op Leasing  ,CC68,HIRING TRANSPORT SEN COLLEGES CABS      ,"1,650.00",31/01/2015,REV,PREMIER CARS                  
695,CS -Oth Operating Inc & Expend,T/A Vehicle Maintenance etc,Transport-Contract Hire,J01374,Transport Related Expenditure ,Contract Hire and Op Leasing  ,CC68,HIRING TRANSPORT SEN COLLEGES CABS      ,650,31/01/2015,REV,CAPITAL CARS                  
696,CS -Oth Operating Inc & Expend,T/A Vehicle Maintenance etc,Transport-Contract Hire,J01374,Transport Related Expenditure ,Contract Hire and Op Leasing  ,CC68,HIRING TRANSPORT SEN COLLEGES CABS      ,"1,308.80",30/01/2015,REV,SILVERBURN FINANCE (UK) LTD   
697,CS -Oth Operating Inc & Expend,T/A Vehicle Maintenance etc,Transport-Workshop,J01376,Transport Related Expenditure ,Contract Hire and Op Leasing  ,CC60,Vehicle Hire for LB Sutton              ,960,29/01/2015,REV,SCHOOL TRANSPORT LTD          
698,CS -Oth Operating Inc & Expend,T/A Vehicle Maintenance etc,Transport-Workshop,J01376,Transport Related Expenditure ,Contract Hire and Op Leasing  ,CC60,Vehicle Hire for LB Sutton              ,"1,750.00",03/02/2015,REV,BARCLAYS ASSET & SALES FINANCE
699,CS -Oth Operating Inc & Expend,T/A Vehicle Maintenance etc,Transport-Workshop,J01376,Transport Related Expenditure ,Contract Hire and Op Leasing  ,CC60,Vehicle Hire for LB Sutton              ,"2,280.00",29/01/2015,REV,SCHOOL TRANSPORT LTD          
700,CS -Oth Operating Inc & Expend,T/A Vehicle Maintenance etc,Transport-Workshop,J01376,Transport Related Expenditure ,Contract Hire and Op Leasing  ,CC60,Vehicle Hire for LB Sutton              ,"3,132.00",30/01/2015,REV,BARCLAYS ASSET & SALES FINANCE
701,CS -Oth Operating Inc & Expend,T/A Vehicle Maintenance etc,Transport-Workshop,J01376,Transport Related Expenditure ,Contract Hire and Op Leasing  ,CC60,Vehicle Hire for LB Sutton              ,"4,701.00",30/01/2015,REV,BARCLAYS ASSET & SALES FINANCE
702,CS -Oth Operating Inc & Expend,T/A Vehicle Maintenance etc,Transport-Workshop,J01376,Transport Related Expenditure ,Contract Hire and Op Leasing  ,CC60,Vehicle Hire for LB Sutton              ,724.34,30/01/2015,REV,SILVERBURN FINANCE (UK) LTD   
703,CS -Oth Operating Inc & Expend,T/A Vehicle Maintenance etc,Transport-Workshop,J01376,Transport Related Expenditure ,Contract Hire and Op Leasing  ,CC60,Vehicle Hire for LB Sutton              ,"2,736.00",31/01/2015,REV,CAPITAL CARS                  
704,CS -Oth Operating Inc & Expend,T/A Vehicle Maintenance etc,Transport-Workshop,J01376,Transport Related Expenditure ,Contract Hire and Op Leasing  ,CC65,Vehicle Hire for Education              ,550,05/11/2014,REV,MAYDAY TRAVEL LTD             
705,CS -Oth Operating Inc & Expend,T/A Vehicle Maintenance etc,Transport-Workshop,J01376,Transport Related Expenditure ,Contract Hire and Op Leasing  ,CC65,Vehicle Hire for Education              ,"2,128.00",30/01/2015,REV,BARCLAYS ASSET & SALES FINANCE
706,CS -Oth Operating Inc & Expend,T/A Vehicle Maintenance etc,Vehicle Workshops,J01378,Transport Related Expenditure ,Direct Transport Costs        ,CA02,Tyres                                   ,675,29/01/2015,REV,MORDEN TYRE SERVICES LTD      
707,CS -Oth Operating Inc & Expend,T/A Vehicle Maintenance etc,Vehicle Workshops,J01378,Transport Related Expenditure ,Direct Transport Costs        ,CA02,Tyres                                   ,985,16/02/2015,REV,MORDEN TYRE SERVICES LTD      
708,CS -Oth Operating Inc & Expend,T/A Vehicle Maintenance etc,Vehicle Workshops,J01378,Transport Related Expenditure ,Direct Transport Costs        ,CA02,Tyres                                   ,"1,460.00",26/01/2015,REV,MORDEN TYRE SERVICES LTD      
709,CS -Oth Operating Inc & Expend,T/A Vehicle Maintenance etc,Vehicle Workshops,J01378,Transport Related Expenditure ,Direct Transport Costs        ,CA02,Tyres                                   ,685,06/02/2015,REV,MORDEN TYRE SERVICES LTD      
710,CS -Oth Operating Inc & Expend,T/A Vehicle Maintenance etc,Vehicle Workshops,J01378,Transport Related Expenditure ,Direct Transport Costs        ,CA55,Specialist Maint. (Off Site)            ,"1,682.17",23/01/2015,REV,FLEETSPEED COACHWORKS LTD.    
711,CS -Oth Operating Inc & Expend,T/A Vehicle Maintenance etc,Vehicle Workshops,J01378,Transport Related Expenditure ,Direct Transport Costs        ,CA55,Specialist Maint. (Off Site)            ,"2,125.00",03/02/2015,REV,MC TRUCK & BUS                
712,CS -Oth Operating Inc & Expend,T/A Vehicle Maintenance etc,Vehicle Workshops,J01378,Transport Related Expenditure ,Direct Transport Costs        ,CA55,Specialist Maint. (Off Site)            ,"1,509.02",28/01/2015,REV,FLEETSPEED COACHWORKS LTD.    
713,CS -Oth Operating Inc & Expend,T/A Vehicle Maintenance etc,Vehicle Workshops,J01378,Transport Related Expenditure ,Direct Transport Costs        ,CA55,Specialist Maint. (Off Site)            ,"5,418.14",16/02/2015,REV,ROSSETTS COMMERCIALS          
714,CS -Oth Operating Inc & Expend,T/A Vehicle Maintenance etc,Vehicle Workshops,J01378,Transport Related Expenditure ,Direct Transport Costs        ,CA55,Specialist Maint. (Off Site)            ,"1,459.67",23/01/2015,REV,FLEETSPEED COACHWORKS LTD.    
715,CS -Oth Operating Inc & Expend,T/A Vehicle Maintenance etc,Vehicle Workshops,J01378,Transport Related Expenditure ,Direct Transport Costs        ,CA56,Specialist Maint. (On Site)             ,586.97,10/02/2015,REV,FARID MUNICIPAL VEHICLES LTD  
716,CS -Oth Operating Inc & Expend,T/A Vehicle Maintenance etc,Vehicle Workshops,J01378,Transport Related Expenditure ,Direct Transport Costs        ,CA56,Specialist Maint. (On Site)             ,618.15,11/01/2015,REV,REDACTED
717,CS -Oth Operating Inc & Expend,T/A Vehicle Maintenance etc,Vehicle Workshops,J01378,Transport Related Expenditure ,Direct Transport Costs        ,CA56,Specialist Maint. (On Site)             ,646.8,11/01/2015,REV,REDACTED
718,CS -Oth Operating Inc & Expend,T/A Vehicle Maintenance etc,Vehicle Workshops,J01378,Transport Related Expenditure ,Direct Transport Costs        ,CA56,Specialist Maint. (On Site)             ,632.5,31/01/2015,REV,R.J.H.WELDING                 
719,CS -Oth Operating Inc & Expend,T/A Vehicle Maintenance etc,Vehicle Workshops,J01378,Transport Related Expenditure ,Direct Transport Costs        ,CA56,Specialist Maint. (On Site)             ,515.55,03/02/2015,REV,REDACTED
720,CS -Oth Operating Inc & Expend,T/A Vehicle Maintenance etc,Vehicle Workshops,J01378,Transport Related Expenditure ,Direct Transport Costs        ,CA56,Specialist Maint. (On Site)             ,522.57,12/02/2015,REV,NTM GB LIMITED                
721,CS -Oth Operating Inc & Expend,T/A Vehicle Maintenance etc,Vehicle Workshops,J01378,Transport Related Expenditure ,Direct Transport Costs        ,CA56,Specialist Maint. (On Site)             ,513.6,25/01/2015,REV,REDACTED
722,CS -Oth Operating Inc & Expend,T/A Vehicle Maintenance etc,Vehicle Workshops,J01378,Transport Related Expenditure ,Direct Transport Costs        ,CA56,Specialist Maint. (On Site)             ,632.5,31/01/2015,REV,R.J.H.WELDING                 
723,CS -Oth Operating Inc & Expend,T/A Vehicle Maintenance etc,Vehicle Workshops,J01378,Transport Related Expenditure ,Direct Transport Costs        ,CA72,Vehicle Parts                           ,"1,487.60",03/02/2015,REV,DENNIS EAGLE LIMITED          
724,CS -Oth Operating Inc & Expend,T/A Vehicle Maintenance etc,Vehicle Workshops,J01378,Transport Related Expenditure ,Direct Transport Costs        ,CA72,Vehicle Parts                           ,977.18,27/01/2015,REV,REDACTED
725,CS -Oth Operating Inc & Expend,T/A Vehicle Maintenance etc,Vehicle Workshops,J01378,Transport Related Expenditure ,Direct Transport Costs        ,CA72,Vehicle Parts                           ,560.12,09/02/2015,REV,COMMERCIAL & PLANT LTD        
726,CS -Oth Operating Inc & Expend,T/A Vehicle Maintenance etc,Vehicle Workshops,J01378,Transport Related Expenditure ,Direct Transport Costs        ,CA72,Vehicle Parts                           ,886.2,04/02/2015,REV,GEESINK NORBA                 
727,CS -Oth Operating Inc & Expend,T/A Vehicle Maintenance etc,Vehicle Workshops,J01378,Transport Related Expenditure ,Direct Transport Costs        ,CA72,Vehicle Parts                           ,571.95,09/02/2015,REV,CBOC LUBRICANTS               
728,CS -Oth Operating Inc & Expend,T/A Vehicle Maintenance etc,Vehicle Workshops,J01378,Transport Related Expenditure ,Direct Transport Costs        ,CA72,Vehicle Parts                           ,557.6,23/01/2015,REV,REDACTED
729,CS -Oth Operating Inc & Expend,T/A Vehicle Maintenance etc,Vehicle Workshops,J01378,Transport Related Expenditure ,Direct Transport Costs        ,CA73,Vehicle Consumables                     ,754.03,03/02/2015,REV,COMMERCIAL & PLANT LTD        
730,CS -Oth Operating Inc & Expend,T/A Vehicle Maintenance etc,Vehicle Workshops,J01378,Transport Related Expenditure ,Direct Transport Costs        ,CA73,Vehicle Consumables                     ,674.62,28/01/2015,REV,COMMERCIAL & PLANT LTD        
731,CS -Oth Operating Inc & Expend,T/A Vehicle Maintenance etc,Vehicle Workshops,J01378,Transport Related Expenditure ,Contract Hire and Op Leasing  ,CC53,Plant Hire for MRCS                     ,610,17/02/2015,REV,PFB HIRE LTD                  
732,CS -Oth Operating Inc & Expend,T/A Vehicle Maintenance etc,Vehicle Workshops,J01378,Supplies & Services           ,Equip Furniture/Materials     ,DA01,Equipment - R & M                       ,658.7,25/01/2015,REV,SUNLIGHT SERVICE GROUP LTD    
733,CS -Oth Operating Inc & Expend,T/A Vehicle Maintenance etc,Vehicle Workshops,J01378,Supplies & Services           ,Equip Furniture/Materials     ,DA01,Equipment - R & M                       ,"1,260.00",03/02/2015,REV,V L TEST SYSTEMS LTD          
734,CS -Oth Operating Inc & Expend,Extraordinary Items & PY Adj.,Gdn r.o. 44 S'down Rd,J01451,Supplies & Services           ,Services                      ,DF11,Gdn r.o. 44 S'down Rd         -Counsel's,"1,125.00",20/01/2015,REV,REDACTED
735,CS -Oth Operating Inc & Expend,Extraordinary Items & PY Adj.,Housing Shops,J01533,Premises Related Expenditure  ,RepairsAlterations&MtceOfBldgs,BA01,DDM - GENERAL BUILDING                  ,"2,690.00",17/02/2015,REV,KH FLOORING LTD               
736,Central Services,NDC Unused Office Accomodation,Montgomery Close,J02044,Premises Related Expenditure  ,RepairsAlterations&MtceOfBldgs,BA05,DDM - ELECTRICAL                        ,"1,226.98",19/01/2015,REV,ADT FIRE & SECURITY PLC       
737,Childrens & Education Services,Statutory & Regulatory Duties,Senior Mngt & Support Services,K01005,Employees                     ,Direct Employee Expenses      ,AA17,Agency Staff & Casual Paymts            ,"15,920.00",31/01/2015,REV,PENNA COMMUNICATIONS (NO 2 A/C
738,Childrens & Education Services,Statutory & Regulatory Duties,Senior Mngt & Support Services,K01005,Supplies & Services           ,Services                      ,DF11,Counsel's Fees                          ,706.87,21/01/2015,REV,REDACTED
739,Childrens & Education Services,Statutory & Regulatory Duties,Senior Mngt & Support Services,K01005,Supplies & Services           ,Services                      ,DF11,Counsel's Fees                          ,"1,225.00",23/12/2014,REV,REDACTED
740,Childrens & Education Services,Statutory & Regulatory Duties,Senior Mngt & Support Services,K01005,Supplies & Services           ,Services                      ,DF11,Counsel's Fees                          ,500,04/02/2015,REV,REDACTED
741,Childrens & Education Services,Statutory & Regulatory Duties,Senior Mngt & Support Services,K01005,Supplies & Services           ,Services                      ,DF11,Counsel's Fees                          ,513.33,04/02/2015,REV,REDACTED
742,Childrens & Education Services,Statutory & Regulatory Duties,Senior Mngt & Support Services,K01005,Supplies & Services           ,Services                      ,DF11,Counsel's Fees                          ,675,22/01/2015,REV,REDACTED
743,Childrens & Education Services,Statutory & Regulatory Duties,Senior Mngt & Support Services,K01005,Supplies & Services           ,Services                      ,DF11,Counsel's Fees                          ,500,04/02/2015,REV,REDACTED
744,Childrens & Education Services,Statutory & Regulatory Duties,Senior Mngt & Support Services,K01005,Supplies & Services           ,Services                      ,DF11,Counsel's Fees                          ,"1,690.00",10/02/2015,REV,REDACTED
745,Childrens & Education Services,Statutory & Regulatory Duties,Senior Mngt & Support Services,K01005,Supplies & Services           ,Services                      ,DF11,Counsel's Fees                          ,510,30/01/2015,REV,REDACTED
746,Childrens & Education Services,Statutory & Regulatory Duties,Schools IT Support,K02008,Supplies & Services           ,Services                      ,DF03,Consultants                             ,"1,300.00",28/01/2015,REV,SCHOOL ANALYTICS LTD          
747,Childrens & Education Services,Statutory & Regulatory Duties,Schools IT Support,K02008,Supplies & Services           ,Comms and Computing           ,DG50,Other IT Expenditure                    ,"1,900.00",16/12/2014,REV,ITRM LTD                      
748,Childrens & Education Services,Statutory & Regulatory Duties,Schools IT Support,K02008,Supplies & Services           ,Comms and Computing           ,DG50,Other IT Expenditure                    ,"1,662.50",12/02/2015,REV,LONDON GRID LTD               
749,Childrens & Education Services,Statutory & Regulatory Duties,Schools IT Support,K02008,Supplies & Services           ,Comms and Computing           ,DG50,Other IT Expenditure                    ,"2,137.50",12/02/2015,REV,LONDON GRID LTD               
750,Childrens & Education Services,Statutory & Regulatory Duties,Schools IT Support,K02008,Supplies & Services           ,Comms and Computing           ,DG50,Other IT Expenditure                    ,-950,27/01/2015,REV,ITRM LTD                      
751,Childrens & Education Services,Statutory & Regulatory Duties,Schools IT Support,K02008,Supplies & Services           ,Comms and Computing           ,DG50,Other IT Expenditure                    ,950,12/02/2015,REV,LONDON GRID LTD               
752,Childrens & Education Services,Statutory & Regulatory Duties,Schools IT Support,K02008,Supplies & Services           ,Comms and Computing           ,DG50,Other IT Expenditure                    ,"1,662.50",12/02/2015,REV,LONDON GRID LTD               
753,Childrens & Education Services,Statutory & Regulatory Duties,Schools IT Support,K02008,Supplies & Services           ,Comms and Computing           ,DG50,Other IT Expenditure                    ,"2,137.50",12/02/2015,REV,LONDON GRID LTD               
754,Childrens & Education Services,Statutory & Regulatory Duties,Schools IT Support,K02008,Supplies & Services           ,Comms and Computing           ,DG50,Other IT Expenditure                    ,"2,137.50",12/02/2015,REV,LONDON GRID LTD               
755,Childrens & Education Services,Statutory & Regulatory Duties,Schools IT Support,K02008,Supplies & Services           ,Comms and Computing           ,DG50,Other IT Expenditure                    ,"2,375.00",12/02/2015,REV,LONDON GRID LTD               
756,Childrens & Education Services,Statutory & Regulatory Duties,Schools IT Support,K02008,Supplies & Services           ,Comms and Computing           ,DG50,Other IT Expenditure                    ,"1,662.50",12/02/2015,REV,LONDON GRID LTD               
757,Childrens & Education Services,Statutory & Regulatory Duties,Schools IT Support,K02008,Supplies & Services           ,Comms and Computing           ,DG50,Other IT Expenditure                    ,"1,662.50",12/02/2015,REV,LONDON GRID LTD               
758,Childrens & Education Services,Asset Management,PFI Unitary Charges,K03023,Third Party Payments          ,Private Contractors           ,EH02,Miscellaneous Hired Services            ,"2,517.50",12/11/2015,REV,NEWSCHOOLS (MERTON) LIMITED   
759,Childrens & Education Services,Asset Management,PFI Unitary Charges,K03023,Third Party Payments          ,Private Contractors           ,EH02,Miscellaneous Hired Services            ,"2,517.50",12/11/2015,REV,NEWSCHOOLS (MERTON) LIMITED   
760,Childrens & Education Services,Statutory & Regulatory Duties,Head of Special Educatn Needs,K04017,Supplies & Services           ,Services                      ,DF03,Consultants                             ,900,09/10/2014,REV,MERTON MENCAP                 
761,Childrens & Education Services,Education Psychology Service,Education Psychology.,K04018,Employees                     ,Direct Employee Expenses      ,AA17,Agency Staff & Casual Paymts            ,"4,900.00",06/02/2015,REV,REDACTED
762,Childrens & Education Services,Education Psychology Service,Education Psychology.,K04018,Employees                     ,Direct Employee Expenses      ,AA17,Agency Staff & Casual Paymts            ,937.5,05/02/2015,REV,REDACTED
763,Childrens & Education Services,Education Psychology Service,Education Psychology.,K04018,Supplies & Services           ,Equip Furniture/Materials     ,DA09,Equip-Purchases                         ,"1,059.35",08/01/2015,REV,GL ASSESSMENT                 
764,Childrens & Education Services,Education Psychology Service,Education Psychology.,K04018,Supplies & Services           ,Comms and Computing           ,DG09,Computer Purchases - Misc               ,"1,796.70",20/01/2015,REV,SPECIALIST COMPUTER CENT. PLC 
765,Childrens & Education Services,Education Psychology Service,Education Psychology.,K04018,Supplies & Services           ,Expenses                      ,DH02,Conferences                             ,"2,250.00",02/02/2015,REV,PADDOCK SCHOOL                
766,Childrens & Education Services,Support for SEN Pupils,Statementing-Transport,K04023,Transport Related Expenditure ,Public Transport              ,CD50,Home Sch/Coll Trans(Trav Exps)          ,792,01/02/2015,REV,MASTER TAXIS                  
767,Childrens & Education Services,Support for SEN Pupils,Statementing-Transport,K04023,Transport Related Expenditure ,Public Transport              ,CD50,Home Sch/Coll Trans(Trav Exps)          ,"1,360.00",04/02/2015,REV,REDACTED
768,Childrens & Education Services,Support for SEN Pupils,Statementing-Transport,K04023,Transport Related Expenditure ,Public Transport              ,CD50,Home Sch/Coll Trans(Trav Exps)          ,760,29/01/2015,REV,LONDON BOROUGH OF CROYDON     
769,Childrens & Education Services,Support for SEN Pupils,Statementing-Transport,K04023,Transport Related Expenditure ,Public Transport              ,CD50,Home Sch/Coll Trans(Trav Exps)          ,"1,067.22",16/02/2015,REV,LONDON BOROUGH OF CROYDON     
770,Childrens & Education Services,Support for SEN Pupils,Statementing-Transport,K04023,Transport Related Expenditure ,Public Transport              ,CD50,Home Sch/Coll Trans(Trav Exps)          ,"2,521.89",14/11/2014,REV,KENT COUNTY COUNCIL           
771,Childrens & Education Services,Behavioural Support,Statement Support Team,K04034,Employees                     ,Direct Employee Expenses      ,AA17,Agency Staff & Casual Paymts            ,690,31/01/2015,REV,REDACTED
772,Childrens & Education Services,Behavioural Support,Statement Support Team,K04034,Employees                     ,Direct Employee Expenses      ,AA17,Agency Staff & Casual Paymts            ,"7,725.00",31/01/2015,REV,REDACTED
773,Childrens & Education Services,Behavioural Support,Statement Support Team,K04034,Employees                     ,Direct Employee Expenses      ,AA17,Agency Staff & Casual Paymts            ,"20,600.00",31/01/2015,REV,PERMANENT FUTURES             
774,Childrens & Education Services,Behavioural Support,Statement Support Team,K04034,Employees                     ,Direct Employee Expenses      ,AA17,Agency Staff & Casual Paymts            ,"2,400.00",31/01/2015,REV,REDACTED
775,Childrens & Education Services,GENERATED ACCOUNT,Children's centres,K05137,Supplies & Services           ,Services                      ,DF03,Consultants                             ,500,18/12/2014,REV,SKILLS FOR LOCAL AUTHORITIES  
776,Childrens & Education Services,GENERATED ACCOUNT,Mitcham MAT (Premises),K05412,Premises Related Expenditure  ,RepairsAlterations&MtceOfBldgs,BA01,DDM - General Building                  ,719.13,02/02/2015,REV,SALTASH ENTERPRISES LTD       
777,Childrens & Education Services,GENERATED ACCOUNT,Mitcham MAT (Premises),K05412,Premises Related Expenditure  ,RepairsAlterations&MtceOfBldgs,BA06,Repairs & Maintenance General           ,706,06/02/2015,REV,MIKE AYRES DESIGN LTD         
778,Childrens & Education Services,GENERATED ACCOUNT,Mitcham MAT (Premises),K05412,Premises Related Expenditure  ,RepairsAlterations&MtceOfBldgs,BA06,Repairs & Maintenance General           ,870,16/02/2015,REV,GILLETT FLOORING CONTRACTORS  
779,Childrens & Education Services,GENERATED ACCOUNT,Mitcham MAT (Premises),K05412,Premises Related Expenditure  ,Energy Costs                  ,BB02,Electricity                             ,"3,261.43",02/02/2015,REV,SCOTTISHPOWER                 
780,Childrens & Education Services,GENERATED ACCOUNT,Morden MAT,K05413,Premises Related Expenditure  ,RepairsAlterations&MtceOfBldgs,BA06,Repairs & Maintenance General           ,"6,923.61",22/12/2014,REV,LITTLEWOOD FENCING            
781,Childrens & Education Services,GENERATED ACCOUNT,Morden MAT,K05413,Premises Related Expenditure  ,Energy Costs                  ,BB02,Electricity                             ,509.24,02/02/2015,REV,SCOTTISHPOWER                 
782,Childrens & Education Services,GENERATED ACCOUNT,Wimbledon MAT,K05414,Supplies & Services           ,Equip Furniture/Materials     ,DA09,Equip-Purchases                         ,524.75,14/10/2014,REV,TTS LTD                       
783,Childrens & Education Services,Nursery schools,Lavender CC Non Childcare,K05415,Supplies & Services           ,Equip Furniture/Materials     ,DA04,Materials                               ,655.5,12/12/2014,REV,GLS EDUCATIONAL SUPPLIES LTD  
784,Childrens & Education Services,Nursery schools,Lavender CC Non Childcare,K05415,Supplies & Services           ,Equip Furniture/Materials     ,DA09,Equip-Purchases                         ,656.45,10/11/2014,REV,COSY                          
785,Childrens & Education Services,Nursery schools,E.Years-Intergenerational Cntr,K05416,Premises Related Expenditure  ,RepairsAlterations&MtceOfBldgs,BA01,DDM - General Building                  ,644.38,21/01/2015,REV,SALTASH ENTERPRISES LTD       
786,Childrens & Education Services,Nursery schools,E.Years-Intergenerational Cntr,K05416,Premises Related Expenditure  ,Energy Costs                  ,BB02,Electricity                             ,542.22,06/02/2015,REV,SCOTTISHPOWER                 
787,Childrens & Education Services,Nursery schools,EY-Support Separating Parents,K05417,Employees                     ,Direct Employee Expenses      ,AA74,Public Duties (AP)                      ,"3,170.72",14/01/2015,REV,REDACTED
788,Childrens & Education Services,Nursery schools,EY-Support Separating Parents,K05417,Supplies & Services           ,Services                      ,DF30,Activities Programme                    ,720,25/06/2014,REV,PRE SCHOOL LEARNING ALLIANCE  
789,Childrens & Education Services,Nursery schools,EY-Support Separating Parents,K05417,Supplies & Services           ,Services                      ,DF30,Activities Programme                    ,675,06/02/2015,REV,THE JAYNE STEWART SCH OF DANCE
790,Childrens & Education Services,Oth U5s Provn Not Prim or Spec,EY - Adventure Playground,K05422,Premises Related Expenditure  ,RepairsAlterations&MtceOfBldgs,BA06,Repairs & Maintenance General           ,"1,751.00",04/12/2014,REV,FREE PLAY                     
791,Childrens & Education Services,Oth U5s Provn Not Prim or Spec,EY - Adventure Playground,K05422,Premises Related Expenditure  ,Energy Costs                  ,BB02,Electricity                             ,542.22,06/02/2015,REV,SCOTTISHPOWER                 
792,Childrens & Education Services,Vocational - Adult Education,AE-Neighbourhood Learning,K06043,Supplies & Services           ,Services                      ,DF30,Activities Programme                    ,900,22/01/2015,REV,SOCIAL ENTERPRISE MERTON CIC  
793,Childrens & Education Services,Vocational - Adult Education,AE-additional learner SF,K06046,Supplies & Services           ,Services                      ,DF07,Bought in Teaching Services             ,635.39,30/01/2015,REV,REDACTED
794,Childrens & Education Services,Vocational - Adult Education,AE-Adult Education Main,K06049,Premises Related Expenditure  ,Energy Costs                  ,BB03,Gas (incl. Butane)                      ,"2,242.07",05/02/2015,REV,GAZPROM MARKETING&TRADING LTD 
795,Childrens & Education Services,Vocational - Adult Education,AE-Adult Education Main,K06049,Premises Related Expenditure  ,Cleaning and Domestic Supplies,BH03,Cleaning Services                       ,"2,747.90",30/01/2015,REV,JULIUS RUTHERFOORD & CO LTD   
796,Childrens & Education Services,Vocational - Adult Education,AE-Adult Education Main,K06049,Supplies & Services           ,Catering                      ,DB01,Contract Catering                       ,520,19/01/2015,REV,INVESTEC ASSET FINANCE PLC    
797,Childrens & Education Services,Vocational - Adult Education,AE-Adult Education Main,K06049,Supplies & Services           ,Services                      ,DF02,Misc Advertising/Publicity              ,"2,240.00",12/02/2015,REV,STUDIO ELEVEN LTD             
798,Childrens & Education Services,Vocational - Adult Education,AE-Adult Education Main,K06049,Supplies & Services           ,Services                      ,DF02,Misc Advertising/Publicity              ,"1,500.00",07/01/2015,REV,NEWSQUEST (LONDON)LTD         
799,Childrens & Education Services,Vocational - Adult Education,AE-Adult Education Main,K06049,Supplies & Services           ,Services                      ,DF09,Miscellaneous Fees                      ,660,03/02/2015,REV,NURSERY ON THE GREEN          
800,Childrens & Education Services,Vocational - Adult Education,AE-Adult Education Main,K06049,Supplies & Services           ,Services                      ,DF27,Examination Fees                        ,"1,680.00",30/01/2015,REV,ASCENTIS                      
801,Childrens & Education Services,Youth Centres (Residential),Duke of Edinburgh Awrds,K06055,Supplies & Services           ,Expenses                      ,DH12,Young Peoples Expenses                  ,750,04/02/2015,REV,MITCHAM BELLE COACHES         
802,Childrens & Education Services,Youth Centres (Residential),Duke of Edinburgh Awrds,K06055,Supplies & Services           ,Expenses                      ,DH12,Young Peoples Expenses                  ,"2,960.00",04/02/2015,REV,THE AWARD SCHEME LTD          
803,Childrens & Education Services,Youth Centres (Residential),Duke of Edinburgh Awrds,K06055,Supplies & Services           ,Expenses                      ,DH12,Young Peoples Expenses                  ,"2,800.00",05/02/2015,REV,ROUGH EDGE                    
804,Childrens & Education Services,Youth Centres (Residential),Duke of Edinburgh Awrds,K06055,Supplies & Services           ,Expenses                      ,DH12,Young Peoples Expenses                  ,790,04/02/2015,REV,MITCHAM BELLE COACHES         
805,Childrens & Education Services,Youth Centres (Residential),Duke of Edinburgh Awrds,K06055,Supplies & Services           ,Expenses                      ,DH12,Young Peoples Expenses                  ,626.95,04/02/2015,REV,THE AWARD SCHEME LTD          
806,Childrens & Education Services,Youth Centres (Residential),Youth Office Premises Cost,K06073,Premises Related Expenditure  ,RepairsAlterations&MtceOfBldgs,BA06,Repairs & Maintenance General           ,"7,745.00",28/01/2015,REV,SYMES GARDEN SERVICES         
807,Childrens & Education Services,Vocational - Adult Education,AE-Family Literacy,K06082,Supplies & Services           ,Services                      ,DF30,Activities Programme                    ,867,21/11/2014,REV,CRICKET GREEN SCHOOL          
808,Childrens & Education Services,Youth Centres (Residential),PAYP Moving Forward in Life,K06092,Employees                     ,Direct Employee Expenses      ,AA17,Agency Staff & Casual Payments          ,965,26/01/2015,REV,REDACTED
809,Childrens & Education Services,Youth Centres (Residential),PAYP Moving Forward in Life,K06092,Premises Related Expenditure  ,Energy Costs                  ,BB02,Electricity                             ,766.77,06/02/2015,REV,SCOTTISHPOWER                 
810,Childrens & Education Services,Pupil Support,Careers Educ IAG Contracts,K06097,Third Party Payments          ,Private Contractors           ,EH01,Miscellaneous Agency Services           ,"16,362.00",10/02/2015,REV,ROYAL BOR'GH KINGSTON U THAMES
811,Childrens & Education Services,Pupil Support,Young Person Substance Misuse,K06114,Supplies & Services           ,Equip Furniture/Materials     ,DA58,Education Materials                     ,"1,000.00",16/02/2015,REV,CATCH 22                      
812,Childrens & Education Services,Pupil Support,Young Person Substance Misuse,K06114,Supplies & Services           ,Services                      ,DF30,Activities Programme                    ,"1,000.00",21/01/2015,REV,THEATRE ADAD                  
813,Childrens & Education Services,Pupil Support,Children & Yth Participation,K06115,Supplies & Services           ,Comms and Computing           ,DG50,Other IT Expenditure                    ,850,02/02/2015,REV,QUALITY EDUCATION SOLUTIONS LT
814,Childrens & Education Services,Pupil Referral Units,Safer Schls Police Officers             ,K06116,Third Party Payments          ,Private Contractors           ,EH02,Miscellaneous Hired Services            ,"21,000.00",21/01/2015,REV,MET POLICE AUTHORITY          
815,Childrens & Education Services,Pupil Referral Units,Safer Schls Police Officers             ,K06116,Third Party Payments          ,Private Contractors           ,EH02,Miscellaneous Hired Services            ,"6,250.00",21/01/2015,REV,MET POLICE AUTHORITY          
816,Childrens & Education Services,Asset Management,S106 Bid,K08077,Premises Related Expenditure  ,RepairsAlterations&MtceOfBldgs,BA06,Repairs & Maintenance General           ,552,29/01/2015,REV,HOLMBUSH FENCING SUPPLIES LTD 
817,Childrens & Education Services,Asset Management,S106 Bid,K08077,Premises Related Expenditure  ,RepairsAlterations&MtceOfBldgs,BA79,Security of Premises                    ,"1,325.76",01/02/2015,REV,SIGHT & SOUND                 
818,Childrens & Education Services,Asset Management,S106 Bid,K08077,Premises Related Expenditure  ,Rents                         ,BC01,Miscellaneous Rents                     ,"3,714.23",09/02/2015,REV,BOSHIRE LTD                   
819,Childrens & Education Services,Asset Management,Centre Commissioned Servs,K08078,Transport Related Expenditure ,Recharge frm Transport Holding,CB02,Transport SLA/Rech - Dir Std            ,"37,431.00",05/02/2015,REV,MERTON MENCAP                 
820,Childrens & Education Services,Asset Management,Centre Commissioned Servs,K08078,Supplies & Services           ,Grants and Subscriptions      ,DJ01,Grants                                  ,"5,000.00",03/02/2015,REV,YOUTH EMPOWERMENT CRIME SCHEME
821,Childrens & Education Services,Asset Management,Centre Commissioned Servs,K08078,Supplies & Services           ,Grants and Subscriptions      ,DJ01,Grants                                  ,"6,687.50",22/01/2015,REV,ST MUNGO'S BROADWAY           
822,Childrens & Education Services,Asset Management,Centre Commissioned Servs,K08078,Supplies & Services           ,Grants and Subscriptions      ,DJ01,Grants                                  ,"7,500.00",12/02/2015,REV,ENDEAVOUR CLUB                
823,Childrens & Education Services,Asset Management,Stouthall,K09082,Premises Related Expenditure  ,Ground Maintenance Costs      ,BL03,Maintenance of Grounds                  ,600,30/01/2015,REV,A Y LANDSCAPES LTD            
824,Childrens & Education Services,Statutory & Regulatory Duties,Profess Develop Cntre,K09084,Premises Related Expenditure  ,Cleaning and Domestic Supplies,BH03,Cleaning Services                       ,"2,329.26",30/01/2015,REV,JULIUS RUTHERFOORD & CO LTD   
825,Childrens & Education Services,Admissions & Planning Sch Prov,Schools Admin & Pupil Benefits,K90001,Transport Related Expenditure ,Public Transport              ,CD50,Home Sch/Coll Trans(Trav Exps)          ,622.2,16/01/2014,REV,TRANSPORT TRADING LTD         
826,Childrens & Education Services,Ensuring Attendance At School,Behaviour Support,K90004,Supplies & Services           ,Grants and Subscriptions      ,DJ04,Subscriptions                           ,"2,145.00",30/01/2015,REV,CPI EU /CRISIS PREVENTION INST
827,Childrens & Education Services,Pupil Referral Units,Head of Social Inclusion,K90005,Supplies & Services           ,Expenses                      ,DH12,Young Peoples Expenses                  ,"5,000.00",12/01/2015,REV,SMART CENTRE                  
828,Childrens & Education Services,Pupil Referral Units,Hospital Tuition,K90008,Third Party Payments          ,Other Local Authorities       ,EB54,Hospital Tuition                        ,"3,300.00",06/02/2015,REV,OAKVIEW SCHOOL                
829,Childrens & Education Services,Pupil Referral Units,Hospital Tuition,K90008,Third Party Payments          ,Other Local Authorities       ,EB54,Hospital Tuition                        ,"12,375.00",23/01/2015,REV,OAKVIEW SCHOOL                
830,Childrens & Education Services,Facilitating School Improvemnt,Virtual Schools - PEA's,K90016,Supplies & Services           ,Grants and Subscriptions      ,DJ01,Grants                                  ,600,13/02/2015,REV,IVY DALE PRIMARY              
831,Childrens & Education Services,Facilitating School Improvemnt,Virtual Schools - PEA's,K90016,Supplies & Services           ,Grants and Subscriptions      ,DJ01,Grants                                  ,600,22/01/2015,REV,DOWNHAM COFE(VC)PRIMARY SCHOOL
832,Childrens & Education Services,Facilitating School Improvemnt,Virtual Schools - PEA's,K90016,Supplies & Services           ,Grants and Subscriptions      ,DJ01,Grants                                  ,600,13/02/2015,REV,IVY DALE PRIMARY              
833,Childrens & Education Services,Support for SEN Pupils,Non-Delegated Statements,K90024,Employees                     ,Direct Employee Expenses      ,AA17,Agency Staff & Casual Paymts            ,"1,400.00",30/01/2015,REV,REDACTED
834,Childrens & Education Services,Support for SEN Pupils,Non-Delegated Statements,K90024,Employees                     ,Direct Employee Expenses      ,AA17,Agency Staff & Casual Paymts            ,"1,000.00",30/01/2015,REV,REDACTED
835,Childrens & Education Services,Support for SEN Pupils,Non-Delegated Statements,K90024,Employees                     ,Direct Employee Expenses      ,AA17,Agency Staff & Casual Paymts            ,"1,750.00",27/01/2015,REV,REDACTED
836,Childrens & Education Services,Support for SEN Pupils,Non-Delegated Statements,K90024,Employees                     ,Direct Employee Expenses      ,AA17,Agency Staff & Casual Paymts            ,"1,260.00",27/01/2015,REV,REDACTED
837,Childrens & Education Services,Support for SEN Pupils,Non-Delegated Statements,K90024,Supplies & Services           ,Services                      ,DF09,Miscellaneous Fees                      ,"1,050.00",09/02/2015,REV,RIVER COUNSELLING AGENCY      
838,Childrens & Education Services,Support for SEN Pupils,Non-Delegated Statements,K90024,Supplies & Services           ,Services                      ,DF09,Miscellaneous Fees                      ,"3,081.80",02/02/2015,REV,REDACTED
839,Childrens & Education Services,Support for SEN Pupils,Non-Delegated Statements,K90024,Supplies & Services           ,Services                      ,DF09,Miscellaneous Fees                      ,"1,650.00",02/02/2015,REV,RIVER COUNSELLING AGENCY      
840,Childrens & Education Services,Support for SEN Pupils,Non-Delegated Statements,K90024,Supplies & Services           ,Services                      ,DF09,Miscellaneous Fees                      ,547.72,31/01/2015,REV,DEEPSTORE LTD                 
841,Childrens & Education Services,Support for SEN Pupils,Non-Delegated Statements,K90024,Supplies & Services           ,Services                      ,DF09,Miscellaneous Fees                      ,"6,203.70",23/12/2014,REV,REDACTED
842,Childrens & Education Services,Support for SEN Pupils,Non-Delegated Statements,K90024,Supplies & Services           ,Services                      ,DF09,Miscellaneous Fees                      ,"5,377.00",09/01/2015,REV,CLIFTON HILL SCHOOL           
843,Childrens & Education Services,Support for SEN Pupils,Non-Delegated Statements,K90024,Supplies & Services           ,Services                      ,DF09,Miscellaneous Fees                      ,660,27/01/2015,REV,REDACTED
844,Childrens & Education Services,Support for SEN Pupils,Non-Delegated Statements,K90024,Supplies & Services           ,Services                      ,DF09,Miscellaneous Fees                      ,"1,650.00",16/02/2015,REV,RIVER COUNSELLING AGENCY      
845,Childrens & Education Services,Support for SEN Pupils,Non-Delegated Statements,K90024,Supplies & Services           ,Services                      ,DF09,Miscellaneous Fees                      ,"2,490.00",10/02/2015,REV,SUTTON HIGH SCHOOL            
846,Childrens & Education Services,Support for SEN Pupils,Non-Delegated Statements,K90024,Supplies & Services           ,Services                      ,DF11,Counsel's Fees                          ,500,23/01/2015,REV,REDACTED
847,Childrens & Education Services,Support for SEN Pupils,Non-Delegated Statements,K90024,Third Party Payments          ,Other Local Authorities       ,EB48,OLA PAYMENTS-STATEMENTS                 ,"3,573.33",04/02/2015,REV,STANLEY PARK HIGH             
848,Childrens & Education Services,Support for SEN Pupils,Non-Delegated Statements,K90024,Third Party Payments          ,Other Local Authorities       ,EB48,OLA PAYMENTS-STATEMENTS                 ,991,26/01/2015,REV,SURREY COUNTY COUNCIL         
849,Childrens & Education Services,Support for SEN Pupils,Non-Delegated Statements,K90024,Third Party Payments          ,Other Local Authorities       ,EB48,OLA PAYMENTS-STATEMENTS                 ,"3,010.00",04/02/2015,REV,ALL SAINTS BENHILTON C.E.SCH  
850,Childrens & Education Services,Support for SEN Pupils,Non-Delegated Statements,K90024,Third Party Payments          ,Other Local Authorities       ,EB49,OLA PAYMENTS-RESIDENTIAL                ,"75,746.32",19/01/2015,REV,WANDSWORTH CORPORATION        
851,Childrens & Education Services,Support for SEN Pupils,Non-Delegated Statements,K90024,Third Party Payments          ,Other Local Authorities       ,EB50,OLA-Payments - Day Schools              ,"17,813.00",26/01/2015,REV,SURREY COUNTY COUNCIL         
852,Childrens & Education Services,Support for SEN Pupils,Non-Delegated Statements,K90024,Third Party Payments          ,Other Local Authorities       ,EB50,OLA-Payments - Day Schools              ,"3,286.13",22/12/2014,REV,BECKMEAD SCHOOL               
853,Childrens & Education Services,Support for SEN Pupils,Non-Delegated Statements,K90024,Third Party Payments          ,Other Local Authorities       ,EB50,OLA-Payments - Day Schools              ,"108,747.04",19/01/2015,REV,WANDSWORTH CORPORATION        
854,Childrens & Education Services,Support for SEN Pupils,Non-Delegated Statements,K90024,Third Party Payments          ,Other Local Authorities       ,EB50,OLA-Payments - Day Schools              ,"3,849.99",02/02/2015,REV,WANDLE VALLEY SCHOOL          
855,Childrens & Education Services,Support for SEN Pupils,Non-Delegated Statements,K90024,Third Party Payments          ,Other Local Authorities       ,EB50,OLA-Payments - Day Schools              ,"5,845.80",24/02/2015,REV,TURNEY SCHOOL                 
856,Childrens & Education Services,Support for SEN Pupils,Non-Delegated Statements,K90024,Third Party Payments          ,Other Local Authorities       ,EB50,OLA-Payments - Day Schools              ,"3,849.99",05/01/2015,REV,WANDLE VALLEY SCHOOL          
857,Childrens & Education Services,Support for SEN Pupils,Non-Delegated Statements,K90024,Third Party Payments          ,Other Local Authorities       ,EB50,OLA-Payments - Day Schools              ,"2,550.91",03/02/2015,REV,CAMBRIDGESHIRE COUNTY COUNCIL 
858,Childrens & Education Services,Support for SEN Pupils,Non-Delegated Statements,K90024,Third Party Payments          ,Other Local Authorities       ,EB50,OLA-Payments - Day Schools              ,"16,661.00",26/01/2015,REV,SURREY COUNTY COUNCIL         
859,Childrens & Education Services,Support for SEN Pupils,Non-Delegated Statements,K90024,Third Party Payments          ,Other Local Authorities       ,EB51,OLA Payments - Special Units            ,"1,848.00",26/01/2015,REV,SURREY COUNTY COUNCIL         
860,Childrens & Education Services,Support for SEN Pupils,Non-Delegated Statements,K90024,Third Party Payments          ,Other Local Authorities       ,EB51,OLA Payments - Special Units            ,"5,856.09",04/02/2015,REV,STANLEY PARK HIGH             
861,Childrens & Education Services,Support for SEN Pupils,Non-Delegated Statements,K90024,Third Party Payments          ,Other Local Authorities       ,EB51,OLA Payments - Special Units            ,"2,104.00",26/01/2015,REV,SURREY COUNTY COUNCIL         
862,Childrens & Education Services,Support for SEN Pupils,Non-Delegated Statements,K90024,Third Party Payments          ,Other Local Authorities       ,EB55,Placements                              ,"1,661.00",05/02/2015,REV,BRIGHT HORIZONS               
863,Childrens & Education Services,Support for SEN Pupils,Non-Delegated Statements,K90024,Third Party Payments          ,Other Local Authorities       ,EB55,Placements                              ,"1,958.00",30/01/2015,REV,ARK AT SHERWOOD LTD           
864,Childrens & Education Services,Support for SEN Pupils,Non-Delegated Statements,K90024,Third Party Payments          ,Other Local Authorities       ,EB55,Placements                              ,"1,661.00",05/02/2015,REV,BRIGHT HORIZONS               
865,Childrens & Education Services,Support for SEN Pupils,Non-Delegated Statements,K90024,Third Party Payments          ,Other Local Authorities       ,EB55,Placements                              ,"2,670.00",30/01/2015,REV,ARK AT SHERWOOD LTD           
866,Childrens & Education Services,Support for SEN Pupils,Non-Delegated Statements,K90024,Third Party Payments          ,Other Establishments          ,EG01,Alternative SEN Provision               ,"11,232.00",12/02/2015,REV,BONAS MACFARLANE              
867,Childrens & Education Services,Support for SEN Pupils,Non-Delegated Statements,K90024,Third Party Payments          ,Other Establishments          ,EG01,Alternative SEN Provision               ,"3,054.00",02/01/2015,REV,REDACTED
868,Childrens & Education Services,Support for SEN Pupils,Non-Delegated Statements,K90024,Third Party Payments          ,Other Establishments          ,EG01,Alternative SEN Provision               ,"2,496.00",02/07/2014,REV,HA TUTORS LTD                 
869,Childrens & Education Services,Support for SEN Pupils,Non-Delegated Statements,K90024,Third Party Payments          ,Other Establishments          ,EG01,Alternative SEN Provision               ,"1,748.50",31/10/2014,REV,VIBRANCE                      
870,Childrens & Education Services,Support for SEN Pupils,Non-Delegated Statements,K90024,Third Party Payments          ,Other Establishments          ,EG01,Alternative SEN Provision               ,"1,982.50",30/01/2015,REV,HA TUTORS LTD                 
871,Childrens & Education Services,Support for SEN Pupils,Non-Delegated Statements,K90024,Third Party Payments          ,Other Establishments          ,EG01,Alternative SEN Provision               ,965,30/01/2015,REV,HA TUTORS LTD                 
872,Childrens & Education Services,Support for SEN Pupils,Non-Delegated Statements,K90024,Third Party Payments          ,Other Establishments          ,EG01,Alternative SEN Provision               ,585,30/01/2015,REV,HA TUTORS LTD                 
873,Childrens & Education Services,Support for SEN Pupils,Non-Delegated Statements,K90024,Third Party Payments          ,Other Establishments          ,EG01,Alternative SEN Provision               ,"3,108.75",30/01/2015,REV,HA TUTORS LTD                 
874,Childrens & Education Services,Support for SEN Pupils,Non-Delegated Statements,K90024,Third Party Payments          ,Other Establishments          ,EG01,Alternative SEN Provision               ,755,30/01/2015,REV,HA TUTORS LTD                 
875,Childrens & Education Services,Support for SEN Pupils,Non-Delegated Statements,K90024,Third Party Payments          ,Other Establishments          ,EG50,Ind Day Schs Payments                   ,"1,172.17",19/12/2014,REV,JIGSAW                        
876,Childrens & Education Services,Support for SEN Pupils,Non-Delegated Statements,K90024,Third Party Payments          ,Other Establishments          ,EG50,Ind Day Schs Payments                   ,"6,130.00",12/02/2015,REV,ST TERESA'S SCHOOL            
877,Childrens & Education Services,Support for SEN Pupils,Non-Delegated Statements,K90024,Third Party Payments          ,Other Establishments          ,EG50,Ind Day Schs Payments                   ,"16,618.33",21/01/2015,REV,EAGLE HOUSE SCHOOL (SUTTON)   
878,Childrens & Education Services,Support for SEN Pupils,Non-Delegated Statements,K90024,Third Party Payments          ,Other Establishments          ,EG50,Ind Day Schs Payments                   ,"16,618.33",21/01/2015,REV,EAGLE HOUSE SCHOOL (SUTTON)   
879,Childrens & Education Services,Support for SEN Pupils,Non-Delegated Statements,K90024,Third Party Payments          ,Other Establishments          ,EG50,Ind Day Schs Payments                   ,"15,893.00",30/01/2015,REV,RADIUS SPECIAL EDUCATION TRUST
880,Childrens & Education Services,Support for SEN Pupils,Non-Delegated Statements,K90024,Third Party Payments          ,Other Establishments          ,EG50,Ind Day Schs Payments                   ,"16,618.33",21/01/2015,REV,EAGLE HOUSE SCHOOL (SUTTON)   
881,Childrens & Education Services,Support for SEN Pupils,Non-Delegated Statements,K90024,Third Party Payments          ,Other Establishments          ,EG50,Ind Day Schs Payments                   ,"20,041.66",15/02/2015,REV,ROEHAMPTON LODGE PRIORY       
882,Childrens & Education Services,Support for SEN Pupils,Non-Delegated Statements,K90024,Third Party Payments          ,Other Establishments          ,EG50,Ind Day Schs Payments                   ,"21,666.67",15/02/2015,REV,ROEHAMPTON LODGE PRIORY       
883,Childrens & Education Services,Support for SEN Pupils,Non-Delegated Statements,K90024,Third Party Payments          ,Other Establishments          ,EG50,Ind Day Schs Payments                   ,"12,093.67",21/01/2015,REV,EAGLE HOUSE SCHOOL (SUTTON)   
884,Childrens & Education Services,Support for SEN Pupils,Non-Delegated Statements,K90024,Third Party Payments          ,Other Establishments          ,EG50,Ind Day Schs Payments                   ,"5,319.00",26/01/2015,REV,LVS HASSOCKS                  
885,Childrens & Education Services,Support for SEN Pupils,Non-Delegated Statements,K90024,Third Party Payments          ,Other Establishments          ,EG50,Ind Day Schs Payments                   ,"18,353.26",19/12/2014,REV,JIGSAW                        
886,Childrens & Education Services,Support for SEN Pupils,Non-Delegated Statements,K90024,Third Party Payments          ,Other Establishments          ,EG50,Ind Day Schs Payments                   ,575,12/02/2015,REV,ST TERESA'S SCHOOL            
887,Childrens & Education Services,Support for SEN Pupils,Non-Delegated Statements,K90024,Third Party Payments          ,Other Establishments          ,EG50,Ind Day Schs Payments                   ,"16,618.33",21/01/2015,REV,EAGLE HOUSE SCHOOL (SUTTON)   
888,Childrens & Education Services,Support for SEN Pupils,Non-Delegated Statements,K90024,Third Party Payments          ,Other Establishments          ,EG50,Ind Day Schs Payments                   ,"4,980.00",26/01/2015,REV,CANBURY SCHOOL LIMITED        
889,Childrens & Education Services,Support for SEN Pupils,Non-Delegated Statements,K90024,Third Party Payments          ,Other Establishments          ,EG50,Ind Day Schs Payments                   ,"29,333.00",15/02/2015,REV,UNSTED PARK                   
890,Childrens & Education Services,Behavioural Support,Language & Learning Service,K90025,Supplies & Services           ,Equip Furniture/Materials     ,DA58,Education Materials                     ,740.02,16/01/2015,REV,FINDEL EDUCATION LTD          
